{"text_format":"1","workbook":"xlsx","n_sheets":5,"sheets":["Quali","Finale16alle","Ergebnis","Schusszettel_R","Schusszettel_C"],"not_rendered":{"charts":0,"images":3,"macros":1,"external_links":0,"defined_names":23,"comments":0,"pivot_tables":0},"unopened":[],"bounds":{"document_bytes":16777216,"sheet_cells":100000,"rows_first":2000,"rows_last":500,"rows_between":2000,"halvings":0,"cell_chars":16384,"cell_head_chars":4096},"cells_cut":0,"cells_raw":0,"read":"whole","date_system":"1900"}

{"sheet":"Quali","index":0,"n_rows":44,"n_cols":8,"rows_kept":44,"cut":false,"hidden":false,"merged":[[2,0,2,2],[3,0,3,2],[5,0,5,2],[0,0,0,2],[7,0,7,2]]}
["Trainingsturnier"]
[]
["15. Mai 2022"]
["Zwettl"]
[]
["Compound"]
[]
["Qualifikationsrunde"]
[]
[]
["Pl.","Start-Nr.","Name","Verein","Land","Quali.","10-er","X"]
[1,"2A","S_1","V_1"," ",280]
[2,"2B","S_2","V_2"," ",278]
[3,"8A","S_3","V_3"," ",277]
[4,"7B","S_4","V_4"," ",270]
[5,"1A","S_5","V_5"," ",269]
[6,"5A","S_6","V_6"," ",265]
[7,"1B","S_7","V_7"," ",264]
[8,"4A","S_8","V_8"," ",257]
[9,"7A","S_9","V_9"," ",256]
[10,"3B","S_10","V_10"," ",252]
[11,"6A","S_11","V_11"," ",244]
[12,"3A","S_12","V_12"," ",232]
[13,"6B","S_13","V_13"," ",215]
[14,"5B","S_14","V_14"," ",214]
[15,"4B","S_15","V_15"," ",210]
[16,"8B","S_16","V_16"," ",207]
[17]
[18]
[19]
[20]
[21]
[22]
[23]
[24]
[25]
[26]
[27]
[28]
[29]
[30]
[31]
[32]
[33]

{"sheet":"Finale16alle","index":1,"n_rows":71,"n_cols":23,"rows_kept":71,"cut":false,"hidden":false,"merged":[[1,19,2,19],[5,19,6,19],[9,19,10,19],[13,19,14,19],[29,19,30,19],[17,19,18,19],[21,19,22,19],[25,19,26,19]]}
[null,"Schb","Name","Erg.",null,null,"Schb","Name","Erg.",null,null,"Schb","Name","Erg.",null,null,"Schb","Name","Erg."]
[1,{"$f":"D40","v":"1A"},{"$f":"Quali!$C$12","v":"S_1"},null,null,1,{"$f":"I40","v":"1A"},{"$f":"IF(D2>D3,C2,IF(D3>D2,C3,IF(RIGHT(D2,1)=\"*\",C2,IF(RIGHT(D3,1)=\"*\",C3,\"\"))))","v":""},null,null,1,{"$f":"N40","v":"1A"},{"$f":"IF(I2>I3,H2,IF(I3>I2,H3,IF(RIGHT(I2,1)=\"*\",H2,IF(RIGHT(I3,1)=\"*\",H3,\"\"))))","v":""},null,null,null,{"$f":"S40","v":"1A"},{"$f":"IF(N2>N3,M2,IF(N3>N2,M3,IF(RIGHT(N2,1)=\"*\",M2,IF(RIGHT(N3,1)=\"*\",M3,\"\"))))","v":""},null,"1./2. Platz",null,"1.",{"$f":"IF(S2>S3,R2,IF(S3>S2,R3,IF(RIGHT(S2,1)=\"*\",R2,IF(RIGHT(S3,1)=\"*\",R3,\"\"))))","v":""}]
[16,{"$f":"D41","v":"1B"},{"$f":"Quali!$C$27","v":"S_16"},null,null,8,{"$f":"I41","v":"1B"},{"$f":"IF(D6>D7,C6,IF(D7>D6,C7,IF(RIGHT(D6,1)=\"*\",C6,IF(RIGHT(D7,1)=\"*\",C7,\"\"))))","v":""},null,null,4,{"$f":"N41","v":"1B"},{"$f":"IF(I6>I7,H6,IF(I7>I6,H7,IF(RIGHT(I6,1)=\"*\",H6,IF(RIGHT(I7,1)=\"*\",H7,\"\"))))","v":""},null,null,null,{"$f":"S41","v":"1B"},{"$f":"IF(N6>N7,M6,IF(N7>N6,M7,IF(RIGHT(N6,1)=\"*\",M6,IF(RIGHT(N7,1)=\"*\",M7,\"\"))))","v":""},null,null,null,"2.",{"$f":"IF(W2>\"\",IF(W2=R2,R3,R2),\"\")","v":""}]
[]
[]
[9,{"$f":"D42","v":"2A"},{"$f":"Quali!$C$20","v":"S_9"},null,null,5,{"$f":"I42","v":"2A"},{"$f":"IF(D10>D11,C10,IF(D11>D10,C11,IF(RIGHT(D10,1)=\"*\",C10,IF(RIGHT(D11,1)=\"*\",C11,\"\"))))","v":""},null,null,3,{"$f":"N42","v":"2A"},{"$f":"IF(I10>I11,H10,IF(I11>I10,H11,IF(RIGHT(I10,1)=\"*\",H10,IF(RIGHT(I11,1)=\"*\",H11,\"\"))))","v":""},null,null,null,{"$f":"S42","v":"2A"},{"$f":"IF(R2>\"\",IF(R2=M2,M3,M2),\"\")","v":""},null,"3./4. Platz",null,"3.",{"$f":"IF(S6>S7,R6,IF(S7>S6,R7,IF(RIGHT(S6,1)=\"*\",R6,IF(RIGHT(S7,1)=\"*\",R7,\"\"))))","v":""}]
[8,{"$f":"D43","v":"2B"},{"$f":"Quali!$C$19","v":"S_8"},null,null,4,{"$f":"I43","v":"2B"},{"$f":"IF(D14>D15,C14,IF(D15>D14,C15,IF(RIGHT(D14,1)=\"*\",C14,IF(RIGHT(D15,1)=\"*\",C15,\"\"))))","v":""},null,null,2,{"$f":"N43","v":"2B"},{"$f":"IF(I14>I15,H14,IF(I15>I14,H15,IF(RIGHT(I14,1)=\"*\",H14,IF(RIGHT(I15,1)=\"*\",H15,\"\"))))","v":""},null,null,null,{"$f":"S43","v":"2B"},{"$f":"IF(R3>\"\",IF(R3=M6,M7,M6),\"\")","v":""},null,null,null,"4.",{"$f":"IF(W6>\"\",IF(W6=R6,R7,R6),\"\")","v":""}]
[]
[]
[5,{"$f":"D44","v":"3A"},{"$f":"Quali!$C$16","v":"S_5"},null,null,3,{"$f":"I44","v":"3A"},{"$f":"IF(D18>D19,C18,IF(D19>D18,C19,IF(RIGHT(D18,1)=\"*\",C18,IF(RIGHT(D19,1)=\"*\",C19,\"\"))))","v":""},null,null,null,{"$f":"N44","v":"3A"},{"$f":"IF(M2>\"\",IF(M2=H2,H3,H2),\"\")","v":""},null,null,null,{"$f":"S44","v":"3A"},{"$f":"IF(N10>N11,M10,IF(N11>N10,M11,IF(RIGHT(N10,1)=\"*\",M10,IF(RIGHT(N11,1)=\"*\",M11,\"\"))))","v":""},null,"5./6. Platz",null,"5.",{"$f":"IF(S10>S11,R10,IF(S11>S10,R11,IF(RIGHT(S10,1)=\"*\",R10,IF(RIGHT(S11,1)=\"*\",R11,\"\"))))","v":""}]
[12,{"$f":"D45","v":"3B"},{"$f":"Quali!$C$23","v":"S_12"},null,null,6,{"$f":"I45","v":"3B"},{"$f":"IF(D22>D23,C22,IF(D23>D22,C23,IF(RIGHT(D22,1)=\"*\",C22,IF(RIGHT(D23,1)=\"*\",C23,\"\"))))","v":""},null,null,null,{"$f":"N45","v":"3B"},{"$f":"IF(M3>\"\",IF(M3=H6,H7,H6),\"\")","v":""},null,null,null,{"$f":"S45","v":"3B"},{"$f":"IF(N14>N15,M14,IF(N15>N14,M15,IF(RIGHT(N14,1)=\"*\",M14,IF(RIGHT(N15,1)=\"*\",M15,\"\"))))","v":""},null,null,null,"6.",{"$f":"IF(W10>\"\",IF(W10=R10,R11,R10),\"\")","v":""}]
[]
[]
[13,{"$f":"D46","v":"4A"},{"$f":"Quali!$C$24","v":"S_13"},null,null,7,{"$f":"I46","v":"4A"},{"$f":"IF(D26>D27,C26,IF(D27>D26,C27,IF(RIGHT(D26,1)=\"*\",C26,IF(RIGHT(D27,1)=\"*\",C27,\"\"))))","v":""},null,null,null,{"$f":"N46","v":"4A"},{"$f":"IF(M6>\"\",IF(M6=H10,H11,H10),\"\")","v":""},null,null,null,{"$f":"S46","v":"4A"},{"$f":"IF(R10>\"\",IF(R10=M10,M11,M10),\"\")","v":""},null,"7./8. Platz",null,"7.",{"$f":"IF(S14>S15,R14,IF(S15>S14,R15,IF(RIGHT(S14,1)=\"*\",R14,IF(RIGHT(S15,1)=\"*\",R15,\"\"))))","v":""}]
[4,{"$f":"D47","v":"4B"},{"$f":"Quali!$C$15","v":"S_4"},null,null,2,{"$f":"I47","v":"4B"},{"$f":"IF(D30>D31,C30,IF(D31>D30,C31,IF(RIGHT(D30,1)=\"*\",C30,IF(RIGHT(D31,1)=\"*\",C31,\"\"))))","v":""},null,null,null,{"$f":"N47","v":"4B"},{"$f":"IF(M7>\"\",IF(M7=H14,H15,H14),\"\")","v":""},null,null,null,{"$f":"S47","v":"4B"},{"$f":"IF(R11>\"\",IF(R11=M14,M15,M14),\"\")","v":""},null,null,null,"8.",{"$f":"IF(W14>\"\",IF(W14=R14,R15,R14),\"\")","v":""}]
[]
[]
[3,{"$f":"D48","v":"5A"},{"$f":"Quali!$C$14","v":"S_3"},null,null,null,{"$f":"I48","v":"5A"},{"$f":"IF(H2>\"\",IF(H2=C2,C3,C2),\"\")","v":""},null,null,null,{"$f":"N48","v":"5A"},{"$f":"IF(I18>I19,H18,IF(I19>I18,H19,IF(RIGHT(I18,1)=\"*\",H18,IF(RIGHT(I19,1)=\"*\",H19,\"\"))))","v":""},null,null,null,{"$f":"S48","v":"5A"},{"$f":"IF(N18>N19,M18,IF(N19>N18,M19,IF(RIGHT(N18,1)=\"*\",M18,IF(RIGHT(N19,1)=\"*\",M19,\"\"))))","v":""},null,"9./10. Platz",null,"9.",{"$f":"IF(S18>S19,R18,IF(S19>S18,R19,IF(RIGHT(S18,1)=\"*\",R18,IF(RIGHT(S19,1)=\"*\",R19,\"\"))))","v":""}]
[14,{"$f":"D49","v":"5B"},{"$f":"Quali!$C$25","v":"S_14"},null,null,null,{"$f":"I49","v":"5B"},{"$f":"IF(H3>\"\",IF(H3=C6,C7,C6),\"\")","v":""},null,null,null,{"$f":"N49","v":"5B"},{"$f":"IF(I22>I23,H22,IF(I23>I22,H23,IF(RIGHT(I22,1)=\"*\",H22,IF(RIGHT(I23,1)=\"*\",H23,\"\"))))","v":""},null,null,null,{"$f":"S49","v":"5B"},{"$f":"IF(N22>N23,M22,IF(N23>N22,M23,IF(RIGHT(N22,1)=\"*\",M22,IF(RIGHT(N23,1)=\"*\",M23,\"\"))))","v":""},null,null,null,"10.",{"$f":"IF(W18>\"\",IF(W18=R18,R19,R18),\"\")","v":""}]
[]
[]
[11,{"$f":"D50","v":"6A"},{"$f":"Quali!$C$22","v":"S_11"},null,null,null,{"$f":"I50","v":"6A"},{"$f":"IF(H6>\"\",IF(H6=C10,C11,C10),\"\")","v":""},null,null,null,{"$f":"N50","v":"6A"},{"$f":"IF(I26>I27,H26,IF(I27>I26,H27,IF(RIGHT(I26,1)=\"*\",H26,IF(RIGHT(I27,1)=\"*\",H27,\"\"))))","v":""},null,null,null,{"$f":"S50","v":"6A"},{"$f":"IF(R18>\"\",IF(R18=M18,M19,M18),\"\")","v":""},null,"11./12. Platz",null,"11.",{"$f":"IF(S22>S23,R22,IF(S23>S22,R23,IF(RIGHT(S22,1)=\"*\",R22,IF(RIGHT(S23,1)=\"*\",R23,\"\"))))","v":""}]
[6,{"$f":"D51","v":"6B"},{"$f":"Quali!$C$17","v":"S_6"},null,null,null,{"$f":"I51","v":"6B"},{"$f":"IF(H7>\"\",IF(H7=C14,C15,C14),\"\")","v":""},null,null,null,{"$f":"N51","v":"6B"},{"$f":"IF(I30>I31,H30,IF(I31>I30,H31,IF(RIGHT(I30,1)=\"*\",H30,IF(RIGHT(I31,1)=\"*\",H31,\"\"))))","v":""},null,null,null,{"$f":"S51","v":"6B"},{"$f":"IF(R19>\"\",IF(R19=M22,M23,M22),\"\")","v":""},null,null,null,"12.",{"$f":"IF(W22>\"\",IF(W22=R22,R23,R22),\"\")","v":""}]
[]
[]
[7,{"$f":"D52","v":"7A"},{"$f":"Quali!$C$18","v":"S_7"},null,null,null,{"$f":"I52","v":"7A"},{"$f":"IF(H10>\"\",IF(H10=C18,C19,C18),\"\")","v":""},null,null,null,{"$f":"N52","v":"7A"},{"$f":"IF(M18>\"\",IF(M18=H18,H19,H18),\"\")","v":""},null,null,null,{"$f":"S52","v":"7A"},{"$f":"IF(N26>N27,M26,IF(N27>N26,M27,IF(RIGHT(N26,1)=\"*\",M26,IF(RIGHT(N27,1)=\"*\",M27,\"\"))))","v":""},null,"13./14. Platz",null,"13.",{"$f":"IF(S26>S27,R26,IF(S27>S26,R27,IF(RIGHT(S26,1)=\"*\",R26,IF(RIGHT(S27,1)=\"*\",R27,\"\"))))","v":""}]
[10,{"$f":"D53","v":"7B"},{"$f":"Quali!$C$21","v":"S_10"},null,null,null,{"$f":"I53","v":"7B"},{"$f":"IF(H11>\"\",IF(H11=C22,C23,C22),\"\")","v":""},null,null,null,{"$f":"N53","v":"7B"},{"$f":"IF(M19>\"\",IF(M19=H22,H23,H22),\"\")","v":""},null,null,null,{"$f":"S53","v":"7B"},{"$f":"IF(N30>N31,M30,IF(N31>N30,M31,IF(RIGHT(N30,1)=\"*\",M30,IF(RIGHT(N31,1)=\"*\",M31,\"\"))))","v":""},null,null,null,"14.",{"$f":"IF(W26>\"\",IF(W26=R26,R27,R26),\"\")","v":""}]
[]
[]
[15,{"$f":"D54","v":"8A"},{"$f":"Quali!$C$26","v":"S_15"},null,null,null,{"$f":"I54","v":"8A"},{"$f":"IF(H14>\"\",IF(H14=C26,C27,C26),\"\")","v":""},null,null,null,{"$f":"N54","v":"8A"},{"$f":"IF(M22>\"\",IF(M22=H26,H27,H26),\"\")","v":""},null,null,null,{"$f":"S54","v":"8A"},{"$f":"IF(R26>\"\",IF(R26=M26,M27,M26),\"\")","v":""},null,"15./16. Platz",null,"15.",{"$f":"IF(S30>S31,R30,IF(S31>S30,R31,IF(RIGHT(S30,1)=\"*\",R30,IF(RIGHT(S31,1)=\"*\",R31,\"\"))))","v":""}]
[2,{"$f":"D55","v":"8B"},{"$f":"Quali!$C$13","v":"S_2"},null,null,null,{"$f":"I55","v":"8B"},{"$f":"IF(H15>\"\",IF(H15=C30,C31,C30),\"\")","v":""},null,null,null,{"$f":"N55","v":"8B"},{"$f":"IF(M23>\"\",IF(M23=H30,H31,H30),\"\")","v":""},null,null,null,{"$f":"S55","v":"8B"},{"$f":"IF(R27>\"\",IF(R27=M30,M31,M30),\"\")","v":""},null,null,null,"16.",{"$f":"IF(W30>\"\",IF(W30=R30,R31,R30),\"\")","v":""}]
[]
[]
[null,null,"1/8 Elimination",null,null,null,null,"1/4 Finale",null,null,null,null,"1/2 Finale",null,null,null,null,"Finale"]
[]
[null,null,null,null,null,null,null,null,null,null,null,null,null,null,null,null,"*","= Im Stechen gewonnen"]
[]
[]
[null,null,"Scheibe:"]
[null,1,{"$f":"CONCATENATE($C$39,\" \",D40)","v":"Scheibe: 1A"},"1A",null,null,1,{"$f":"CONCATENATE($C$39,\" \",I40)","v":"Scheibe: 1A"},"1A",null,null,1,{"$f":"CONCATENATE($C$39,\" \",N40)","v":"Scheibe: 1A"},"1A",null,null,1,{"$f":"CONCATENATE($C$39,\" \",S40)","v":"Scheibe: 1A"},"1A"]
[null,null,"Scheibe: 1B",{"$f":"IF(RIGHT(D40,1)=\"A\",CONCATENATE(LEFT(D40,LEN(D40)-1),\"B\"),D40+1)","v":"1B"},null,null,null,"Scheibe: 1B",{"$f":"IF(RIGHT(I40,1)=\"A\",CONCATENATE(LEFT(I40,LEN(I40)-1),\"B\"),I40+1)","v":"1B"},null,null,null,"Scheibe: 1B",{"$f":"IF(RIGHT(N40,1)=\"A\",CONCATENATE(LEFT(N40,LEN(N40)-1),\"B\"),N40+1)","v":"1B"},null,null,null,"Scheibe: 1B",{"$f":"IF(RIGHT(S40,1)=\"A\",CONCATENATE(LEFT(S40,LEN(S40)-1),\"B\"),S40+1)","v":"1B"}]
[null,{"$f":"B40+1","v":2},"Scheibe: 2A",{"$f":"IF(RIGHT(D41,1)=\"B\",CONCATENATE(LEFT(D41,LEN(D41)-1)+1,\"A\"),D41+1)","v":"2A"},null,null,{"$f":"G40+1","v":2},"Scheibe: 2A",{"$f":"IF(RIGHT(I41,1)=\"B\",CONCATENATE(LEFT(I41,LEN(I41)-1)+1,\"A\"),I41+1)","v":"2A"},null,null,{"$f":"L40+1","v":2},"Scheibe: 2A",{"$f":"IF(RIGHT(N41,1)=\"B\",CONCATENATE(LEFT(N41,LEN(N41)-1)+1,\"A\"),N41+1)","v":"2A"},null,null,{"$f":"Q40+1","v":2},"Scheibe: 2A",{"$f":"IF(RIGHT(S41,1)=\"B\",CONCATENATE(LEFT(S41,LEN(S41)-1)+1,\"A\"),S41+1)","v":"2A"}]
[null,null,"Scheibe: 2B",{"$f":"IF(RIGHT(D42,1)=\"A\",CONCATENATE(LEFT(D42,LEN(D42)-1),\"B\"),D42+1)","v":"2B"},null,null,null,"Scheibe: 2B",{"$f":"IF(RIGHT(I42,1)=\"A\",CONCATENATE(LEFT(I42,LEN(I42)-1),\"B\"),I42+1)","v":"2B"},null,null,null,"Scheibe: 2B",{"$f":"IF(RIGHT(N42,1)=\"A\",CONCATENATE(LEFT(N42,LEN(N42)-1),\"B\"),N42+1)","v":"2B"},null,null,null,"Scheibe: 2B",{"$f":"IF(RIGHT(S42,1)=\"A\",CONCATENATE(LEFT(S42,LEN(S42)-1),\"B\"),S42+1)","v":"2B"}]
[null,{"$f":"B42+1","v":3},"Scheibe: 3A",{"$f":"IF(RIGHT(D43,1)=\"B\",CONCATENATE(LEFT(D43,LEN(D43)-1)+1,\"A\"),D43+1)","v":"3A"},null,null,{"$f":"G42+1","v":3},"Scheibe: 3A",{"$f":"IF(RIGHT(I43,1)=\"B\",CONCATENATE(LEFT(I43,LEN(I43)-1)+1,\"A\"),I43+1)","v":"3A"},null,null,{"$f":"L42+1","v":3},"Scheibe: 3A",{"$f":"IF(RIGHT(N43,1)=\"B\",CONCATENATE(LEFT(N43,LEN(N43)-1)+1,\"A\"),N43+1)","v":"3A"},null,null,{"$f":"Q42+1","v":3},"Scheibe: 3A",{"$f":"IF(RIGHT(S43,1)=\"B\",CONCATENATE(LEFT(S43,LEN(S43)-1)+1,\"A\"),S43+1)","v":"3A"}]
[null,null,"Scheibe: 3B",{"$f":"IF(RIGHT(D44,1)=\"A\",CONCATENATE(LEFT(D44,LEN(D44)-1),\"B\"),D44+1)","v":"3B"},null,null,null,"Scheibe: 3B",{"$f":"IF(RIGHT(I44,1)=\"A\",CONCATENATE(LEFT(I44,LEN(I44)-1),\"B\"),I44+1)","v":"3B"},null,null,null,"Scheibe: 3B",{"$f":"IF(RIGHT(N44,1)=\"A\",CONCATENATE(LEFT(N44,LEN(N44)-1),\"B\"),N44+1)","v":"3B"},null,null,null,"Scheibe: 3B",{"$f":"IF(RIGHT(S44,1)=\"A\",CONCATENATE(LEFT(S44,LEN(S44)-1),\"B\"),S44+1)","v":"3B"}]
[null,{"$f":"B44+1","v":4},"Scheibe: 4A",{"$f":"IF(RIGHT(D45,1)=\"B\",CONCATENATE(LEFT(D45,LEN(D45)-1)+1,\"A\"),D45+1)","v":"4A"},null,null,{"$f":"G44+1","v":4},"Scheibe: 4A",{"$f":"IF(RIGHT(I45,1)=\"B\",CONCATENATE(LEFT(I45,LEN(I45)-1)+1,\"A\"),I45+1)","v":"4A"},null,null,{"$f":"L44+1","v":4},"Scheibe: 4A",{"$f":"IF(RIGHT(N45,1)=\"B\",CONCATENATE(LEFT(N45,LEN(N45)-1)+1,\"A\"),N45+1)","v":"4A"},null,null,{"$f":"Q44+1","v":4},"Scheibe: 4A",{"$f":"IF(RIGHT(S45,1)=\"B\",CONCATENATE(LEFT(S45,LEN(S45)-1)+1,\"A\"),S45+1)","v":"4A"}]
[null,null,"Scheibe: 4B",{"$f":"IF(RIGHT(D46,1)=\"A\",CONCATENATE(LEFT(D46,LEN(D46)-1),\"B\"),D46+1)","v":"4B"},null,null,null,"Scheibe: 4B",{"$f":"IF(RIGHT(I46,1)=\"A\",CONCATENATE(LEFT(I46,LEN(I46)-1),\"B\"),I46+1)","v":"4B"},null,null,null,"Scheibe: 4B",{"$f":"IF(RIGHT(N46,1)=\"A\",CONCATENATE(LEFT(N46,LEN(N46)-1),\"B\"),N46+1)","v":"4B"},null,null,null,"Scheibe: 4B",{"$f":"IF(RIGHT(S46,1)=\"A\",CONCATENATE(LEFT(S46,LEN(S46)-1),\"B\"),S46+1)","v":"4B"}]
[null,{"$f":"B46+1","v":5},"Scheibe: 5A",{"$f":"IF(RIGHT(D47,1)=\"B\",CONCATENATE(LEFT(D47,LEN(D47)-1)+1,\"A\"),D47+1)","v":"5A"},null,null,{"$f":"G46+1","v":5},"Scheibe: 5A",{"$f":"IF(RIGHT(I47,1)=\"B\",CONCATENATE(LEFT(I47,LEN(I47)-1)+1,\"A\"),I47+1)","v":"5A"},null,null,{"$f":"L46+1","v":5},"Scheibe: 5A",{"$f":"IF(RIGHT(N47,1)=\"B\",CONCATENATE(LEFT(N47,LEN(N47)-1)+1,\"A\"),N47+1)","v":"5A"},null,null,{"$f":"Q46+1","v":5},"Scheibe: 5A",{"$f":"IF(RIGHT(S47,1)=\"B\",CONCATENATE(LEFT(S47,LEN(S47)-1)+1,\"A\"),S47+1)","v":"5A"}]
[null,null,"Scheibe: 5B",{"$f":"IF(RIGHT(D48,1)=\"A\",CONCATENATE(LEFT(D48,LEN(D48)-1),\"B\"),D48+1)","v":"5B"},null,null,null,"Scheibe: 5B",{"$f":"IF(RIGHT(I48,1)=\"A\",CONCATENATE(LEFT(I48,LEN(I48)-1),\"B\"),I48+1)","v":"5B"},null,null,null,"Scheibe: 5B",{"$f":"IF(RIGHT(N48,1)=\"A\",CONCATENATE(LEFT(N48,LEN(N48)-1),\"B\"),N48+1)","v":"5B"},null,null,null,"Scheibe: 5B",{"$f":"IF(RIGHT(S48,1)=\"A\",CONCATENATE(LEFT(S48,LEN(S48)-1),\"B\"),S48+1)","v":"5B"}]
[null,{"$f":"B48+1","v":6},"Scheibe: 6A",{"$f":"IF(RIGHT(D49,1)=\"B\",CONCATENATE(LEFT(D49,LEN(D49)-1)+1,\"A\"),D49+1)","v":"6A"},null,null,{"$f":"G48+1","v":6},"Scheibe: 6A",{"$f":"IF(RIGHT(I49,1)=\"B\",CONCATENATE(LEFT(I49,LEN(I49)-1)+1,\"A\"),I49+1)","v":"6A"},null,null,{"$f":"L48+1","v":6},"Scheibe: 6A",{"$f":"IF(RIGHT(N49,1)=\"B\",CONCATENATE(LEFT(N49,LEN(N49)-1)+1,\"A\"),N49+1)","v":"6A"},null,null,{"$f":"Q48+1","v":6},"Scheibe: 6A",{"$f":"IF(RIGHT(S49,1)=\"B\",CONCATENATE(LEFT(S49,LEN(S49)-1)+1,\"A\"),S49+1)","v":"6A"}]
[null,null,"Scheibe: 6B",{"$f":"IF(RIGHT(D50,1)=\"A\",CONCATENATE(LEFT(D50,LEN(D50)-1),\"B\"),D50+1)","v":"6B"},null,null,null,"Scheibe: 6B",{"$f":"IF(RIGHT(I50,1)=\"A\",CONCATENATE(LEFT(I50,LEN(I50)-1),\"B\"),I50+1)","v":"6B"},null,null,null,"Scheibe: 6B",{"$f":"IF(RIGHT(N50,1)=\"A\",CONCATENATE(LEFT(N50,LEN(N50)-1),\"B\"),N50+1)","v":"6B"},null,null,null,"Scheibe: 6B",{"$f":"IF(RIGHT(S50,1)=\"A\",CONCATENATE(LEFT(S50,LEN(S50)-1),\"B\"),S50+1)","v":"6B"}]
[null,{"$f":"B50+1","v":7},"Scheibe: 7A",{"$f":"IF(RIGHT(D51,1)=\"B\",CONCATENATE(LEFT(D51,LEN(D51)-1)+1,\"A\"),D51+1)","v":"7A"},null,null,{"$f":"G50+1","v":7},"Scheibe: 7A",{"$f":"IF(RIGHT(I51,1)=\"B\",CONCATENATE(LEFT(I51,LEN(I51)-1)+1,\"A\"),I51+1)","v":"7A"},null,null,{"$f":"L50+1","v":7},"Scheibe: 7A",{"$f":"IF(RIGHT(N51,1)=\"B\",CONCATENATE(LEFT(N51,LEN(N51)-1)+1,\"A\"),N51+1)","v":"7A"},null,null,{"$f":"Q50+1","v":7},"Scheibe: 7A",{"$f":"IF(RIGHT(S51,1)=\"B\",CONCATENATE(LEFT(S51,LEN(S51)-1)+1,\"A\"),S51+1)","v":"7A"}]
[null,null,"Scheibe: 7B",{"$f":"IF(RIGHT(D52,1)=\"A\",CONCATENATE(LEFT(D52,LEN(D52)-1),\"B\"),D52+1)","v":"7B"},null,null,null,"Scheibe: 7B",{"$f":"IF(RIGHT(I52,1)=\"A\",CONCATENATE(LEFT(I52,LEN(I52)-1),\"B\"),I52+1)","v":"7B"},null,null,null,"Scheibe: 7B",{"$f":"IF(RIGHT(N52,1)=\"A\",CONCATENATE(LEFT(N52,LEN(N52)-1),\"B\"),N52+1)","v":"7B"},null,null,null,"Scheibe: 7B",{"$f":"IF(RIGHT(S52,1)=\"A\",CONCATENATE(LEFT(S52,LEN(S52)-1),\"B\"),S52+1)","v":"7B"}]
[null,{"$f":"B52+1","v":8},"Scheibe: 8A",{"$f":"IF(RIGHT(D53,1)=\"B\",CONCATENATE(LEFT(D53,LEN(D53)-1)+1,\"A\"),D53+1)","v":"8A"},null,null,{"$f":"G52+1","v":8},"Scheibe: 8A",{"$f":"IF(RIGHT(I53,1)=\"B\",CONCATENATE(LEFT(I53,LEN(I53)-1)+1,\"A\"),I53+1)","v":"8A"},null,null,{"$f":"L52+1","v":8},"Scheibe: 8A",{"$f":"IF(RIGHT(N53,1)=\"B\",CONCATENATE(LEFT(N53,LEN(N53)-1)+1,\"A\"),N53+1)","v":"8A"},null,null,{"$f":"Q52+1","v":8},"Scheibe: 8A",{"$f":"IF(RIGHT(S53,1)=\"B\",CONCATENATE(LEFT(S53,LEN(S53)-1)+1,\"A\"),S53+1)","v":"8A"}]
[null,null,"Scheibe: 8B",{"$f":"IF(RIGHT(D54,1)=\"A\",CONCATENATE(LEFT(D54,LEN(D54)-1),\"B\"),D54+1)","v":"8B"},null,null,null,"Scheibe: 8B",{"$f":"IF(RIGHT(I54,1)=\"A\",CONCATENATE(LEFT(I54,LEN(I54)-1),\"B\"),I54+1)","v":"8B"},null,null,null,"Scheibe: 8B",{"$f":"IF(RIGHT(N54,1)=\"A\",CONCATENATE(LEFT(N54,LEN(N54)-1),\"B\"),N54+1)","v":"8B"},null,null,null,"Scheibe: 8B",{"$f":"IF(RIGHT(S54,1)=\"A\",CONCATENATE(LEFT(S54,LEN(S54)-1),\"B\"),S54+1)","v":"8B"}]
[null,{"$f":"B54+1","v":9},"Scheibe: 9A",{"$f":"IF(RIGHT(D55,1)=\"B\",CONCATENATE(LEFT(D55,LEN(D55)-1)+1,\"A\"),D55+1)","v":"9A"},null,null,{"$f":"G54+1","v":9},"Scheibe: 9A",{"$f":"IF(RIGHT(I55,1)=\"B\",CONCATENATE(LEFT(I55,LEN(I55)-1)+1,\"A\"),I55+1)","v":"9A"},null,null,{"$f":"L54+1","v":9},"Scheibe: 9A",{"$f":"IF(RIGHT(N55,1)=\"B\",CONCATENATE(LEFT(N55,LEN(N55)-1)+1,\"A\"),N55+1)","v":"9A"},null,null,{"$f":"Q54+1","v":9},"Scheibe: 9A",{"$f":"IF(RIGHT(S55,1)=\"B\",CONCATENATE(LEFT(S55,LEN(S55)-1)+1,\"A\"),S55+1)","v":"9A"}]
[null,null,"Scheibe: 9B",{"$f":"IF(RIGHT(D56,1)=\"A\",CONCATENATE(LEFT(D56,LEN(D56)-1),\"B\"),D56+1)","v":"9B"},null,null,null,"Scheibe: 9B",{"$f":"IF(RIGHT(I56,1)=\"A\",CONCATENATE(LEFT(I56,LEN(I56)-1),\"B\"),I56+1)","v":"9B"},null,null,null,"Scheibe: 9B",{"$f":"IF(RIGHT(N56,1)=\"A\",CONCATENATE(LEFT(N56,LEN(N56)-1),\"B\"),N56+1)","v":"9B"},null,null,null,"Scheibe: 9B",{"$f":"IF(RIGHT(S56,1)=\"A\",CONCATENATE(LEFT(S56,LEN(S56)-1),\"B\"),S56+1)","v":"9B"}]
[null,{"$f":"B56+1","v":10},"Scheibe: 10A",{"$f":"IF(RIGHT(D57,1)=\"B\",CONCATENATE(LEFT(D57,LEN(D57)-1)+1,\"A\"),D57+1)","v":"10A"},null,null,{"$f":"G56+1","v":10},"Scheibe: 10A",{"$f":"IF(RIGHT(I57,1)=\"B\",CONCATENATE(LEFT(I57,LEN(I57)-1)+1,\"A\"),I57+1)","v":"10A"},null,null,{"$f":"L56+1","v":10},"Scheibe: 10A",{"$f":"IF(RIGHT(N57,1)=\"B\",CONCATENATE(LEFT(N57,LEN(N57)-1)+1,\"A\"),N57+1)","v":"10A"},null,null,{"$f":"Q56+1","v":10},"Scheibe: 10A",{"$f":"IF(RIGHT(S57,1)=\"B\",CONCATENATE(LEFT(S57,LEN(S57)-1)+1,\"A\"),S57+1)","v":"10A"}]
[null,null,"Scheibe: 10B",{"$f":"IF(RIGHT(D58,1)=\"A\",CONCATENATE(LEFT(D58,LEN(D58)-1),\"B\"),D58+1)","v":"10B"},null,null,null,"Scheibe: 10B",{"$f":"IF(RIGHT(I58,1)=\"A\",CONCATENATE(LEFT(I58,LEN(I58)-1),\"B\"),I58+1)","v":"10B"},null,null,null,"Scheibe: 10B",{"$f":"IF(RIGHT(N58,1)=\"A\",CONCATENATE(LEFT(N58,LEN(N58)-1),\"B\"),N58+1)","v":"10B"},null,null,null,"Scheibe: 10B",{"$f":"IF(RIGHT(S58,1)=\"A\",CONCATENATE(LEFT(S58,LEN(S58)-1),\"B\"),S58+1)","v":"10B"}]
[null,{"$f":"B58+1","v":11},"Scheibe: 11A",{"$f":"IF(RIGHT(D59,1)=\"B\",CONCATENATE(LEFT(D59,LEN(D59)-1)+1,\"A\"),D59+1)","v":"11A"},null,null,{"$f":"G58+1","v":11},"Scheibe: 11A",{"$f":"IF(RIGHT(I59,1)=\"B\",CONCATENATE(LEFT(I59,LEN(I59)-1)+1,\"A\"),I59+1)","v":"11A"},null,null,{"$f":"L58+1","v":11},"Scheibe: 11A",{"$f":"IF(RIGHT(N59,1)=\"B\",CONCATENATE(LEFT(N59,LEN(N59)-1)+1,\"A\"),N59+1)","v":"11A"},null,null,{"$f":"Q58+1","v":11},"Scheibe: 11A",{"$f":"IF(RIGHT(S59,1)=\"B\",CONCATENATE(LEFT(S59,LEN(S59)-1)+1,\"A\"),S59+1)","v":"11A"}]
[null,null,"Scheibe: 11B",{"$f":"IF(RIGHT(D60,1)=\"A\",CONCATENATE(LEFT(D60,LEN(D60)-1),\"B\"),D60+1)","v":"11B"},null,null,null,"Scheibe: 11B",{"$f":"IF(RIGHT(I60,1)=\"A\",CONCATENATE(LEFT(I60,LEN(I60)-1),\"B\"),I60+1)","v":"11B"},null,null,null,"Scheibe: 11B",{"$f":"IF(RIGHT(N60,1)=\"A\",CONCATENATE(LEFT(N60,LEN(N60)-1),\"B\"),N60+1)","v":"11B"},null,null,null,"Scheibe: 11B",{"$f":"IF(RIGHT(S60,1)=\"A\",CONCATENATE(LEFT(S60,LEN(S60)-1),\"B\"),S60+1)","v":"11B"}]
[null,{"$f":"B60+1","v":12},"Scheibe: 12A",{"$f":"IF(RIGHT(D61,1)=\"B\",CONCATENATE(LEFT(D61,LEN(D61)-1)+1,\"A\"),D61+1)","v":"12A"},null,null,{"$f":"G60+1","v":12},"Scheibe: 12A",{"$f":"IF(RIGHT(I61,1)=\"B\",CONCATENATE(LEFT(I61,LEN(I61)-1)+1,\"A\"),I61+1)","v":"12A"},null,null,{"$f":"L60+1","v":12},"Scheibe: 12A",{"$f":"IF(RIGHT(N61,1)=\"B\",CONCATENATE(LEFT(N61,LEN(N61)-1)+1,\"A\"),N61+1)","v":"12A"},null,null,{"$f":"Q60+1","v":12},"Scheibe: 12A",{"$f":"IF(RIGHT(S61,1)=\"B\",CONCATENATE(LEFT(S61,LEN(S61)-1)+1,\"A\"),S61+1)","v":"12A"}]
[null,null,"Scheibe: 12B",{"$f":"IF(RIGHT(D62,1)=\"A\",CONCATENATE(LEFT(D62,LEN(D62)-1),\"B\"),D62+1)","v":"12B"},null,null,null,"Scheibe: 12B",{"$f":"IF(RIGHT(I62,1)=\"A\",CONCATENATE(LEFT(I62,LEN(I62)-1),\"B\"),I62+1)","v":"12B"},null,null,null,"Scheibe: 12B",{"$f":"IF(RIGHT(N62,1)=\"A\",CONCATENATE(LEFT(N62,LEN(N62)-1),\"B\"),N62+1)","v":"12B"},null,null,null,"Scheibe: 12B",{"$f":"IF(RIGHT(S62,1)=\"A\",CONCATENATE(LEFT(S62,LEN(S62)-1),\"B\"),S62+1)","v":"12B"}]
[null,{"$f":"B62+1","v":13},"Scheibe: 13A",{"$f":"IF(RIGHT(D63,1)=\"B\",CONCATENATE(LEFT(D63,LEN(D63)-1)+1,\"A\"),D63+1)","v":"13A"},null,null,{"$f":"G62+1","v":13},"Scheibe: 13A",{"$f":"IF(RIGHT(I63,1)=\"B\",CONCATENATE(LEFT(I63,LEN(I63)-1)+1,\"A\"),I63+1)","v":"13A"},null,null,{"$f":"L62+1","v":13},"Scheibe: 13A",{"$f":"IF(RIGHT(N63,1)=\"B\",CONCATENATE(LEFT(N63,LEN(N63)-1)+1,\"A\"),N63+1)","v":"13A"},null,null,{"$f":"Q62+1","v":13},"Scheibe: 13A",{"$f":"IF(RIGHT(S63,1)=\"B\",CONCATENATE(LEFT(S63,LEN(S63)-1)+1,\"A\"),S63+1)","v":"13A"}]
[null,null,"Scheibe: 13B",{"$f":"IF(RIGHT(D64,1)=\"A\",CONCATENATE(LEFT(D64,LEN(D64)-1),\"B\"),D64+1)","v":"13B"},null,null,null,"Scheibe: 13B",{"$f":"IF(RIGHT(I64,1)=\"A\",CONCATENATE(LEFT(I64,LEN(I64)-1),\"B\"),I64+1)","v":"13B"},null,null,null,"Scheibe: 13B",{"$f":"IF(RIGHT(N64,1)=\"A\",CONCATENATE(LEFT(N64,LEN(N64)-1),\"B\"),N64+1)","v":"13B"},null,null,null,"Scheibe: 13B",{"$f":"IF(RIGHT(S64,1)=\"A\",CONCATENATE(LEFT(S64,LEN(S64)-1),\"B\"),S64+1)","v":"13B"}]
[null,{"$f":"B64+1","v":14},"Scheibe: 14A",{"$f":"IF(RIGHT(D65,1)=\"B\",CONCATENATE(LEFT(D65,LEN(D65)-1)+1,\"A\"),D65+1)","v":"14A"},null,null,{"$f":"G64+1","v":14},"Scheibe: 14A",{"$f":"IF(RIGHT(I65,1)=\"B\",CONCATENATE(LEFT(I65,LEN(I65)-1)+1,\"A\"),I65+1)","v":"14A"},null,null,{"$f":"L64+1","v":14},"Scheibe: 14A",{"$f":"IF(RIGHT(N65,1)=\"B\",CONCATENATE(LEFT(N65,LEN(N65)-1)+1,\"A\"),N65+1)","v":"14A"},null,null,{"$f":"Q64+1","v":14},"Scheibe: 14A",{"$f":"IF(RIGHT(S65,1)=\"B\",CONCATENATE(LEFT(S65,LEN(S65)-1)+1,\"A\"),S65+1)","v":"14A"}]
[null,null,"Scheibe: 14B",{"$f":"IF(RIGHT(D66,1)=\"A\",CONCATENATE(LEFT(D66,LEN(D66)-1),\"B\"),D66+1)","v":"14B"},null,null,null,"Scheibe: 14B",{"$f":"IF(RIGHT(I66,1)=\"A\",CONCATENATE(LEFT(I66,LEN(I66)-1),\"B\"),I66+1)","v":"14B"},null,null,null,"Scheibe: 14B",{"$f":"IF(RIGHT(N66,1)=\"A\",CONCATENATE(LEFT(N66,LEN(N66)-1),\"B\"),N66+1)","v":"14B"},null,null,null,"Scheibe: 14B",{"$f":"IF(RIGHT(S66,1)=\"A\",CONCATENATE(LEFT(S66,LEN(S66)-1),\"B\"),S66+1)","v":"14B"}]
[null,{"$f":"B66+1","v":15},"Scheibe: 15A",{"$f":"IF(RIGHT(D67,1)=\"B\",CONCATENATE(LEFT(D67,LEN(D67)-1)+1,\"A\"),D67+1)","v":"15A"},null,null,{"$f":"G66+1","v":15},"Scheibe: 15A",{"$f":"IF(RIGHT(I67,1)=\"B\",CONCATENATE(LEFT(I67,LEN(I67)-1)+1,\"A\"),I67+1)","v":"15A"},null,null,{"$f":"L66+1","v":15},"Scheibe: 15A",{"$f":"IF(RIGHT(N67,1)=\"B\",CONCATENATE(LEFT(N67,LEN(N67)-1)+1,\"A\"),N67+1)","v":"15A"},null,null,{"$f":"Q66+1","v":15},"Scheibe: 15A",{"$f":"IF(RIGHT(S67,1)=\"B\",CONCATENATE(LEFT(S67,LEN(S67)-1)+1,\"A\"),S67+1)","v":"15A"}]
[null,null,"Scheibe: 15B",{"$f":"IF(RIGHT(D68,1)=\"A\",CONCATENATE(LEFT(D68,LEN(D68)-1),\"B\"),D68+1)","v":"15B"},null,null,null,"Scheibe: 15B",{"$f":"IF(RIGHT(I68,1)=\"A\",CONCATENATE(LEFT(I68,LEN(I68)-1),\"B\"),I68+1)","v":"15B"},null,null,null,"Scheibe: 15B",{"$f":"IF(RIGHT(N68,1)=\"A\",CONCATENATE(LEFT(N68,LEN(N68)-1),\"B\"),N68+1)","v":"15B"},null,null,null,"Scheibe: 15B",{"$f":"IF(RIGHT(S68,1)=\"A\",CONCATENATE(LEFT(S68,LEN(S68)-1),\"B\"),S68+1)","v":"15B"}]
[null,{"$f":"B68+1","v":16},"Scheibe: 16A",{"$f":"IF(RIGHT(D69,1)=\"B\",CONCATENATE(LEFT(D69,LEN(D69)-1)+1,\"A\"),D69+1)","v":"16A"},null,null,{"$f":"G68+1","v":16},"Scheibe: 16A",{"$f":"IF(RIGHT(I69,1)=\"B\",CONCATENATE(LEFT(I69,LEN(I69)-1)+1,\"A\"),I69+1)","v":"16A"},null,null,{"$f":"L68+1","v":16},"Scheibe: 16A",{"$f":"IF(RIGHT(N69,1)=\"B\",CONCATENATE(LEFT(N69,LEN(N69)-1)+1,\"A\"),N69+1)","v":"16A"},null,null,{"$f":"Q68+1","v":16},"Scheibe: 16A",{"$f":"IF(RIGHT(S69,1)=\"B\",CONCATENATE(LEFT(S69,LEN(S69)-1)+1,\"A\"),S69+1)","v":"16A"}]
[null,null,"Scheibe: 16B",{"$f":"IF(RIGHT(D70,1)=\"A\",CONCATENATE(LEFT(D70,LEN(D70)-1),\"B\"),D70+1)","v":"16B"},null,null,null,"Scheibe: 16B",{"$f":"IF(RIGHT(I70,1)=\"A\",CONCATENATE(LEFT(I70,LEN(I70)-1),\"B\"),I70+1)","v":"16B"},null,null,null,"Scheibe: 16B",{"$f":"IF(RIGHT(N70,1)=\"A\",CONCATENATE(LEFT(N70,LEN(N70)-1),\"B\"),N70+1)","v":"16B"},null,null,null,"Scheibe: 16B",{"$f":"IF(RIGHT(S70,1)=\"A\",CONCATENATE(LEFT(S70,LEN(S70)-1),\"B\"),S70+1)","v":"16B"}]

{"sheet":"Ergebnis","index":2,"n_rows":27,"n_cols":9,"rows_kept":27,"cut":false,"hidden":false,"merged":[[2,0,2,1],[3,0,3,1],[5,0,5,1],[0,0,0,1],[7,0,7,1]]}
[{"$f":"Quali!A1","v":"Trainingsturnier"}]
[]
[{"$f":"Quali!A3","v":"15. Mai 2022"}]
[{"$f":"Quali!A4","v":"Zwettl"}]
[]
[{"$f":"Quali!A6","v":"Compound"}]
[]
["Ergebnis"]
[]
[]
["Pl.","Name","Verein","Land","Quali.","1/8","1/4","1/2","F"]
[1,{"$f":"Finale16alle!W2","v":""},{"$f":"IFERROR(VLOOKUP(B12,Quali!$C$12:$H$27,2,FALSE),\" \")","v":" "}," ",{"$f":"IFERROR(VLOOKUP(B12,Quali!$C$12:$H$27,4,FALSE),\" \")","v":" "},{"$f":"IFERROR(VLOOKUP(B12,Finale16alle!$C$2:$D$31,2,FALSE),\" \")","v":" "},{"$f":"IFERROR(VLOOKUP(B12,Finale16alle!$H$2:$I$31,2,FALSE),\" \")","v":0},{"$f":"IFERROR(VLOOKUP(B12,Finale16alle!$M$2:$N$31,2,FALSE),\" \")","v":0},{"$f":"IFERROR(VLOOKUP(B12,Finale16alle!$R$2:$S$31,2,FALSE),\" \")","v":0}]
[2,{"$f":"Finale16alle!W3","v":""},{"$f":"IFERROR(VLOOKUP(B13,Quali!$C$12:$H$27,2,FALSE),\" \")","v":" "}," ",{"$f":"IFERROR(VLOOKUP(B13,Quali!$C$12:$H$27,4,FALSE),\" \")","v":" "},{"$f":"IFERROR(VLOOKUP(B13,Finale16alle!$C$2:$D$31,2,FALSE),\" \")","v":" "},{"$f":"IFERROR(VLOOKUP(B13,Finale16alle!$H$2:$I$31,2,FALSE),\" \")","v":0},{"$f":"IFERROR(VLOOKUP(B13,Finale16alle!$M$2:$N$31,2,FALSE),\" \")","v":0},{"$f":"IFERROR(VLOOKUP(B13,Finale16alle!$R$2:$S$31,2,FALSE),\" \")","v":0}]
[3,{"$f":"Finale16alle!W6","v":""},{"$f":"IFERROR(VLOOKUP(B14,Quali!$C$12:$H$27,2,FALSE),\" \")","v":" "}," ",{"$f":"IFERROR(VLOOKUP(B14,Quali!$C$12:$H$27,4,FALSE),\" \")","v":" "},{"$f":"IFERROR(VLOOKUP(B14,Finale16alle!$C$2:$D$31,2,FALSE),\" \")","v":" "},{"$f":"IFERROR(VLOOKUP(B14,Finale16alle!$H$2:$I$31,2,FALSE),\" \")","v":0},{"$f":"IFERROR(VLOOKUP(B14,Finale16alle!$M$2:$N$31,2,FALSE),\" \")","v":0},{"$f":"IFERROR(VLOOKUP(B14,Finale16alle!$R$2:$S$31,2,FALSE),\" \")","v":0}]
[4,{"$f":"Finale16alle!W7","v":""},{"$f":"IFERROR(VLOOKUP(B15,Quali!$C$12:$H$27,2,FALSE),\" \")","v":" "}," ",{"$f":"IFERROR(VLOOKUP(B15,Quali!$C$12:$H$27,4,FALSE),\" \")","v":" "},{"$f":"IFERROR(VLOOKUP(B15,Finale16alle!$C$2:$D$31,2,FALSE),\" \")","v":" "},{"$f":"IFERROR(VLOOKUP(B15,Finale16alle!$H$2:$I$31,2,FALSE),\" \")","v":0},{"$f":"IFERROR(VLOOKUP(B15,Finale16alle!$M$2:$N$31,2,FALSE),\" \")","v":0},{"$f":"IFERROR(VLOOKUP(B15,Finale16alle!$R$2:$S$31,2,FALSE),\" \")","v":0}]
[5,{"$f":"Finale16alle!W10","v":""},{"$f":"IFERROR(VLOOKUP(B16,Quali!$C$12:$H$27,2,FALSE),\" \")","v":" "}," ",{"$f":"IFERROR(VLOOKUP(B16,Quali!$C$12:$H$27,4,FALSE),\" \")","v":" "},{"$f":"IFERROR(VLOOKUP(B16,Finale16alle!$C$2:$D$31,2,FALSE),\" \")","v":" "},{"$f":"IFERROR(VLOOKUP(B16,Finale16alle!$H$2:$I$31,2,FALSE),\" \")","v":0},{"$f":"IFERROR(VLOOKUP(B16,Finale16alle!$M$2:$N$31,2,FALSE),\" \")","v":0},{"$f":"IFERROR(VLOOKUP(B16,Finale16alle!$R$2:$S$31,2,FALSE),\" \")","v":0}]
[6,{"$f":"Finale16alle!W11","v":""},{"$f":"IFERROR(VLOOKUP(B17,Quali!$C$12:$H$27,2,FALSE),\" \")","v":" "}," ",{"$f":"IFERROR(VLOOKUP(B17,Quali!$C$12:$H$27,4,FALSE),\" \")","v":" "},{"$f":"IFERROR(VLOOKUP(B17,Finale16alle!$C$2:$D$31,2,FALSE),\" \")","v":" "},{"$f":"IFERROR(VLOOKUP(B17,Finale16alle!$H$2:$I$31,2,FALSE),\" \")","v":0},{"$f":"IFERROR(VLOOKUP(B17,Finale16alle!$M$2:$N$31,2,FALSE),\" \")","v":0},{"$f":"IFERROR(VLOOKUP(B17,Finale16alle!$R$2:$S$31,2,FALSE),\" \")","v":0}]
[7,{"$f":"Finale16alle!W14","v":""},{"$f":"IFERROR(VLOOKUP(B18,Quali!$C$12:$H$27,2,FALSE),\" \")","v":" "}," ",{"$f":"IFERROR(VLOOKUP(B18,Quali!$C$12:$H$27,4,FALSE),\" \")","v":" "},{"$f":"IFERROR(VLOOKUP(B18,Finale16alle!$C$2:$D$31,2,FALSE),\" \")","v":" "},{"$f":"IFERROR(VLOOKUP(B18,Finale16alle!$H$2:$I$31,2,FALSE),\" \")","v":0},{"$f":"IFERROR(VLOOKUP(B18,Finale16alle!$M$2:$N$31,2,FALSE),\" \")","v":0},{"$f":"IFERROR(VLOOKUP(B18,Finale16alle!$R$2:$S$31,2,FALSE),\" \")","v":0}]
[8,{"$f":"Finale16alle!W15","v":""},{"$f":"IFERROR(VLOOKUP(B19,Quali!$C$12:$H$27,2,FALSE),\" \")","v":" "}," ",{"$f":"IFERROR(VLOOKUP(B19,Quali!$C$12:$H$27,4,FALSE),\" \")","v":" "},{"$f":"IFERROR(VLOOKUP(B19,Finale16alle!$C$2:$D$31,2,FALSE),\" \")","v":" "},{"$f":"IFERROR(VLOOKUP(B19,Finale16alle!$H$2:$I$31,2,FALSE),\" \")","v":0},{"$f":"IFERROR(VLOOKUP(B19,Finale16alle!$M$2:$N$31,2,FALSE),\" \")","v":0},{"$f":"IFERROR(VLOOKUP(B19,Finale16alle!$R$2:$S$31,2,FALSE),\" \")","v":0}]
[9,{"$f":"Finale16alle!W18","v":""},{"$f":"IFERROR(VLOOKUP(B20,Quali!$C$12:$H$27,2,FALSE),\" \")","v":" "}," ",{"$f":"IFERROR(VLOOKUP(B20,Quali!$C$12:$H$27,4,FALSE),\" \")","v":" "},{"$f":"IFERROR(VLOOKUP(B20,Finale16alle!$C$2:$D$31,2,FALSE),\" \")","v":" "},{"$f":"IFERROR(VLOOKUP(B20,Finale16alle!$H$2:$I$31,2,FALSE),\" \")","v":0},{"$f":"IFERROR(VLOOKUP(B20,Finale16alle!$M$2:$N$31,2,FALSE),\" \")","v":0},{"$f":"IFERROR(VLOOKUP(B20,Finale16alle!$R$2:$S$31,2,FALSE),\" \")","v":0}]
[10,{"$f":"Finale16alle!W19","v":""},{"$f":"IFERROR(VLOOKUP(B21,Quali!$C$12:$H$27,2,FALSE),\" \")","v":" "}," ",{"$f":"IFERROR(VLOOKUP(B21,Quali!$C$12:$H$27,4,FALSE),\" \")","v":" "},{"$f":"IFERROR(VLOOKUP(B21,Finale16alle!$C$2:$D$31,2,FALSE),\" \")","v":" "},{"$f":"IFERROR(VLOOKUP(B21,Finale16alle!$H$2:$I$31,2,FALSE),\" \")","v":0},{"$f":"IFERROR(VLOOKUP(B21,Finale16alle!$M$2:$N$31,2,FALSE),\" \")","v":0},{"$f":"IFERROR(VLOOKUP(B21,Finale16alle!$R$2:$S$31,2,FALSE),\" \")","v":0}]
[11,{"$f":"Finale16alle!W22","v":""},{"$f":"IFERROR(VLOOKUP(B22,Quali!$C$12:$H$27,2,FALSE),\" \")","v":" "}," ",{"$f":"IFERROR(VLOOKUP(B22,Quali!$C$12:$H$27,4,FALSE),\" \")","v":" "},{"$f":"IFERROR(VLOOKUP(B22,Finale16alle!$C$2:$D$31,2,FALSE),\" \")","v":" "},{"$f":"IFERROR(VLOOKUP(B22,Finale16alle!$H$2:$I$31,2,FALSE),\" \")","v":0},{"$f":"IFERROR(VLOOKUP(B22,Finale16alle!$M$2:$N$31,2,FALSE),\" \")","v":0},{"$f":"IFERROR(VLOOKUP(B22,Finale16alle!$R$2:$S$31,2,FALSE),\" \")","v":0}]
[12,{"$f":"Finale16alle!W23","v":""},{"$f":"IFERROR(VLOOKUP(B23,Quali!$C$12:$H$27,2,FALSE),\" \")","v":" "}," ",{"$f":"IFERROR(VLOOKUP(B23,Quali!$C$12:$H$27,4,FALSE),\" \")","v":" "},{"$f":"IFERROR(VLOOKUP(B23,Finale16alle!$C$2:$D$31,2,FALSE),\" \")","v":" "},{"$f":"IFERROR(VLOOKUP(B23,Finale16alle!$H$2:$I$31,2,FALSE),\" \")","v":0},{"$f":"IFERROR(VLOOKUP(B23,Finale16alle!$M$2:$N$31,2,FALSE),\" \")","v":0},{"$f":"IFERROR(VLOOKUP(B23,Finale16alle!$R$2:$S$31,2,FALSE),\" \")","v":0}]
[13,{"$f":"Finale16alle!W26","v":""},{"$f":"IFERROR(VLOOKUP(B24,Quali!$C$12:$H$27,2,FALSE),\" \")","v":" "}," ",{"$f":"IFERROR(VLOOKUP(B24,Quali!$C$12:$H$27,4,FALSE),\" \")","v":" "},{"$f":"IFERROR(VLOOKUP(B24,Finale16alle!$C$2:$D$31,2,FALSE),\" \")","v":" "},{"$f":"IFERROR(VLOOKUP(B24,Finale16alle!$H$2:$I$31,2,FALSE),\" \")","v":0},{"$f":"IFERROR(VLOOKUP(B24,Finale16alle!$M$2:$N$31,2,FALSE),\" \")","v":0},{"$f":"IFERROR(VLOOKUP(B24,Finale16alle!$R$2:$S$31,2,FALSE),\" \")","v":0}]
[14,{"$f":"Finale16alle!W27","v":""},{"$f":"IFERROR(VLOOKUP(B25,Quali!$C$12:$H$27,2,FALSE),\" \")","v":" "}," ",{"$f":"IFERROR(VLOOKUP(B25,Quali!$C$12:$H$27,4,FALSE),\" \")","v":" "},{"$f":"IFERROR(VLOOKUP(B25,Finale16alle!$C$2:$D$31,2,FALSE),\" \")","v":" "},{"$f":"IFERROR(VLOOKUP(B25,Finale16alle!$H$2:$I$31,2,FALSE),\" \")","v":0},{"$f":"IFERROR(VLOOKUP(B25,Finale16alle!$M$2:$N$31,2,FALSE),\" \")","v":0},{"$f":"IFERROR(VLOOKUP(B25,Finale16alle!$R$2:$S$31,2,FALSE),\" \")","v":0}]
[15,{"$f":"Finale16alle!W30","v":""},{"$f":"IFERROR(VLOOKUP(B26,Quali!$C$12:$H$27,2,FALSE),\" \")","v":" "}," ",{"$f":"IFERROR(VLOOKUP(B26,Quali!$C$12:$H$27,4,FALSE),\" \")","v":" "},{"$f":"IFERROR(VLOOKUP(B26,Finale16alle!$C$2:$D$31,2,FALSE),\" \")","v":" "},{"$f":"IFERROR(VLOOKUP(B26,Finale16alle!$H$2:$I$31,2,FALSE),\" \")","v":0},{"$f":"IFERROR(VLOOKUP(B26,Finale16alle!$M$2:$N$31,2,FALSE),\" \")","v":0},{"$f":"IFERROR(VLOOKUP(B26,Finale16alle!$R$2:$S$31,2,FALSE),\" \")","v":0}]
[16,{"$f":"Finale16alle!W31","v":""},{"$f":"IFERROR(VLOOKUP(B27,Quali!$C$12:$H$27,2,FALSE),\" \")","v":" "}," ",{"$f":"IFERROR(VLOOKUP(B27,Quali!$C$12:$H$27,4,FALSE),\" \")","v":" "},{"$f":"IFERROR(VLOOKUP(B27,Finale16alle!$C$2:$D$31,2,FALSE),\" \")","v":" "},{"$f":"IFERROR(VLOOKUP(B27,Finale16alle!$H$2:$I$31,2,FALSE),\" \")","v":0},{"$f":"IFERROR(VLOOKUP(B27,Finale16alle!$M$2:$N$31,2,FALSE),\" \")","v":0},{"$f":"IFERROR(VLOOKUP(B27,Finale16alle!$R$2:$S$31,2,FALSE),\" \")","v":0}]

{"sheet":"Schusszettel_R","index":3,"n_rows":574,"n_cols":25,"rows_kept":574,"cut":false,"hidden":false,"merged":[[29,5,29,6],[30,5,30,6],[29,14,29,15],[30,14,30,15],[25,9,25,16],[12,0,12,7],[3,0,3,1],[2,0,2,7],[4,0,4,7],[8,0,8,7],[10,0,10,7],[23,0,23,7],[18,18,18,21],[19,6,19,7],[18,0,18,3],[18,9,18,12],[18,4,18,5],[18,6,18,7],[25,18,25,25],[0,9,0,12],[0,13,0,16],[5,9,5,16],[11,14,11,15],[12,14,12,15],[0,18,0,21],[1,15,1,16],[11,23,11,24],[25,0,25,7],[23,9,23,16],[23,18,23,25],[36,9,36,12],[36,13,36,16],[36,18,36,21],[36,22,36,23],[36,24,36,25],[37,15,37,16],[37,24,37,25],[0,22,0,23],[0,24,0,25],[18,22,18,23],[18,24,18,25],[18,13,18,14],[18,15,18,16],[1,24,1,25],[19,15,19,16],[19,24,19,25],[5,18,5,25],[7,9,7,16],[7,18,7,25],[12,23,12,24],[29,23,29,24],[30,23,30,24],[44,0,44,7],[46,0,46,7],[47,14,47,15],[47,23,47,24],[48,0,48,7],[48,14,48,15],[48,23,48,24],[38,0,38,7],[39,0,39,1],[40,0,40,7],[41,9,41,16],[41,18,41,25],[43,9,43,16],[43,18,43,25],[59,0,59,7],[59,9,59,16],[59,18,59,25],[61,0,61,7],[61,9,61,16],[61,18,61,25],[54,18,54,21],[54,22,54,23],[54,24,54,25],[55,6,55,7],[55,15,55,16],[55,24,55,25],[54,0,54,3],[54,4,54,5],[54,6,54,7],[54,9,54,12],[54,13,54,14],[54,15,54,16],[72,9,72,12],[72,13,72,16],[72,18,72,21],[72,22,72,23],[72,24,72,25],[73,15,73,16],[73,24,73,25],[65,5,65,6],[65,14,65,15],[65,23,65,24],[66,5,66,6],[66,14,66,15],[66,23,66,24],[80,0,80,7],[82,0,82,7],[83,14,83,15],[83,23,83,24],[84,0,84,7],[84,14,84,15],[84,23,84,24],[74,0,74,7],[75,0,75,1],[76,0,76,7],[77,9,77,16],[77,18,77,25],[79,9,79,16],[79,18,79,25],[95,0,95,7],[95,9,95,16],[95,18,95,25],[97,0,97,7],[97,9,97,16],[97,18,97,25],[90,18,90,21],[90,22,90,23],[90,24,90,25],[91,6,91,7],[91,15,91,16],[91,24,91,25],[90,0,90,3],[90,4,90,5],[90,6,90,7],[90,9,90,12],[90,13,90,14],[90,15,90,16],[108,9,108,12],[108,13,108,16],[108,18,108,21],[108,22,108,23],[108,24,108,25],[109,15,109,16],[109,24,109,25],[101,5,101,6],[101,14,101,15],[101,23,101,24],[102,5,102,6],[102,14,102,15],[102,23,102,24],[116,0,116,7],[118,0,118,7],[119,14,119,15],[119,23,119,24],[120,0,120,7],[120,14,120,15],[120,23,120,24],[110,0,110,7],[111,0,111,1],[112,0,112,7],[113,9,113,16],[113,18,113,25],[115,9,115,16],[115,18,115,25],[131,0,131,7],[131,9,131,16],[131,18,131,25],[133,0,133,7],[133,9,133,16],[133,18,133,25],[126,18,126,21],[126,22,126,23],[126,24,126,25],[127,6,127,7],[127,15,127,16],[127,24,127,25],[126,0,126,3],[126,4,126,5],[126,6,126,7],[126,9,126,12],[126,13,126,14],[126,15,126,16],[144,9,144,12],[144,13,144,16],[144,18,144,21],[144,22,144,23],[144,24,144,25],[145,15,145,16],[145,24,145,25],[137,5,137,6],[137,14,137,15],[137,23,137,24],[138,5,138,6],[138,14,138,15],[138,23,138,24],[152,0,152,7],[154,0,154,7],[155,14,155,15],[155,23,155,24],[156,0,156,7],[156,14,156,15],[156,23,156,24],[146,0,146,7],[147,0,147,1],[148,0,148,7],[149,9,149,16],[149,18,149,25],[151,9,151,16],[151,18,151,25],[167,0,167,7],[167,9,167,16],[167,18,167,25],[169,0,169,7],[169,9,169,16],[169,18,169,25],[162,18,162,21],[162,22,162,23],[162,24,162,25],[163,6,163,7],[163,15,163,16],[163,24,163,25],[162,0,162,3],[162,4,162,5],[162,6,162,7],[162,9,162,12],[162,13,162,14],[162,15,162,16],[180,9,180,12],[180,13,180,16],[180,18,180,21],[180,22,180,23],[180,24,180,25],[181,15,181,16],[181,24,181,25],[173,5,173,6],[173,14,173,15],[173,23,173,24],[174,5,174,6],[174,14,174,15],[174,23,174,24],[188,0,188,7],[190,0,190,7],[191,14,191,15],[191,23,191,24],[192,0,192,7],[192,14,192,15],[192,23,192,24],[182,0,182,7],[183,0,183,1],[184,0,184,7],[185,9,185,16],[185,18,185,25],[187,9,187,16],[187,18,187,25],[203,0,203,7],[203,9,203,16],[203,18,203,25],[205,0,205,7],[205,9,205,16],[205,18,205,25],[198,18,198,21],[198,22,198,23],[198,24,198,25],[199,6,199,7],[199,15,199,16],[199,24,199,25],[198,0,198,3],[198,4,198,5],[198,6,198,7],[198,9,198,12],[198,13,198,14],[198,15,198,16],[216,9,216,12],[216,13,216,16],[216,18,216,21],[216,22,216,23],[216,24,216,25],[217,15,217,16],[217,24,217,25],[209,5,209,6],[209,14,209,15],[209,23,209,24],[210,5,210,6],[210,14,210,15],[210,23,210,24],[224,0,224,7],[226,0,226,7],[227,14,227,15],[227,23,227,24],[228,0,228,7],[228,14,228,15],[228,23,228,24],[218,0,218,7],[219,0,219,1],[220,0,220,7],[221,9,221,16],[221,18,221,25],[223,9,223,16],[223,18,223,25],[239,0,239,7],[239,9,239,16],[239,18,239,25],[241,0,241,7],[241,9,241,16],[241,18,241,25],[234,18,234,21],[234,22,234,23],[234,24,234,25],[235,6,235,7],[235,15,235,16],[235,24,235,25],[234,0,234,3],[234,4,234,5],[234,6,234,7],[234,9,234,12],[234,13,234,14],[234,15,234,16],[252,9,252,12],[252,13,252,16],[252,18,252,21],[252,22,252,23],[252,24,252,25],[253,15,253,16],[253,24,253,25],[245,5,245,6],[245,14,245,15],[245,23,245,24],[246,5,246,6],[246,14,246,15],[246,23,246,24],[260,0,260,7],[262,0,262,7],[263,14,263,15],[263,23,263,24],[264,0,264,7],[264,14,264,15],[264,23,264,24],[254,0,254,7],[255,0,255,1],[256,0,256,7],[257,9,257,16],[257,18,257,25],[259,9,259,16],[259,18,259,25],[275,0,275,7],[275,9,275,16],[275,18,275,25],[277,0,277,7],[277,9,277,16],[277,18,277,25],[270,18,270,21],[270,22,270,23],[270,24,270,25],[271,6,271,7],[271,15,271,16],[271,24,271,25],[270,0,270,3],[270,4,270,5],[270,6,270,7],[270,9,270,12],[270,13,270,14],[270,15,270,16],[288,9,288,12],[288,13,288,16],[288,18,288,21],[288,22,288,23],[288,24,288,25],[289,15,289,16],[289,24,289,25],[281,5,281,6],[281,14,281,15],[281,23,281,24],[282,5,282,6],[282,14,282,15],[282,23,282,24],[296,0,296,7],[298,0,298,7],[299,14,299,15],[299,23,299,24],[300,0,300,7],[300,14,300,15],[300,23,300,24],[290,0,290,7],[291,0,291,1],[292,0,292,7],[293,9,293,16],[293,18,293,25],[295,9,295,16],[295,18,295,25],[311,0,311,7],[311,9,311,16],[311,18,311,25],[313,0,313,7],[313,9,313,16],[313,18,313,25],[306,18,306,21],[306,22,306,23],[306,24,306,25],[307,6,307,7],[307,15,307,16],[307,24,307,25],[306,0,306,3],[306,4,306,5],[306,6,306,7],[306,9,306,12],[306,13,306,14],[306,15,306,16],[324,9,324,12],[324,13,324,16],[324,18,324,21],[324,22,324,23],[324,24,324,25],[325,15,325,16],[325,24,325,25],[317,5,317,6],[317,14,317,15],[317,23,317,24],[318,5,318,6],[318,14,318,15],[318,23,318,24],[332,0,332,7],[334,0,334,7],[335,14,335,15],[335,23,335,24],[336,0,336,7],[336,14,336,15],[336,23,336,24],[326,0,326,7],[327,0,327,1],[328,0,328,7],[329,9,329,16],[329,18,329,25],[331,9,331,16],[331,18,331,25],[347,0,347,7],[347,9,347,16],[347,18,347,25],[349,0,349,7],[349,9,349,16],[349,18,349,25],[342,18,342,21],[342,22,342,23],[342,24,342,25],[343,6,343,7],[343,15,343,16],[343,24,343,25],[342,0,342,3],[342,4,342,5],[342,6,342,7],[342,9,342,12],[342,13,342,14],[342,15,342,16],[360,9,360,12],[360,13,360,16],[360,18,360,21],[360,22,360,23],[360,24,360,25],[361,15,361,16],[361,24,361,25],[353,5,353,6],[353,14,353,15],[353,23,353,24],[354,5,354,6],[354,14,354,15],[354,23,354,24],[368,0,368,7],[370,0,370,7],[371,14,371,15],[371,23,371,24],[372,0,372,7],[372,14,372,15],[372,23,372,24],[362,0,362,7],[363,0,363,1],[364,0,364,7],[365,9,365,16],[365,18,365,25],[367,9,367,16],[367,18,367,25],[383,0,383,7],[383,9,383,16],[383,18,383,25],[385,0,385,7],[385,9,385,16],[385,18,385,25],[378,18,378,21],[378,22,378,23],[378,24,378,25],[379,6,379,7],[379,15,379,16],[379,24,379,25],[378,0,378,3],[378,4,378,5],[378,6,378,7],[378,9,378,12],[378,13,378,14],[378,15,378,16],[396,9,396,12],[396,13,396,16],[396,18,396,21],[396,22,396,23],[396,24,396,25],[397,15,397,16],[397,24,397,25],[389,5,389,6],[389,14,389,15],[389,23,389,24],[390,5,390,6],[390,14,390,15],[390,23,390,24],[404,0,404,7],[406,0,406,7],[407,14,407,15],[407,23,407,24],[408,0,408,7],[408,14,408,15],[408,23,408,24],[398,0,398,7],[399,0,399,1],[400,0,400,7],[401,9,401,16],[401,18,401,25],[403,9,403,16],[403,18,403,25],[419,0,419,7],[419,9,419,16],[419,18,419,25],[421,0,421,7],[421,9,421,16],[421,18,421,25],[414,18,414,21],[414,22,414,23],[414,24,414,25],[415,6,415,7],[415,15,415,16],[415,24,415,25],[414,0,414,3],[414,4,414,5],[414,6,414,7],[414,9,414,12],[414,13,414,14],[414,15,414,16],[432,9,432,12],[432,13,432,16],[432,18,432,21],[432,22,432,23],[432,24,432,25],[433,15,433,16],[433,24,433,25],[425,5,425,6],[425,14,425,15],[425,23,425,24],[426,5,426,6],[426,14,426,15],[426,23,426,24],[440,0,440,7],[442,0,442,7],[443,14,443,15],[443,23,443,24],[444,0,444,7],[444,14,444,15],[444,23,444,24],[434,0,434,7],[435,0,435,1],[436,0,436,7],[437,9,437,16],[437,18,437,25],[439,9,439,16],[439,18,439,25],[455,0,455,7],[455,9,455,16],[455,18,455,25],[457,0,457,7],[457,9,457,16],[457,18,457,25],[450,18,450,21],[450,22,450,23],[450,24,450,25],[451,6,451,7],[451,15,451,16],[451,24,451,25],[450,0,450,3],[450,4,450,5],[450,6,450,7],[450,9,450,12],[450,13,450,14],[450,15,450,16],[468,9,468,12],[468,13,468,16],[468,18,468,21],[468,22,468,23],[468,24,468,25],[469,15,469,16],[469,24,469,25],[461,5,461,6],[461,14,461,15],[461,23,461,24],[462,5,462,6],[462,14,462,15],[462,23,462,24],[476,0,476,7],[478,0,478,7],[479,14,479,15],[479,23,479,24],[480,0,480,7],[480,14,480,15],[480,23,480,24],[470,0,470,7],[471,0,471,1],[472,0,472,7],[473,9,473,16],[473,18,473,25],[475,9,475,16],[475,18,475,25],[491,0,491,7],[491,9,491,16],[491,18,491,25],[493,0,493,7],[493,9,493,16],[493,18,493,25],[486,18,486,21],[486,22,486,23],[486,24,486,25],[487,6,487,7],[487,15,487,16],[487,24,487,25],[486,0,486,3],[486,4,486,5],[486,6,486,7],[486,9,486,12],[486,13,486,14],[486,15,486,16],[504,9,504,12],[504,13,504,16],[504,18,504,21],[504,22,504,23],[504,24,504,25],[505,15,505,16],[505,24,505,25],[497,5,497,6],[497,14,497,15],[497,23,497,24],[498,5,498,6],[498,14,498,15],[498,23,498,24],[512,0,512,7],[514,0,514,7],[515,14,515,15],[515,23,515,24],[516,0,516,7],[516,14,516,15],[516,23,516,24],[506,0,506,7],[507,0,507,1],[508,0,508,7],[509,9,509,16],[509,18,509,25],[511,9,511,16],[511,18,511,25],[527,0,527,7],[527,9,527,16],[527,18,527,25],[529,0,529,7],[529,9,529,16],[529,18,529,25],[522,18,522,21],[522,22,522,23],[522,24,522,25],[523,6,523,7],[523,15,523,16],[523,24,523,25],[522,0,522,3],[522,4,522,5],[522,6,522,7],[522,9,522,12],[522,13,522,14],[522,15,522,16],[540,9,540,12],[540,13,540,16],[540,18,540,21],[540,22,540,23],[540,24,540,25],[541,15,541,16],[541,24,541,25],[533,5,533,6],[533,14,533,15],[533,23,533,24],[534,5,534,6],[534,14,534,15],[534,23,534,24],[548,0,548,7],[550,0,550,7],[551,14,551,15],[551,23,551,24],[552,0,552,7],[552,14,552,15],[552,23,552,24],[542,0,542,7],[543,0,543,1],[544,0,544,7],[545,9,545,16],[545,18,545,25],[547,9,547,16],[547,18,547,25],[558,18,558,21],[558,22,558,23],[558,24,558,25],[559,6,559,7],[559,15,559,16],[559,24,559,25],[558,0,558,3],[558,4,558,5],[558,6,558,7],[558,9,558,12],[558,13,558,14],[558,15,558,16],[569,5,569,6],[569,14,569,15],[569,23,569,24],[570,5,570,6],[570,14,570,15],[570,23,570,24],[563,0,563,7],[563,9,563,16],[563,18,563,25],[565,0,565,7],[565,9,565,16],[565,18,565,25]]}
[null,null,null,null,null,null,null,null,null,null,null,null,null,null,null,null,null,null,"1/8 Elimination",null,null,null,"Scheibe:",null,{"$f":"Finale16alle!B2","v":"1A"}]
[null,null,null,null,null,null,null,null,null,null,null,null,null,null,null,null,null,null,null,1,2,3,"Summe","Punkte","Ges."]
[{"$f":"Quali!$A$1","v":"Trainingsturnier"},null,null,null,null,null,null,null,null,null,null,null,null,null,null,null,null,null,"Satz 1"]
["Veranstaltung",null,null,null,null,null,null,null,null,null,null,null,null,null,null,null,null,null,"Satz 2"]
[{"$f":"Quali!$A$3","v":"15. Mai 2022"},null,null,null,null,null,null,null,null,null,null,null,null,null,null,null,null,null,"Satz 3"]
["Datum",null,null,null,null,null,null,null,null,null,null,null,null,null,null,null,null,null,"wenn erforderlich"]
[null,null,null,null,null,null,null,null,null,null,null,null,null,null,null,null,null,null,"Satz 4"]
[null,null,null,null,null,null,null,null,null,null,null,null,null,null,null,null,null,null,"wenn erforderlich"]
[{"$f":"Finale16alle!C2","v":"S_1"},null,null,null,null,null,null,null,null,null,null,null,null,null,null,null,null,null,"Satz 5"]
["Name",null,null,null,null,null,null,null,null,null,null,null,null,null,null,null,null,null,"wenn erforderlich"]
[{"$f":"IFERROR(VLOOKUP(A9,Quali!$C$12:$H$27,2,FALSE),\" \")","v":"V_1"},null,null,null,null,null,null,null,null,null,null,null,null,null,null,null,null,null,"Stechen"]
["Verein",null,null,null,null,null,null,null,null,null,null,null,null,null,null,null,null,null,null,null,null,null,null,"gewonnen"]
[{"$f":"Quali!$A$6","v":"Compound"},null,null,null,null,null,null,null,null,null,null,null,null,null,null,null,null,null,"Schütze:",null,null,null,null,"verloren"]
["Bogenklasse"]
[null,null,null,null,null,null,null,null,null,null,null,null,null,null,null,null,null,null,"Gegner:",null,"Name:",{"$f":"Finale16alle!C3","v":"S_16"}]
[null,null,null,null,null,null,null,null,null,null,null,null,null,null,null,null,null,null,null,null,"Unterschrift:"]
[]
[]
["1/4 Finale",null,null,null,"Scheibe:",null,null,null,null,"1/2 Finale",null,null,null,"Scheibe:",null,null,null,null,"1./2. od. 3./4. Platz",null,null,null,"Scheibe:"]
[null,1,2,3,"Summe","Punkte","Ges.",null,null,null,1,2,3,"Summe","Punkte","Ges.",null,null,null,1,2,3,"Summe","Punkte","Ges."]
["Satz 1",null,null,null,null,null,null,null,null,"Satz 1",null,null,null,null,null,null,null,null,"Satz 1"]
["Satz 2",null,null,null,null,null,null,null,null,"Satz 2",null,null,null,null,null,null,null,null,"Satz 2"]
["Satz 3",null,null,null,null,null,null,null,null,"Satz 3",null,null,null,null,null,null,null,null,"Satz 3"]
["wenn erforderlich",null,null,null,null,null,null,null,null,"wenn erforderlich",null,null,null,null,null,null,null,null,"wenn erforderlich"]
["Satz 4",null,null,null,null,null,null,null,null,"Satz 4",null,null,null,null,null,null,null,null,"Satz 4"]
["wenn erforderlich",null,null,null,null,null,null,null,null,"wenn erforderlich",null,null,null,null,null,null,null,null,"wenn erforderlich"]
["Satz 5",null,null,null,null,null,null,null,null,"Satz 5",null,null,null,null,null,null,null,null,"Satz 5"]
["wenn erforderlich",null,null,null,null,null,null,null,null,"wenn erforderlich",null,null,null,null,null,null,null,null,"wenn erforderlich"]
["Stechen",null,null,null,null,null,null,null,null,"Stechen",null,null,null,null,null,null,null,null,"Stechen"]
[null,null,null,null,null,"gewonnen",null,null,null,null,null,null,null,null,"gewonnen",null,null,null,null,null,null,null,null,"gewonnen"]
["Schütze:",null,null,null,null,"verloren",null,null,null,"Schütze:",null,null,null,null,"verloren",null,null,null,"Schütze:",null,null,null,null,"verloren"]
[]
["Gegner:",null,"Name:",null,null,null,null,null,null,"Gegner:",null,"Name:",null,null,null,null,null,null,"Gegner:",null,"Name:"]
[null,null,"Unterschrift:",null,null,null,null,null,null,null,null,"Unterschrift:",null,null,null,null,null,null,null,null,"Unterschrift:"]
[]
[]
[null,null,null,null,null,null,null,null,null,null,null,null,null,null,null,null,null,null,"1/8 Elimination",null,null,null,"Scheibe:",null,{"$f":"Finale16alle!B3","v":"1B"}]
[null,null,null,null,null,null,null,null,null,null,null,null,null,null,null,null,null,null,null,1,2,3,"Summe","Punkte","Ges."]
[{"$f":"Quali!$A$1","v":"Trainingsturnier"},null,null,null,null,null,null,null,null,null,null,null,null,null,null,null,null,null,"Satz 1"]
["Veranstaltung",null,null,null,null,null,null,null,null,null,null,null,null,null,null,null,null,null,"Satz 2"]
[{"$f":"Quali!$A$3","v":"15. Mai 2022"},null,null,null,null,null,null,null,null,null,null,null,null,null,null,null,null,null,"Satz 3"]
["Datum",null,null,null,null,null,null,null,null,null,null,null,null,null,null,null,null,null,"wenn erforderlich"]
[null,null,null,null,null,null,null,null,null,null,null,null,null,null,null,null,null,null,"Satz 4"]
[null,null,null,null,null,null,null,null,null,null,null,null,null,null,null,null,null,null,"wenn erforderlich"]
[{"$f":"Finale16alle!C3","v":"S_16"},null,null,null,null,null,null,null,null,null,null,null,null,null,null,null,null,null,"Satz 5"]
["Name",null,null,null,null,null,null,null,null,null,null,null,null,null,null,null,null,null,"wenn erforderlich"]
[{"$f":"IFERROR(VLOOKUP(A45,Quali!$C$12:$H$27,2,FALSE),\" \")","v":"V_16"},null,null,null,null,null,null,null,null,null,null,null,null,null,null,null,null,null,"Stechen"]
["Verein",null,null,null,null,null,null,null,null,null,null,null,null,null,null,null,null,null,null,null,null,null,null,"gewonnen"]
[{"$f":"Quali!$A$6","v":"Compound"},null,null,null,null,null,null,null,null,null,null,null,null,null,null,null,null,null,"Schütze:",null,null,null,null,"verloren"]
["Bogenklasse"]
[null,null,null,null,null,null,null,null,null,null,null,null,null,null,null,null,null,null,"Gegner:",null,"Name:",{"$f":"Finale16alle!C2","v":"S_1"}]
[null,null,null,null,null,null,null,null,null,null,null,null,null,null,null,null,null,null,null,null,"Unterschrift:"]
[]
[]
["1/4 Finale",null,null,null,"Scheibe:",null,null,null,null,"1/2 Finale",null,null,null,"Scheibe:",null,null,null,null,"1./2. od. 3./4. Platz",null,null,null,"Scheibe:"]
[null,1,2,3,"Summe","Punkte","Ges.",null,null,null,1,2,3,"Summe","Punkte","Ges.",null,null,null,1,2,3,"Summe","Punkte","Ges."]
["Satz 1",null,null,null,null,null,null,null,null,"Satz 1",null,null,null,null,null,null,null,null,"Satz 1"]
["Satz 2",null,null,null,null,null,null,null,null,"Satz 2",null,null,null,null,null,null,null,null,"Satz 2"]
["Satz 3",null,null,null,null,null,null,null,null,"Satz 3",null,null,null,null,null,null,null,null,"Satz 3"]
["wenn erforderlich",null,null,null,null,null,null,null,null,"wenn erforderlich",null,null,null,null,null,null,null,null,"wenn erforderlich"]
["Satz 4",null,null,null,null,null,null,null,null,"Satz 4",null,null,null,null,null,null,null,null,"Satz 4"]
["wenn erforderlich",null,null,null,null,null,null,null,null,"wenn erforderlich",null,null,null,null,null,null,null,null,"wenn erforderlich"]
["Satz 5",null,null,null,null,null,null,null,null,"Satz 5",null,null,null,null,null,null,null,null,"Satz 5"]
["wenn erforderlich",null,null,null,null,null,null,null,null,"wenn erforderlich",null,null,null,null,null,null,null,null,"wenn erforderlich"]
["Stechen",null,null,null,null,null,null,null,null,"Stechen",null,null,null,null,null,null,null,null,"Stechen"]
[null,null,null,null,null,"gewonnen",null,null,null,null,null,null,null,null,"gewonnen",null,null,null,null,null,null,null,null,"gewonnen"]
["Schütze:",null,null,null,null,"verloren",null,null,null,"Schütze:",null,null,null,null,"verloren",null,null,null,"Schütze:",null,null,null,null,"verloren"]
[]
["Gegner:",null,"Name:",null,null,null,null,null,null,"Gegner:",null,"Name:",null,null,null,null,null,null,"Gegner:",null,"Name:"]
[null,null,"Unterschrift:",null,null,null,null,null,null,null,null,"Unterschrift:",null,null,null,null,null,null,null,null,"Unterschrift:"]
[]
[]
[null,null,null,null,null,null,null,null,null,null,null,null,null,null,null,null,null,null,"1/8 Elimination",null,null,null,"Scheibe:",null,{"$f":"Finale16alle!B6","v":"2A"}]
[null,null,null,null,null,null,null,null,null,null,null,null,null,null,null,null,null,null,null,1,2,3,"Summe","Punkte","Ges."]
[{"$f":"Quali!$A$1","v":"Trainingsturnier"},null,null,null,null,null,null,null,null,null,null,null,null,null,null,null,null,null,"Satz 1"]
["Veranstaltung",null,null,null,null,null,null,null,null,null,null,null,null,null,null,null,null,null,"Satz 2"]
[{"$f":"Quali!$A$3","v":"15. Mai 2022"},null,null,null,null,null,null,null,null,null,null,null,null,null,null,null,null,null,"Satz 3"]
["Datum",null,null,null,null,null,null,null,null,null,null,null,null,null,null,null,null,null,"wenn erforderlich"]
[null,null,null,null,null,null,null,null,null,null,null,null,null,null,null,null,null,null,"Satz 4"]
[null,null,null,null,null,null,null,null,null,null,null,null,null,null,null,null,null,null,"wenn erforderlich"]
[{"$f":"Finale16alle!C6","v":"S_9"},null,null,null,null,null,null,null,null,null,null,null,null,null,null,null,null,null,"Satz 5"]
["Name",null,null,null,null,null,null,null,null,null,null,null,null,null,null,null,null,null,"wenn erforderlich"]
[{"$f":"IFERROR(VLOOKUP(A81,Quali!$C$12:$H$27,2,FALSE),\" \")","v":"V_9"},null,null,null,null,null,null,null,null,null,null,null,null,null,null,null,null,null,"Stechen"]
["Verein",null,null,null,null,null,null,null,null,null,null,null,null,null,null,null,null,null,null,null,null,null,null,"gewonnen"]
[{"$f":"Quali!$A$6","v":"Compound"},null,null,null,null,null,null,null,null,null,null,null,null,null,null,null,null,null,"Schütze:",null,null,null,null,"verloren"]
["Bogenklasse"]
[null,null,null,null,null,null,null,null,null,null,null,null,null,null,null,null,null,null,"Gegner:",null,"Name:",{"$f":"Finale16alle!C7","v":"S_8"}]
[null,null,null,null,null,null,null,null,null,null,null,null,null,null,null,null,null,null,null,null,"Unterschrift:"]
[]
[]
["1/4 Finale",null,null,null,"Scheibe:",null,null,null,null,"1/2 Finale",null,null,null,"Scheibe:",null,null,null,null,"1./2. od. 3./4. Platz",null,null,null,"Scheibe:"]
[null,1,2,3,"Summe","Punkte","Ges.",null,null,null,1,2,3,"Summe","Punkte","Ges.",null,null,null,1,2,3,"Summe","Punkte","Ges."]
["Satz 1",null,null,null,null,null,null,null,null,"Satz 1",null,null,null,null,null,null,null,null,"Satz 1"]
["Satz 2",null,null,null,null,null,null,null,null,"Satz 2",null,null,null,null,null,null,null,null,"Satz 2"]
["Satz 3",null,null,null,null,null,null,null,null,"Satz 3",null,null,null,null,null,null,null,null,"Satz 3"]
["wenn erforderlich",null,null,null,null,null,null,null,null,"wenn erforderlich",null,null,null,null,null,null,null,null,"wenn erforderlich"]
["Satz 4",null,null,null,null,null,null,null,null,"Satz 4",null,null,null,null,null,null,null,null,"Satz 4"]
["wenn erforderlich",null,null,null,null,null,null,null,null,"wenn erforderlich",null,null,null,null,null,null,null,null,"wenn erforderlich"]
["Satz 5",null,null,null,null,null,null,null,null,"Satz 5",null,null,null,null,null,null,null,null,"Satz 5"]
["wenn erforderlich",null,null,null,null,null,null,null,null,"wenn erforderlich",null,null,null,null,null,null,null,null,"wenn erforderlich"]
["Stechen",null,null,null,null,null,null,null,null,"Stechen",null,null,null,null,null,null,null,null,"Stechen"]
[null,null,null,null,null,"gewonnen",null,null,null,null,null,null,null,null,"gewonnen",null,null,null,null,null,null,null,null,"gewonnen"]
["Schütze:",null,null,null,null,"verloren",null,null,null,"Schütze:",null,null,null,null,"verloren",null,null,null,"Schütze:",null,null,null,null,"verloren"]
[]
["Gegner:",null,"Name:",null,null,null,null,null,null,"Gegner:",null,"Name:",null,null,null,null,null,null,"Gegner:",null,"Name:"]
[null,null,"Unterschrift:",null,null,null,null,null,null,null,null,"Unterschrift:",null,null,null,null,null,null,null,null,"Unterschrift:"]
[]
[]
[null,null,null,null,null,null,null,null,null,null,null,null,null,null,null,null,null,null,"1/8 Elimination",null,null,null,"Scheibe:",null,{"$f":"Finale16alle!B7","v":"2B"}]
[null,null,null,null,null,null,null,null,null,null,null,null,null,null,null,null,null,null,null,1,2,3,"Summe","Punkte","Ges."]
[{"$f":"Quali!$A$1","v":"Trainingsturnier"},null,null,null,null,null,null,null,null,null,null,null,null,null,null,null,null,null,"Satz 1"]
["Veranstaltung",null,null,null,null,null,null,null,null,null,null,null,null,null,null,null,null,null,"Satz 2"]
[{"$f":"Quali!$A$3","v":"15. Mai 2022"},null,null,null,null,null,null,null,null,null,null,null,null,null,null,null,null,null,"Satz 3"]
["Datum",null,null,null,null,null,null,null,null,null,null,null,null,null,null,null,null,null,"wenn erforderlich"]
[null,null,null,null,null,null,null,null,null,null,null,null,null,null,null,null,null,null,"Satz 4"]
[null,null,null,null,null,null,null,null,null,null,null,null,null,null,null,null,null,null,"wenn erforderlich"]
[{"$f":"Finale16alle!C7","v":"S_8"},null,null,null,null,null,null,null,null,null,null,null,null,null,null,null,null,null,"Satz 5"]
["Name",null,null,null,null,null,null,null,null,null,null,null,null,null,null,null,null,null,"wenn erforderlich"]
[{"$f":"IFERROR(VLOOKUP(A117,Quali!$C$12:$H$27,2,FALSE),\" \")","v":"V_8"},null,null,null,null,null,null,null,null,null,null,null,null,null,null,null,null,null,"Stechen"]
["Verein",null,null,null,null,null,null,null,null,null,null,null,null,null,null,null,null,null,null,null,null,null,null,"gewonnen"]
[{"$f":"Quali!$A$6","v":"Compound"},null,null,null,null,null,null,null,null,null,null,null,null,null,null,null,null,null,"Schütze:",null,null,null,null,"verloren"]
["Bogenklasse"]
[null,null,null,null,null,null,null,null,null,null,null,null,null,null,null,null,null,null,"Gegner:",null,"Name:",{"$f":"Finale16alle!C6","v":"S_9"}]
[null,null,null,null,null,null,null,null,null,null,null,null,null,null,null,null,null,null,null,null,"Unterschrift:"]
[]
[]
["1/4 Finale",null,null,null,"Scheibe:",null,null,null,null,"1/2 Finale",null,null,null,"Scheibe:",null,null,null,null,"1./2. od. 3./4. Platz",null,null,null,"Scheibe:"]
[null,1,2,3,"Summe","Punkte","Ges.",null,null,null,1,2,3,"Summe","Punkte","Ges.",null,null,null,1,2,3,"Summe","Punkte","Ges."]
["Satz 1",null,null,null,null,null,null,null,null,"Satz 1",null,null,null,null,null,null,null,null,"Satz 1"]
["Satz 2",null,null,null,null,null,null,null,null,"Satz 2",null,null,null,null,null,null,null,null,"Satz 2"]
["Satz 3",null,null,null,null,null,null,null,null,"Satz 3",null,null,null,null,null,null,null,null,"Satz 3"]
["wenn erforderlich",null,null,null,null,null,null,null,null,"wenn erforderlich",null,null,null,null,null,null,null,null,"wenn erforderlich"]
["Satz 4",null,null,null,null,null,null,null,null,"Satz 4",null,null,null,null,null,null,null,null,"Satz 4"]
["wenn erforderlich",null,null,null,null,null,null,null,null,"wenn erforderlich",null,null,null,null,null,null,null,null,"wenn erforderlich"]
["Satz 5",null,null,null,null,null,null,null,null,"Satz 5",null,null,null,null,null,null,null,null,"Satz 5"]
["wenn erforderlich",null,null,null,null,null,null,null,null,"wenn erforderlich",null,null,null,null,null,null,null,null,"wenn erforderlich"]
["Stechen",null,null,null,null,null,null,null,null,"Stechen",null,null,null,null,null,null,null,null,"Stechen"]
[null,null,null,null,null,"gewonnen",null,null,null,null,null,null,null,null,"gewonnen",null,null,null,null,null,null,null,null,"gewonnen"]
["Schütze:",null,null,null,null,"verloren",null,null,null,"Schütze:",null,null,null,null,"verloren",null,null,null,"Schütze:",null,null,null,null,"verloren"]
[]
["Gegner:",null,"Name:",null,null,null,null,null,null,"Gegner:",null,"Name:",null,null,null,null,null,null,"Gegner:",null,"Name:"]
[null,null,"Unterschrift:",null,null,null,null,null,null,null,null,"Unterschrift:",null,null,null,null,null,null,null,null,"Unterschrift:"]
[]
[]
[null,null,null,null,null,null,null,null,null,null,null,null,null,null,null,null,null,null,"1/8 Elimination",null,null,null,"Scheibe:",null,{"$f":"Finale16alle!B10","v":"3A"}]
[null,null,null,null,null,null,null,null,null,null,null,null,null,null,null,null,null,null,null,1,2,3,"Summe","Punkte","Ges."]
[{"$f":"Quali!$A$1","v":"Trainingsturnier"},null,null,null,null,null,null,null,null,null,null,null,null,null,null,null,null,null,"Satz 1"]
["Veranstaltung",null,null,null,null,null,null,null,null,null,null,null,null,null,null,null,null,null,"Satz 2"]
[{"$f":"Quali!$A$3","v":"15. Mai 2022"},null,null,null,null,null,null,null,null,null,null,null,null,null,null,null,null,null,"Satz 3"]
["Datum",null,null,null,null,null,null,null,null,null,null,null,null,null,null,null,null,null,"wenn erforderlich"]
[null,null,null,null,null,null,null,null,null,null,null,null,null,null,null,null,null,null,"Satz 4"]
[null,null,null,null,null,null,null,null,null,null,null,null,null,null,null,null,null,null,"wenn erforderlich"]
[{"$f":"Finale16alle!C10","v":"S_5"},null,null,null,null,null,null,null,null,null,null,null,null,null,null,null,null,null,"Satz 5"]
["Name",null,null,null,null,null,null,null,null,null,null,null,null,null,null,null,null,null,"wenn erforderlich"]
[{"$f":"IFERROR(VLOOKUP(A153,Quali!$C$12:$H$27,2,FALSE),\" \")","v":"V_5"},null,null,null,null,null,null,null,null,null,null,null,null,null,null,null,null,null,"Stechen"]
["Verein",null,null,null,null,null,null,null,null,null,null,null,null,null,null,null,null,null,null,null,null,null,null,"gewonnen"]
[{"$f":"Quali!$A$6","v":"Compound"},null,null,null,null,null,null,null,null,null,null,null,null,null,null,null,null,null,"Schütze:",null,null,null,null,"verloren"]
["Bogenklasse"]
[null,null,null,null,null,null,null,null,null,null,null,null,null,null,null,null,null,null,"Gegner:",null,"Name:",{"$f":"Finale16alle!C11","v":"S_12"}]
[null,null,null,null,null,null,null,null,null,null,null,null,null,null,null,null,null,null,null,null,"Unterschrift:"]
[]
[]
["1/4 Finale",null,null,null,"Scheibe:",null,null,null,null,"1/2 Finale",null,null,null,"Scheibe:",null,null,null,null,"1./2. od. 3./4. Platz",null,null,null,"Scheibe:"]
[null,1,2,3,"Summe","Punkte","Ges.",null,null,null,1,2,3,"Summe","Punkte","Ges.",null,null,null,1,2,3,"Summe","Punkte","Ges."]
["Satz 1",null,null,null,null,null,null,null,null,"Satz 1",null,null,null,null,null,null,null,null,"Satz 1"]
["Satz 2",null,null,null,null,null,null,null,null,"Satz 2",null,null,null,null,null,null,null,null,"Satz 2"]
["Satz 3",null,null,null,null,null,null,null,null,"Satz 3",null,null,null,null,null,null,null,null,"Satz 3"]
["wenn erforderlich",null,null,null,null,null,null,null,null,"wenn erforderlich",null,null,null,null,null,null,null,null,"wenn erforderlich"]
["Satz 4",null,null,null,null,null,null,null,null,"Satz 4",null,null,null,null,null,null,null,null,"Satz 4"]
["wenn erforderlich",null,null,null,null,null,null,null,null,"wenn erforderlich",null,null,null,null,null,null,null,null,"wenn erforderlich"]
["Satz 5",null,null,null,null,null,null,null,null,"Satz 5",null,null,null,null,null,null,null,null,"Satz 5"]
["wenn erforderlich",null,null,null,null,null,null,null,null,"wenn erforderlich",null,null,null,null,null,null,null,null,"wenn erforderlich"]
["Stechen",null,null,null,null,null,null,null,null,"Stechen",null,null,null,null,null,null,null,null,"Stechen"]
[null,null,null,null,null,"gewonnen",null,null,null,null,null,null,null,null,"gewonnen",null,null,null,null,null,null,null,null,"gewonnen"]
["Schütze:",null,null,null,null,"verloren",null,null,null,"Schütze:",null,null,null,null,"verloren",null,null,null,"Schütze:",null,null,null,null,"verloren"]
[]
["Gegner:",null,"Name:",null,null,null,null,null,null,"Gegner:",null,"Name:",null,null,null,null,null,null,"Gegner:",null,"Name:"]
[null,null,"Unterschrift:",null,null,null,null,null,null,null,null,"Unterschrift:",null,null,null,null,null,null,null,null,"Unterschrift:"]
[]
[]
[null,null,null,null,null,null,null,null,null,null,null,null,null,null,null,null,null,null,"1/8 Elimination",null,null,null,"Scheibe:",null,{"$f":"Finale16alle!B11","v":"3B"}]
[null,null,null,null,null,null,null,null,null,null,null,null,null,null,null,null,null,null,null,1,2,3,"Summe","Punkte","Ges."]
[{"$f":"Quali!$A$1","v":"Trainingsturnier"},null,null,null,null,null,null,null,null,null,null,null,null,null,null,null,null,null,"Satz 1"]
["Veranstaltung",null,null,null,null,null,null,null,null,null,null,null,null,null,null,null,null,null,"Satz 2"]
[{"$f":"Quali!$A$3","v":"15. Mai 2022"},null,null,null,null,null,null,null,null,null,null,null,null,null,null,null,null,null,"Satz 3"]
["Datum",null,null,null,null,null,null,null,null,null,null,null,null,null,null,null,null,null,"wenn erforderlich"]
[null,null,null,null,null,null,null,null,null,null,null,null,null,null,null,null,null,null,"Satz 4"]
[null,null,null,null,null,null,null,null,null,null,null,null,null,null,null,null,null,null,"wenn erforderlich"]
[{"$f":"Finale16alle!C11","v":"S_12"},null,null,null,null,null,null,null,null,null,null,null,null,null,null,null,null,null,"Satz 5"]
["Name",null,null,null,null,null,null,null,null,null,null,null,null,null,null,null,null,null,"wenn erforderlich"]
[{"$f":"IFERROR(VLOOKUP(A189,Quali!$C$12:$H$27,2,FALSE),\" \")","v":"V_12"},null,null,null,null,null,null,null,null,null,null,null,null,null,null,null,null,null,"Stechen"]
["Verein",null,null,null,null,null,null,null,null,null,null,null,null,null,null,null,null,null,null,null,null,null,null,"gewonnen"]
[{"$f":"Quali!$A$6","v":"Compound"},null,null,null,null,null,null,null,null,null,null,null,null,null,null,null,null,null,"Schütze:",null,null,null,null,"verloren"]
["Bogenklasse"]
[null,null,null,null,null,null,null,null,null,null,null,null,null,null,null,null,null,null,"Gegner:",null,"Name:",{"$f":"Finale16alle!C10","v":"S_5"}]
[null,null,null,null,null,null,null,null,null,null,null,null,null,null,null,null,null,null,null,null,"Unterschrift:"]
[]
[]
["1/4 Finale",null,null,null,"Scheibe:",null,null,null,null,"1/2 Finale",null,null,null,"Scheibe:",null,null,null,null,"1./2. od. 3./4. Platz",null,null,null,"Scheibe:"]
[null,1,2,3,"Summe","Punkte","Ges.",null,null,null,1,2,3,"Summe","Punkte","Ges.",null,null,null,1,2,3,"Summe","Punkte","Ges."]
["Satz 1",null,null,null,null,null,null,null,null,"Satz 1",null,null,null,null,null,null,null,null,"Satz 1"]
["Satz 2",null,null,null,null,null,null,null,null,"Satz 2",null,null,null,null,null,null,null,null,"Satz 2"]
["Satz 3",null,null,null,null,null,null,null,null,"Satz 3",null,null,null,null,null,null,null,null,"Satz 3"]
["wenn erforderlich",null,null,null,null,null,null,null,null,"wenn erforderlich",null,null,null,null,null,null,null,null,"wenn erforderlich"]
["Satz 4",null,null,null,null,null,null,null,null,"Satz 4",null,null,null,null,null,null,null,null,"Satz 4"]
["wenn erforderlich",null,null,null,null,null,null,null,null,"wenn erforderlich",null,null,null,null,null,null,null,null,"wenn erforderlich"]
["Satz 5",null,null,null,null,null,null,null,null,"Satz 5",null,null,null,null,null,null,null,null,"Satz 5"]
["wenn erforderlich",null,null,null,null,null,null,null,null,"wenn erforderlich",null,null,null,null,null,null,null,null,"wenn erforderlich"]
["Stechen",null,null,null,null,null,null,null,null,"Stechen",null,null,null,null,null,null,null,null,"Stechen"]
[null,null,null,null,null,"gewonnen",null,null,null,null,null,null,null,null,"gewonnen",null,null,null,null,null,null,null,null,"gewonnen"]
["Schütze:",null,null,null,null,"verloren",null,null,null,"Schütze:",null,null,null,null,"verloren",null,null,null,"Schütze:",null,null,null,null,"verloren"]
[]
["Gegner:",null,"Name:",null,null,null,null,null,null,"Gegner:",null,"Name:",null,null,null,null,null,null,"Gegner:",null,"Name:"]
[null,null,"Unterschrift:",null,null,null,null,null,null,null,null,"Unterschrift:",null,null,null,null,null,null,null,null,"Unterschrift:"]
[]
[]
[null,null,null,null,null,null,null,null,null,null,null,null,null,null,null,null,null,null,"1/8 Elimination",null,null,null,"Scheibe:",null,{"$f":"Finale16alle!B14","v":"4A"}]
[null,null,null,null,null,null,null,null,null,null,null,null,null,null,null,null,null,null,null,1,2,3,"Summe","Punkte","Ges."]
[{"$f":"Quali!$A$1","v":"Trainingsturnier"},null,null,null,null,null,null,null,null,null,null,null,null,null,null,null,null,null,"Satz 1"]
["Veranstaltung",null,null,null,null,null,null,null,null,null,null,null,null,null,null,null,null,null,"Satz 2"]
[{"$f":"Quali!$A$3","v":"15. Mai 2022"},null,null,null,null,null,null,null,null,null,null,null,null,null,null,null,null,null,"Satz 3"]
["Datum",null,null,null,null,null,null,null,null,null,null,null,null,null,null,null,null,null,"wenn erforderlich"]
[null,null,null,null,null,null,null,null,null,null,null,null,null,null,null,null,null,null,"Satz 4"]
[null,null,null,null,null,null,null,null,null,null,null,null,null,null,null,null,null,null,"wenn erforderlich"]
[{"$f":"Finale16alle!C14","v":"S_13"},null,null,null,null,null,null,null,null,null,null,null,null,null,null,null,null,null,"Satz 5"]
["Name",null,null,null,null,null,null,null,null,null,null,null,null,null,null,null,null,null,"wenn erforderlich"]
[{"$f":"IFERROR(VLOOKUP(A225,Quali!$C$12:$H$27,2,FALSE),\" \")","v":"V_13"},null,null,null,null,null,null,null,null,null,null,null,null,null,null,null,null,null,"Stechen"]
["Verein",null,null,null,null,null,null,null,null,null,null,null,null,null,null,null,null,null,null,null,null,null,null,"gewonnen"]
[{"$f":"Quali!$A$6","v":"Compound"},null,null,null,null,null,null,null,null,null,null,null,null,null,null,null,null,null,"Schütze:",null,null,null,null,"verloren"]
["Bogenklasse"]
[null,null,null,null,null,null,null,null,null,null,null,null,null,null,null,null,null,null,"Gegner:",null,"Name:",{"$f":"Finale16alle!C15","v":"S_4"}]
[null,null,null,null,null,null,null,null,null,null,null,null,null,null,null,null,null,null,null,null,"Unterschrift:"]
[]
[]
["1/4 Finale",null,null,null,"Scheibe:",null,null,null,null,"1/2 Finale",null,null,null,"Scheibe:",null,null,null,null,"1./2. od. 3./4. Platz",null,null,null,"Scheibe:"]
[null,1,2,3,"Summe","Punkte","Ges.",null,null,null,1,2,3,"Summe","Punkte","Ges.",null,null,null,1,2,3,"Summe","Punkte","Ges."]
["Satz 1",null,null,null,null,null,null,null,null,"Satz 1",null,null,null,null,null,null,null,null,"Satz 1"]
["Satz 2",null,null,null,null,null,null,null,null,"Satz 2",null,null,null,null,null,null,null,null,"Satz 2"]
["Satz 3",null,null,null,null,null,null,null,null,"Satz 3",null,null,null,null,null,null,null,null,"Satz 3"]
["wenn erforderlich",null,null,null,null,null,null,null,null,"wenn erforderlich",null,null,null,null,null,null,null,null,"wenn erforderlich"]
["Satz 4",null,null,null,null,null,null,null,null,"Satz 4",null,null,null,null,null,null,null,null,"Satz 4"]
["wenn erforderlich",null,null,null,null,null,null,null,null,"wenn erforderlich",null,null,null,null,null,null,null,null,"wenn erforderlich"]
["Satz 5",null,null,null,null,null,null,null,null,"Satz 5",null,null,null,null,null,null,null,null,"Satz 5"]
["wenn erforderlich",null,null,null,null,null,null,null,null,"wenn erforderlich",null,null,null,null,null,null,null,null,"wenn erforderlich"]
["Stechen",null,null,null,null,null,null,null,null,"Stechen",null,null,null,null,null,null,null,null,"Stechen"]
[null,null,null,null,null,"gewonnen",null,null,null,null,null,null,null,null,"gewonnen",null,null,null,null,null,null,null,null,"gewonnen"]
["Schütze:",null,null,null,null,"verloren",null,null,null,"Schütze:",null,null,null,null,"verloren",null,null,null,"Schütze:",null,null,null,null,"verloren"]
[]
["Gegner:",null,"Name:",null,null,null,null,null,null,"Gegner:",null,"Name:",null,null,null,null,null,null,"Gegner:",null,"Name:"]
[null,null,"Unterschrift:",null,null,null,null,null,null,null,null,"Unterschrift:",null,null,null,null,null,null,null,null,"Unterschrift:"]
[]
[]
[null,null,null,null,null,null,null,null,null,null,null,null,null,null,null,null,null,null,"1/8 Elimination",null,null,null,"Scheibe:",null,{"$f":"Finale16alle!B15","v":"4B"}]
[null,null,null,null,null,null,null,null,null,null,null,null,null,null,null,null,null,null,null,1,2,3,"Summe","Punkte","Ges."]
[{"$f":"Quali!$A$1","v":"Trainingsturnier"},null,null,null,null,null,null,null,null,null,null,null,null,null,null,null,null,null,"Satz 1"]
["Veranstaltung",null,null,null,null,null,null,null,null,null,null,null,null,null,null,null,null,null,"Satz 2"]
[{"$f":"Quali!$A$3","v":"15. Mai 2022"},null,null,null,null,null,null,null,null,null,null,null,null,null,null,null,null,null,"Satz 3"]
["Datum",null,null,null,null,null,null,null,null,null,null,null,null,null,null,null,null,null,"wenn erforderlich"]
[null,null,null,null,null,null,null,null,null,null,null,null,null,null,null,null,null,null,"Satz 4"]
[null,null,null,null,null,null,null,null,null,null,null,null,null,null,null,null,null,null,"wenn erforderlich"]
[{"$f":"Finale16alle!C15","v":"S_4"},null,null,null,null,null,null,null,null,null,null,null,null,null,null,null,null,null,"Satz 5"]
["Name",null,null,null,null,null,null,null,null,null,null,null,null,null,null,null,null,null,"wenn erforderlich"]
[{"$f":"IFERROR(VLOOKUP(A261,Quali!$C$12:$H$27,2,FALSE),\" \")","v":"V_4"},null,null,null,null,null,null,null,null,null,null,null,null,null,null,null,null,null,"Stechen"]
["Verein",null,null,null,null,null,null,null,null,null,null,null,null,null,null,null,null,null,null,null,null,null,null,"gewonnen"]
[{"$f":"Quali!$A$6","v":"Compound"},null,null,null,null,null,null,null,null,null,null,null,null,null,null,null,null,null,"Schütze:",null,null,null,null,"verloren"]
["Bogenklasse"]
[null,null,null,null,null,null,null,null,null,null,null,null,null,null,null,null,null,null,"Gegner:",null,"Name:",{"$f":"Finale16alle!C14","v":"S_13"}]
[null,null,null,null,null,null,null,null,null,null,null,null,null,null,null,null,null,null,null,null,"Unterschrift:"]
[]
[]
["1/4 Finale",null,null,null,"Scheibe:",null,null,null,null,"1/2 Finale",null,null,null,"Scheibe:",null,null,null,null,"1./2. od. 3./4. Platz",null,null,null,"Scheibe:"]
[null,1,2,3,"Summe","Punkte","Ges.",null,null,null,1,2,3,"Summe","Punkte","Ges.",null,null,null,1,2,3,"Summe","Punkte","Ges."]
["Satz 1",null,null,null,null,null,null,null,null,"Satz 1",null,null,null,null,null,null,null,null,"Satz 1"]
["Satz 2",null,null,null,null,null,null,null,null,"Satz 2",null,null,null,null,null,null,null,null,"Satz 2"]
["Satz 3",null,null,null,null,null,null,null,null,"Satz 3",null,null,null,null,null,null,null,null,"Satz 3"]
["wenn erforderlich",null,null,null,null,null,null,null,null,"wenn erforderlich",null,null,null,null,null,null,null,null,"wenn erforderlich"]
["Satz 4",null,null,null,null,null,null,null,null,"Satz 4",null,null,null,null,null,null,null,null,"Satz 4"]
["wenn erforderlich",null,null,null,null,null,null,null,null,"wenn erforderlich",null,null,null,null,null,null,null,null,"wenn erforderlich"]
["Satz 5",null,null,null,null,null,null,null,null,"Satz 5",null,null,null,null,null,null,null,null,"Satz 5"]
["wenn erforderlich",null,null,null,null,null,null,null,null,"wenn erforderlich",null,null,null,null,null,null,null,null,"wenn erforderlich"]
["Stechen",null,null,null,null,null,null,null,null,"Stechen",null,null,null,null,null,null,null,null,"Stechen"]
[null,null,null,null,null,"gewonnen",null,null,null,null,null,null,null,null,"gewonnen",null,null,null,null,null,null,null,null,"gewonnen"]
["Schütze:",null,null,null,null,"verloren",null,null,null,"Schütze:",null,null,null,null,"verloren",null,null,null,"Schütze:",null,null,null,null,"verloren"]
[]
["Gegner:",null,"Name:",null,null,null,null,null,null,"Gegner:",null,"Name:",null,null,null,null,null,null,"Gegner:",null,"Name:"]
[null,null,"Unterschrift:",null,null,null,null,null,null,null,null,"Unterschrift:",null,null,null,null,null,null,null,null,"Unterschrift:"]
[]
[]
[null,null,null,null,null,null,null,null,null,null,null,null,null,null,null,null,null,null,"1/8 Elimination",null,null,null,"Scheibe:",null,{"$f":"Finale16alle!B18","v":"5A"}]
[null,null,null,null,null,null,null,null,null,null,null,null,null,null,null,null,null,null,null,1,2,3,"Summe","Punkte","Ges."]
[{"$f":"Quali!$A$1","v":"Trainingsturnier"},null,null,null,null,null,null,null,null,null,null,null,null,null,null,null,null,null,"Satz 1"]
["Veranstaltung",null,null,null,null,null,null,null,null,null,null,null,null,null,null,null,null,null,"Satz 2"]
[{"$f":"Quali!$A$3","v":"15. Mai 2022"},null,null,null,null,null,null,null,null,null,null,null,null,null,null,null,null,null,"Satz 3"]
["Datum",null,null,null,null,null,null,null,null,null,null,null,null,null,null,null,null,null,"wenn erforderlich"]
[null,null,null,null,null,null,null,null,null,null,null,null,null,null,null,null,null,null,"Satz 4"]
[null,null,null,null,null,null,null,null,null,null,null,null,null,null,null,null,null,null,"wenn erforderlich"]
[{"$f":"Finale16alle!C18","v":"S_3"},null,null,null,null,null,null,null,null,null,null,null,null,null,null,null,null,null,"Satz 5"]
["Name",null,null,null,null,null,null,null,null,null,null,null,null,null,null,null,null,null,"wenn erforderlich"]
[{"$f":"IFERROR(VLOOKUP(A297,Quali!$C$12:$H$27,2,FALSE),\" \")","v":"V_3"},null,null,null,null,null,null,null,null,null,null,null,null,null,null,null,null,null,"Stechen"]
["Verein",null,null,null,null,null,null,null,null,null,null,null,null,null,null,null,null,null,null,null,null,null,null,"gewonnen"]
[{"$f":"Quali!$A$6","v":"Compound"},null,null,null,null,null,null,null,null,null,null,null,null,null,null,null,null,null,"Schütze:",null,null,null,null,"verloren"]
["Bogenklasse"]
[null,null,null,null,null,null,null,null,null,null,null,null,null,null,null,null,null,null,"Gegner:",null,"Name:",{"$f":"Finale16alle!C19","v":"S_14"}]
[null,null,null,null,null,null,null,null,null,null,null,null,null,null,null,null,null,null,null,null,"Unterschrift:"]
[]
[]
["1/4 Finale",null,null,null,"Scheibe:",null,null,null,null,"1/2 Finale",null,null,null,"Scheibe:",null,null,null,null,"1./2. od. 3./4. Platz",null,null,null,"Scheibe:"]
[null,1,2,3,"Summe","Punkte","Ges.",null,null,null,1,2,3,"Summe","Punkte","Ges.",null,null,null,1,2,3,"Summe","Punkte","Ges."]
["Satz 1",null,null,null,null,null,null,null,null,"Satz 1",null,null,null,null,null,null,null,null,"Satz 1"]
["Satz 2",null,null,null,null,null,null,null,null,"Satz 2",null,null,null,null,null,null,null,null,"Satz 2"]
["Satz 3",null,null,null,null,null,null,null,null,"Satz 3",null,null,null,null,null,null,null,null,"Satz 3"]
["wenn erforderlich",null,null,null,null,null,null,null,null,"wenn erforderlich",null,null,null,null,null,null,null,null,"wenn erforderlich"]
["Satz 4",null,null,null,null,null,null,null,null,"Satz 4",null,null,null,null,null,null,null,null,"Satz 4"]
["wenn erforderlich",null,null,null,null,null,null,null,null,"wenn erforderlich",null,null,null,null,null,null,null,null,"wenn erforderlich"]
["Satz 5",null,null,null,null,null,null,null,null,"Satz 5",null,null,null,null,null,null,null,null,"Satz 5"]
["wenn erforderlich",null,null,null,null,null,null,null,null,"wenn erforderlich",null,null,null,null,null,null,null,null,"wenn erforderlich"]
["Stechen",null,null,null,null,null,null,null,null,"Stechen",null,null,null,null,null,null,null,null,"Stechen"]
[null,null,null,null,null,"gewonnen",null,null,null,null,null,null,null,null,"gewonnen",null,null,null,null,null,null,null,null,"gewonnen"]
["Schütze:",null,null,null,null,"verloren",null,null,null,"Schütze:",null,null,null,null,"verloren",null,null,null,"Schütze:",null,null,null,null,"verloren"]
[]
["Gegner:",null,"Name:",null,null,null,null,null,null,"Gegner:",null,"Name:",null,null,null,null,null,null,"Gegner:",null,"Name:"]
[null,null,"Unterschrift:",null,null,null,null,null,null,null,null,"Unterschrift:",null,null,null,null,null,null,null,null,"Unterschrift:"]
[]
[]
[null,null,null,null,null,null,null,null,null,null,null,null,null,null,null,null,null,null,"1/8 Elimination",null,null,null,"Scheibe:",null,{"$f":"Finale16alle!B19","v":"5B"}]
[null,null,null,null,null,null,null,null,null,null,null,null,null,null,null,null,null,null,null,1,2,3,"Summe","Punkte","Ges."]
[{"$f":"Quali!$A$1","v":"Trainingsturnier"},null,null,null,null,null,null,null,null,null,null,null,null,null,null,null,null,null,"Satz 1"]
["Veranstaltung",null,null,null,null,null,null,null,null,null,null,null,null,null,null,null,null,null,"Satz 2"]
[{"$f":"Quali!$A$3","v":"15. Mai 2022"},null,null,null,null,null,null,null,null,null,null,null,null,null,null,null,null,null,"Satz 3"]
["Datum",null,null,null,null,null,null,null,null,null,null,null,null,null,null,null,null,null,"wenn erforderlich"]
[null,null,null,null,null,null,null,null,null,null,null,null,null,null,null,null,null,null,"Satz 4"]
[null,null,null,null,null,null,null,null,null,null,null,null,null,null,null,null,null,null,"wenn erforderlich"]
[{"$f":"Finale16alle!C19","v":"S_14"},null,null,null,null,null,null,null,null,null,null,null,null,null,null,null,null,null,"Satz 5"]
["Name",null,null,null,null,null,null,null,null,null,null,null,null,null,null,null,null,null,"wenn erforderlich"]
[{"$f":"IFERROR(VLOOKUP(A333,Quali!$C$12:$H$27,2,FALSE),\" \")","v":"V_14"},null,null,null,null,null,null,null,null,null,null,null,null,null,null,null,null,null,"Stechen"]
["Verein",null,null,null,null,null,null,null,null,null,null,null,null,null,null,null,null,null,null,null,null,null,null,"gewonnen"]
[{"$f":"Quali!$A$6","v":"Compound"},null,null,null,null,null,null,null,null,null,null,null,null,null,null,null,null,null,"Schütze:",null,null,null,null,"verloren"]
["Bogenklasse"]
[null,null,null,null,null,null,null,null,null,null,null,null,null,null,null,null,null,null,"Gegner:",null,"Name:",{"$f":"Finale16alle!C18","v":"S_3"}]
[null,null,null,null,null,null,null,null,null,null,null,null,null,null,null,null,null,null,null,null,"Unterschrift:"]
[]
[]
["1/4 Finale",null,null,null,"Scheibe:",null,null,null,null,"1/2 Finale",null,null,null,"Scheibe:",null,null,null,null,"1./2. od. 3./4. Platz",null,null,null,"Scheibe:"]
[null,1,2,3,"Summe","Punkte","Ges.",null,null,null,1,2,3,"Summe","Punkte","Ges.",null,null,null,1,2,3,"Summe","Punkte","Ges."]
["Satz 1",null,null,null,null,null,null,null,null,"Satz 1",null,null,null,null,null,null,null,null,"Satz 1"]
["Satz 2",null,null,null,null,null,null,null,null,"Satz 2",null,null,null,null,null,null,null,null,"Satz 2"]
["Satz 3",null,null,null,null,null,null,null,null,"Satz 3",null,null,null,null,null,null,null,null,"Satz 3"]
["wenn erforderlich",null,null,null,null,null,null,null,null,"wenn erforderlich",null,null,null,null,null,null,null,null,"wenn erforderlich"]
["Satz 4",null,null,null,null,null,null,null,null,"Satz 4",null,null,null,null,null,null,null,null,"Satz 4"]
["wenn erforderlich",null,null,null,null,null,null,null,null,"wenn erforderlich",null,null,null,null,null,null,null,null,"wenn erforderlich"]
["Satz 5",null,null,null,null,null,null,null,null,"Satz 5",null,null,null,null,null,null,null,null,"Satz 5"]
["wenn erforderlich",null,null,null,null,null,null,null,null,"wenn erforderlich",null,null,null,null,null,null,null,null,"wenn erforderlich"]
["Stechen",null,null,null,null,null,null,null,null,"Stechen",null,null,null,null,null,null,null,null,"Stechen"]
[null,null,null,null,null,"gewonnen",null,null,null,null,null,null,null,null,"gewonnen",null,null,null,null,null,null,null,null,"gewonnen"]
["Schütze:",null,null,null,null,"verloren",null,null,null,"Schütze:",null,null,null,null,"verloren",null,null,null,"Schütze:",null,null,null,null,"verloren"]
[]
["Gegner:",null,"Name:",null,null,null,null,null,null,"Gegner:",null,"Name:",null,null,null,null,null,null,"Gegner:",null,"Name:"]
[null,null,"Unterschrift:",null,null,null,null,null,null,null,null,"Unterschrift:",null,null,null,null,null,null,null,null,"Unterschrift:"]
[]
[]
[null,null,null,null,null,null,null,null,null,null,null,null,null,null,null,null,null,null,"1/8 Elimination",null,null,null,"Scheibe:",null,{"$f":"Finale16alle!B22","v":"6A"}]
[null,null,null,null,null,null,null,null,null,null,null,null,null,null,null,null,null,null,null,1,2,3,"Summe","Punkte","Ges."]
[{"$f":"Quali!$A$1","v":"Trainingsturnier"},null,null,null,null,null,null,null,null,null,null,null,null,null,null,null,null,null,"Satz 1"]
["Veranstaltung",null,null,null,null,null,null,null,null,null,null,null,null,null,null,null,null,null,"Satz 2"]
[{"$f":"Quali!$A$3","v":"15. Mai 2022"},null,null,null,null,null,null,null,null,null,null,null,null,null,null,null,null,null,"Satz 3"]
["Datum",null,null,null,null,null,null,null,null,null,null,null,null,null,null,null,null,null,"wenn erforderlich"]
[null,null,null,null,null,null,null,null,null,null,null,null,null,null,null,null,null,null,"Satz 4"]
[null,null,null,null,null,null,null,null,null,null,null,null,null,null,null,null,null,null,"wenn erforderlich"]
[{"$f":"Finale16alle!C22","v":"S_11"},null,null,null,null,null,null,null,null,null,null,null,null,null,null,null,null,null,"Satz 5"]
["Name",null,null,null,null,null,null,null,null,null,null,null,null,null,null,null,null,null,"wenn erforderlich"]
[{"$f":"IFERROR(VLOOKUP(A369,Quali!$C$12:$H$27,2,FALSE),\" \")","v":"V_11"},null,null,null,null,null,null,null,null,null,null,null,null,null,null,null,null,null,"Stechen"]
["Verein",null,null,null,null,null,null,null,null,null,null,null,null,null,null,null,null,null,null,null,null,null,null,"gewonnen"]
[{"$f":"Quali!$A$6","v":"Compound"},null,null,null,null,null,null,null,null,null,null,null,null,null,null,null,null,null,"Schütze:",null,null,null,null,"verloren"]
["Bogenklasse"]
[null,null,null,null,null,null,null,null,null,null,null,null,null,null,null,null,null,null,"Gegner:",null,"Name:",{"$f":"Finale16alle!C23","v":"S_6"}]
[null,null,null,null,null,null,null,null,null,null,null,null,null,null,null,null,null,null,null,null,"Unterschrift:"]
[]
[]
["1/4 Finale",null,null,null,"Scheibe:",null,null,null,null,"1/2 Finale",null,null,null,"Scheibe:",null,null,null,null,"1./2. od. 3./4. Platz",null,null,null,"Scheibe:"]
[null,1,2,3,"Summe","Punkte","Ges.",null,null,null,1,2,3,"Summe","Punkte","Ges.",null,null,null,1,2,3,"Summe","Punkte","Ges."]
["Satz 1",null,null,null,null,null,null,null,null,"Satz 1",null,null,null,null,null,null,null,null,"Satz 1"]
["Satz 2",null,null,null,null,null,null,null,null,"Satz 2",null,null,null,null,null,null,null,null,"Satz 2"]
["Satz 3",null,null,null,null,null,null,null,null,"Satz 3",null,null,null,null,null,null,null,null,"Satz 3"]
["wenn erforderlich",null,null,null,null,null,null,null,null,"wenn erforderlich",null,null,null,null,null,null,null,null,"wenn erforderlich"]
["Satz 4",null,null,null,null,null,null,null,null,"Satz 4",null,null,null,null,null,null,null,null,"Satz 4"]
["wenn erforderlich",null,null,null,null,null,null,null,null,"wenn erforderlich",null,null,null,null,null,null,null,null,"wenn erforderlich"]
["Satz 5",null,null,null,null,null,null,null,null,"Satz 5",null,null,null,null,null,null,null,null,"Satz 5"]
["wenn erforderlich",null,null,null,null,null,null,null,null,"wenn erforderlich",null,null,null,null,null,null,null,null,"wenn erforderlich"]
["Stechen",null,null,null,null,null,null,null,null,"Stechen",null,null,null,null,null,null,null,null,"Stechen"]
[null,null,null,null,null,"gewonnen",null,null,null,null,null,null,null,null,"gewonnen",null,null,null,null,null,null,null,null,"gewonnen"]
["Schütze:",null,null,null,null,"verloren",null,null,null,"Schütze:",null,null,null,null,"verloren",null,null,null,"Schütze:",null,null,null,null,"verloren"]
[]
["Gegner:",null,"Name:",null,null,null,null,null,null,"Gegner:",null,"Name:",null,null,null,null,null,null,"Gegner:",null,"Name:"]
[null,null,"Unterschrift:",null,null,null,null,null,null,null,null,"Unterschrift:",null,null,null,null,null,null,null,null,"Unterschrift:"]
[]
[]
[null,null,null,null,null,null,null,null,null,null,null,null,null,null,null,null,null,null,"1/8 Elimination",null,null,null,"Scheibe:",null,{"$f":"Finale16alle!B23","v":"6B"}]
[null,null,null,null,null,null,null,null,null,null,null,null,null,null,null,null,null,null,null,1,2,3,"Summe","Punkte","Ges."]
[{"$f":"Quali!$A$1","v":"Trainingsturnier"},null,null,null,null,null,null,null,null,null,null,null,null,null,null,null,null,null,"Satz 1"]
["Veranstaltung",null,null,null,null,null,null,null,null,null,null,null,null,null,null,null,null,null,"Satz 2"]
[{"$f":"Quali!$A$3","v":"15. Mai 2022"},null,null,null,null,null,null,null,null,null,null,null,null,null,null,null,null,null,"Satz 3"]
["Datum",null,null,null,null,null,null,null,null,null,null,null,null,null,null,null,null,null,"wenn erforderlich"]
[null,null,null,null,null,null,null,null,null,null,null,null,null,null,null,null,null,null,"Satz 4"]
[null,null,null,null,null,null,null,null,null,null,null,null,null,null,null,null,null,null,"wenn erforderlich"]
[{"$f":"Finale16alle!C23","v":"S_6"},null,null,null,null,null,null,null,null,null,null,null,null,null,null,null,null,null,"Satz 5"]
["Name",null,null,null,null,null,null,null,null,null,null,null,null,null,null,null,null,null,"wenn erforderlich"]
[{"$f":"IFERROR(VLOOKUP(A405,Quali!$C$12:$H$27,2,FALSE),\" \")","v":"V_6"},null,null,null,null,null,null,null,null,null,null,null,null,null,null,null,null,null,"Stechen"]
["Verein",null,null,null,null,null,null,null,null,null,null,null,null,null,null,null,null,null,null,null,null,null,null,"gewonnen"]
[{"$f":"Quali!$A$6","v":"Compound"},null,null,null,null,null,null,null,null,null,null,null,null,null,null,null,null,null,"Schütze:",null,null,null,null,"verloren"]
["Bogenklasse"]
[null,null,null,null,null,null,null,null,null,null,null,null,null,null,null,null,null,null,"Gegner:",null,"Name:",{"$f":"Finale16alle!C22","v":"S_11"}]
[null,null,null,null,null,null,null,null,null,null,null,null,null,null,null,null,null,null,null,null,"Unterschrift:"]
[]
[]
["1/4 Finale",null,null,null,"Scheibe:",null,null,null,null,"1/2 Finale",null,null,null,"Scheibe:",null,null,null,null,"1./2. od. 3./4. Platz",null,null,null,"Scheibe:"]
[null,1,2,3,"Summe","Punkte","Ges.",null,null,null,1,2,3,"Summe","Punkte","Ges.",null,null,null,1,2,3,"Summe","Punkte","Ges."]
["Satz 1",null,null,null,null,null,null,null,null,"Satz 1",null,null,null,null,null,null,null,null,"Satz 1"]
["Satz 2",null,null,null,null,null,null,null,null,"Satz 2",null,null,null,null,null,null,null,null,"Satz 2"]
["Satz 3",null,null,null,null,null,null,null,null,"Satz 3",null,null,null,null,null,null,null,null,"Satz 3"]
["wenn erforderlich",null,null,null,null,null,null,null,null,"wenn erforderlich",null,null,null,null,null,null,null,null,"wenn erforderlich"]
["Satz 4",null,null,null,null,null,null,null,null,"Satz 4",null,null,null,null,null,null,null,null,"Satz 4"]
["wenn erforderlich",null,null,null,null,null,null,null,null,"wenn erforderlich",null,null,null,null,null,null,null,null,"wenn erforderlich"]
["Satz 5",null,null,null,null,null,null,null,null,"Satz 5",null,null,null,null,null,null,null,null,"Satz 5"]
["wenn erforderlich",null,null,null,null,null,null,null,null,"wenn erforderlich",null,null,null,null,null,null,null,null,"wenn erforderlich"]
["Stechen",null,null,null,null,null,null,null,null,"Stechen",null,null,null,null,null,null,null,null,"Stechen"]
[null,null,null,null,null,"gewonnen",null,null,null,null,null,null,null,null,"gewonnen",null,null,null,null,null,null,null,null,"gewonnen"]
["Schütze:",null,null,null,null,"verloren",null,null,null,"Schütze:",null,null,null,null,"verloren",null,null,null,"Schütze:",null,null,null,null,"verloren"]
[]
["Gegner:",null,"Name:",null,null,null,null,null,null,"Gegner:",null,"Name:",null,null,null,null,null,null,"Gegner:",null,"Name:"]
[null,null,"Unterschrift:",null,null,null,null,null,null,null,null,"Unterschrift:",null,null,null,null,null,null,null,null,"Unterschrift:"]
[]
[]
[null,null,null,null,null,null,null,null,null,null,null,null,null,null,null,null,null,null,"1/8 Elimination",null,null,null,"Scheibe:",null,{"$f":"Finale16alle!B26","v":"7A"}]
[null,null,null,null,null,null,null,null,null,null,null,null,null,null,null,null,null,null,null,1,2,3,"Summe","Punkte","Ges."]
[{"$f":"Quali!$A$1","v":"Trainingsturnier"},null,null,null,null,null,null,null,null,null,null,null,null,null,null,null,null,null,"Satz 1"]
["Veranstaltung",null,null,null,null,null,null,null,null,null,null,null,null,null,null,null,null,null,"Satz 2"]
[{"$f":"Quali!$A$3","v":"15. Mai 2022"},null,null,null,null,null,null,null,null,null,null,null,null,null,null,null,null,null,"Satz 3"]
["Datum",null,null,null,null,null,null,null,null,null,null,null,null,null,null,null,null,null,"wenn erforderlich"]
[null,null,null,null,null,null,null,null,null,null,null,null,null,null,null,null,null,null,"Satz 4"]
[null,null,null,null,null,null,null,null,null,null,null,null,null,null,null,null,null,null,"wenn erforderlich"]
[{"$f":"Finale16alle!C26","v":"S_7"},null,null,null,null,null,null,null,null,null,null,null,null,null,null,null,null,null,"Satz 5"]
["Name",null,null,null,null,null,null,null,null,null,null,null,null,null,null,null,null,null,"wenn erforderlich"]
[{"$f":"IFERROR(VLOOKUP(A441,Quali!$C$12:$H$27,2,FALSE),\" \")","v":"V_7"},null,null,null,null,null,null,null,null,null,null,null,null,null,null,null,null,null,"Stechen"]
["Verein",null,null,null,null,null,null,null,null,null,null,null,null,null,null,null,null,null,null,null,null,null,null,"gewonnen"]
[{"$f":"Quali!$A$6","v":"Compound"},null,null,null,null,null,null,null,null,null,null,null,null,null,null,null,null,null,"Schütze:",null,null,null,null,"verloren"]
["Bogenklasse"]
[null,null,null,null,null,null,null,null,null,null,null,null,null,null,null,null,null,null,"Gegner:",null,"Name:",{"$f":"Finale16alle!C27","v":"S_10"}]
[null,null,null,null,null,null,null,null,null,null,null,null,null,null,null,null,null,null,null,null,"Unterschrift:"]
[]
[]
["1/4 Finale",null,null,null,"Scheibe:",null,null,null,null,"1/2 Finale",null,null,null,"Scheibe:",null,null,null,null,"1./2. od. 3./4. Platz",null,null,null,"Scheibe:"]
[null,1,2,3,"Summe","Punkte","Ges.",null,null,null,1,2,3,"Summe","Punkte","Ges.",null,null,null,1,2,3,"Summe","Punkte","Ges."]
["Satz 1",null,null,null,null,null,null,null,null,"Satz 1",null,null,null,null,null,null,null,null,"Satz 1"]
["Satz 2",null,null,null,null,null,null,null,null,"Satz 2",null,null,null,null,null,null,null,null,"Satz 2"]
["Satz 3",null,null,null,null,null,null,null,null,"Satz 3",null,null,null,null,null,null,null,null,"Satz 3"]
["wenn erforderlich",null,null,null,null,null,null,null,null,"wenn erforderlich",null,null,null,null,null,null,null,null,"wenn erforderlich"]
["Satz 4",null,null,null,null,null,null,null,null,"Satz 4",null,null,null,null,null,null,null,null,"Satz 4"]
["wenn erforderlich",null,null,null,null,null,null,null,null,"wenn erforderlich",null,null,null,null,null,null,null,null,"wenn erforderlich"]
["Satz 5",null,null,null,null,null,null,null,null,"Satz 5",null,null,null,null,null,null,null,null,"Satz 5"]
["wenn erforderlich",null,null,null,null,null,null,null,null,"wenn erforderlich",null,null,null,null,null,null,null,null,"wenn erforderlich"]
["Stechen",null,null,null,null,null,null,null,null,"Stechen",null,null,null,null,null,null,null,null,"Stechen"]
[null,null,null,null,null,"gewonnen",null,null,null,null,null,null,null,null,"gewonnen",null,null,null,null,null,null,null,null,"gewonnen"]
["Schütze:",null,null,null,null,"verloren",null,null,null,"Schütze:",null,null,null,null,"verloren",null,null,null,"Schütze:",null,null,null,null,"verloren"]
[]
["Gegner:",null,"Name:",null,null,null,null,null,null,"Gegner:",null,"Name:",null,null,null,null,null,null,"Gegner:",null,"Name:"]
[null,null,"Unterschrift:",null,null,null,null,null,null,null,null,"Unterschrift:",null,null,null,null,null,null,null,null,"Unterschrift:"]
[]
[]
[null,null,null,null,null,null,null,null,null,null,null,null,null,null,null,null,null,null,"1/8 Elimination",null,null,null,"Scheibe:",null,{"$f":"Finale16alle!B27","v":"7B"}]
[null,null,null,null,null,null,null,null,null,null,null,null,null,null,null,null,null,null,null,1,2,3,"Summe","Punkte","Ges."]
[{"$f":"Quali!$A$1","v":"Trainingsturnier"},null,null,null,null,null,null,null,null,null,null,null,null,null,null,null,null,null,"Satz 1"]
["Veranstaltung",null,null,null,null,null,null,null,null,null,null,null,null,null,null,null,null,null,"Satz 2"]
[{"$f":"Quali!$A$3","v":"15. Mai 2022"},null,null,null,null,null,null,null,null,null,null,null,null,null,null,null,null,null,"Satz 3"]
["Datum",null,null,null,null,null,null,null,null,null,null,null,null,null,null,null,null,null,"wenn erforderlich"]
[null,null,null,null,null,null,null,null,null,null,null,null,null,null,null,null,null,null,"Satz 4"]
[null,null,null,null,null,null,null,null,null,null,null,null,null,null,null,null,null,null,"wenn erforderlich"]
[{"$f":"Finale16alle!C27","v":"S_10"},null,null,null,null,null,null,null,null,null,null,null,null,null,null,null,null,null,"Satz 5"]
["Name",null,null,null,null,null,null,null,null,null,null,null,null,null,null,null,null,null,"wenn erforderlich"]
[{"$f":"IFERROR(VLOOKUP(A477,Quali!$C$12:$H$27,2,FALSE),\" \")","v":"V_10"},null,null,null,null,null,null,null,null,null,null,null,null,null,null,null,null,null,"Stechen"]
["Verein",null,null,null,null,null,null,null,null,null,null,null,null,null,null,null,null,null,null,null,null,null,null,"gewonnen"]
[{"$f":"Quali!$A$6","v":"Compound"},null,null,null,null,null,null,null,null,null,null,null,null,null,null,null,null,null,"Schütze:",null,null,null,null,"verloren"]
["Bogenklasse"]
[null,null,null,null,null,null,null,null,null,null,null,null,null,null,null,null,null,null,"Gegner:",null,"Name:",{"$f":"Finale16alle!C26","v":"S_7"}]
[null,null,null,null,null,null,null,null,null,null,null,null,null,null,null,null,null,null,null,null,"Unterschrift:"]
[]
[]
["1/4 Finale",null,null,null,"Scheibe:",null,null,null,null,"1/2 Finale",null,null,null,"Scheibe:",null,null,null,null,"1./2. od. 3./4. Platz",null,null,null,"Scheibe:"]
[null,1,2,3,"Summe","Punkte","Ges.",null,null,null,1,2,3,"Summe","Punkte","Ges.",null,null,null,1,2,3,"Summe","Punkte","Ges."]
["Satz 1",null,null,null,null,null,null,null,null,"Satz 1",null,null,null,null,null,null,null,null,"Satz 1"]
["Satz 2",null,null,null,null,null,null,null,null,"Satz 2",null,null,null,null,null,null,null,null,"Satz 2"]
["Satz 3",null,null,null,null,null,null,null,null,"Satz 3",null,null,null,null,null,null,null,null,"Satz 3"]
["wenn erforderlich",null,null,null,null,null,null,null,null,"wenn erforderlich",null,null,null,null,null,null,null,null,"wenn erforderlich"]
["Satz 4",null,null,null,null,null,null,null,null,"Satz 4",null,null,null,null,null,null,null,null,"Satz 4"]
["wenn erforderlich",null,null,null,null,null,null,null,null,"wenn erforderlich",null,null,null,null,null,null,null,null,"wenn erforderlich"]
["Satz 5",null,null,null,null,null,null,null,null,"Satz 5",null,null,null,null,null,null,null,null,"Satz 5"]
["wenn erforderlich",null,null,null,null,null,null,null,null,"wenn erforderlich",null,null,null,null,null,null,null,null,"wenn erforderlich"]
["Stechen",null,null,null,null,null,null,null,null,"Stechen",null,null,null,null,null,null,null,null,"Stechen"]
[null,null,null,null,null,"gewonnen",null,null,null,null,null,null,null,null,"gewonnen",null,null,null,null,null,null,null,null,"gewonnen"]
["Schütze:",null,null,null,null,"verloren",null,null,null,"Schütze:",null,null,null,null,"verloren",null,null,null,"Schütze:",null,null,null,null,"verloren"]
[]
["Gegner:",null,"Name:",null,null,null,null,null,null,"Gegner:",null,"Name:",null,null,null,null,null,null,"Gegner:",null,"Name:"]
[null,null,"Unterschrift:",null,null,null,null,null,null,null,null,"Unterschrift:",null,null,null,null,null,null,null,null,"Unterschrift:"]
[]
[]
[null,null,null,null,null,null,null,null,null,null,null,null,null,null,null,null,null,null,"1/8 Elimination",null,null,null,"Scheibe:",null,{"$f":"Finale16alle!B30","v":"8A"}]
[null,null,null,null,null,null,null,null,null,null,null,null,null,null,null,null,null,null,null,1,2,3,"Summe","Punkte","Ges."]
[{"$f":"Quali!$A$1","v":"Trainingsturnier"},null,null,null,null,null,null,null,null,null,null,null,null,null,null,null,null,null,"Satz 1"]
["Veranstaltung",null,null,null,null,null,null,null,null,null,null,null,null,null,null,null,null,null,"Satz 2"]
[{"$f":"Quali!$A$3","v":"15. Mai 2022"},null,null,null,null,null,null,null,null,null,null,null,null,null,null,null,null,null,"Satz 3"]
["Datum",null,null,null,null,null,null,null,null,null,null,null,null,null,null,null,null,null,"wenn erforderlich"]
[null,null,null,null,null,null,null,null,null,null,null,null,null,null,null,null,null,null,"Satz 4"]
[null,null,null,null,null,null,null,null,null,null,null,null,null,null,null,null,null,null,"wenn erforderlich"]
[{"$f":"Finale16alle!C30","v":"S_15"},null,null,null,null,null,null,null,null,null,null,null,null,null,null,null,null,null,"Satz 5"]
["Name",null,null,null,null,null,null,null,null,null,null,null,null,null,null,null,null,null,"wenn erforderlich"]
[{"$f":"IFERROR(VLOOKUP(A513,Quali!$C$12:$H$27,2,FALSE),\" \")","v":"V_15"},null,null,null,null,null,null,null,null,null,null,null,null,null,null,null,null,null,"Stechen"]
["Verein",null,null,null,null,null,null,null,null,null,null,null,null,null,null,null,null,null,null,null,null,null,null,"gewonnen"]
[{"$f":"Quali!$A$6","v":"Compound"},null,null,null,null,null,null,null,null,null,null,null,null,null,null,null,null,null,"Schütze:",null,null,null,null,"verloren"]
["Bogenklasse"]
[null,null,null,null,null,null,null,null,null,null,null,null,null,null,null,null,null,null,"Gegner:",null,"Name:",{"$f":"Finale16alle!C31","v":"S_2"}]
[null,null,null,null,null,null,null,null,null,null,null,null,null,null,null,null,null,null,null,null,"Unterschrift:"]
[]
[]
["1/4 Finale",null,null,null,"Scheibe:",null,null,null,null,"1/2 Finale",null,null,null,"Scheibe:",null,null,null,null,"1./2. od. 3./4. Platz",null,null,null,"Scheibe:"]
[null,1,2,3,"Summe","Punkte","Ges.",null,null,null,1,2,3,"Summe","Punkte","Ges.",null,null,null,1,2,3,"Summe","Punkte","Ges."]
["Satz 1",null,null,null,null,null,null,null,null,"Satz 1",null,null,null,null,null,null,null,null,"Satz 1"]
["Satz 2",null,null,null,null,null,null,null,null,"Satz 2",null,null,null,null,null,null,null,null,"Satz 2"]
["Satz 3",null,null,null,null,null,null,null,null,"Satz 3",null,null,null,null,null,null,null,null,"Satz 3"]
["wenn erforderlich",null,null,null,null,null,null,null,null,"wenn erforderlich",null,null,null,null,null,null,null,null,"wenn erforderlich"]
["Satz 4",null,null,null,null,null,null,null,null,"Satz 4",null,null,null,null,null,null,null,null,"Satz 4"]
["wenn erforderlich",null,null,null,null,null,null,null,null,"wenn erforderlich",null,null,null,null,null,null,null,null,"wenn erforderlich"]
["Satz 5",null,null,null,null,null,null,null,null,"Satz 5",null,null,null,null,null,null,null,null,"Satz 5"]
["wenn erforderlich",null,null,null,null,null,null,null,null,"wenn erforderlich",null,null,null,null,null,null,null,null,"wenn erforderlich"]
["Stechen",null,null,null,null,null,null,null,null,"Stechen",null,null,null,null,null,null,null,null,"Stechen"]
[null,null,null,null,null,"gewonnen",null,null,null,null,null,null,null,null,"gewonnen",null,null,null,null,null,null,null,null,"gewonnen"]
["Schütze:",null,null,null,null,"verloren",null,null,null,"Schütze:",null,null,null,null,"verloren",null,null,null,"Schütze:",null,null,null,null,"verloren"]
[]
["Gegner:",null,"Name:",null,null,null,null,null,null,"Gegner:",null,"Name:",null,null,null,null,null,null,"Gegner:",null,"Name:"]
[null,null,"Unterschrift:",null,null,null,null,null,null,null,null,"Unterschrift:",null,null,null,null,null,null,null,null,"Unterschrift:"]
[]
[]
[null,null,null,null,null,null,null,null,null,null,null,null,null,null,null,null,null,null,"1/8 Elimination",null,null,null,"Scheibe:",null,{"$f":"Finale16alle!B31","v":"8B"}]
[null,null,null,null,null,null,null,null,null,null,null,null,null,null,null,null,null,null,null,1,2,3,"Summe","Punkte","Ges."]
[{"$f":"Quali!$A$1","v":"Trainingsturnier"},null,null,null,null,null,null,null,null,null,null,null,null,null,null,null,null,null,"Satz 1"]
["Veranstaltung",null,null,null,null,null,null,null,null,null,null,null,null,null,null,null,null,null,"Satz 2"]
[{"$f":"Quali!$A$3","v":"15. Mai 2022"},null,null,null,null,null,null,null,null,null,null,null,null,null,null,null,null,null,"Satz 3"]
["Datum",null,null,null,null,null,null,null,null,null,null,null,null,null,null,null,null,null,"wenn erforderlich"]
[null,null,null,null,null,null,null,null,null,null,null,null,null,null,null,null,null,null,"Satz 4"]
[null,null,null,null,null,null,null,null,null,null,null,null,null,null,null,null,null,null,"wenn erforderlich"]
[{"$f":"Finale16alle!C31","v":"S_2"},null,null,null,null,null,null,null,null,null,null,null,null,null,null,null,null,null,"Satz 5"]
["Name",null,null,null,null,null,null,null,null,null,null,null,null,null,null,null,null,null,"wenn erforderlich"]
[{"$f":"IFERROR(VLOOKUP(A549,Quali!$C$12:$H$27,2,FALSE),\" \")","v":"V_2"},null,null,null,null,null,null,null,null,null,null,null,null,null,null,null,null,null,"Stechen"]
["Verein",null,null,null,null,null,null,null,null,null,null,null,null,null,null,null,null,null,null,null,null,null,null,"gewonnen"]
[{"$f":"Quali!$A$6","v":"Compound"},null,null,null,null,null,null,null,null,null,null,null,null,null,null,null,null,null,"Schütze:",null,null,null,null,"verloren"]
["Bogenklasse"]
[null,null,null,null,null,null,null,null,null,null,null,null,null,null,null,null,null,null,"Gegner:",null,"Name:",{"$f":"Finale16alle!C30","v":"S_15"}]
[null,null,null,null,null,null,null,null,null,null,null,null,null,null,null,null,null,null,null,null,"Unterschrift:"]
[]
[]
["1/4 Finale",null,null,null,"Scheibe:",null,null,null,null,"1/2 Finale",null,null,null,"Scheibe:",null,null,null,null,"1./2. od. 3./4. Platz",null,null,null,"Scheibe:"]
[null,1,2,3,"Summe","Punkte","Ges.",null,null,null,1,2,3,"Summe","Punkte","Ges.",null,null,null,1,2,3,"Summe","Punkte","Ges."]
["Satz 1",null,null,null,null,null,null,null,null,"Satz 1",null,null,null,null,null,null,null,null,"Satz 1"]
["Satz 2",null,null,null,null,null,null,null,null,"Satz 2",null,null,null,null,null,null,null,null,"Satz 2"]
["Satz 3",null,null,null,null,null,null,null,null,"Satz 3",null,null,null,null,null,null,null,null,"Satz 3"]
["wenn erforderlich",null,null,null,null,null,null,null,null,"wenn erforderlich",null,null,null,null,null,null,null,null,"wenn erforderlich"]
["Satz 4",null,null,null,null,null,null,null,null,"Satz 4",null,null,null,null,null,null,null,null,"Satz 4"]
["wenn erforderlich",null,null,null,null,null,null,null,null,"wenn erforderlich",null,null,null,null,null,null,null,null,"wenn erforderlich"]
["Satz 5",null,null,null,null,null,null,null,null,"Satz 5",null,null,null,null,null,null,null,null,"Satz 5"]
["wenn erforderlich",null,null,null,null,null,null,null,null,"wenn erforderlich",null,null,null,null,null,null,null,null,"wenn erforderlich"]
["Stechen",null,null,null,null,null,null,null,null,"Stechen",null,null,null,null,null,null,null,null,"Stechen"]
[null,null,null,null,null,"gewonnen",null,null,null,null,null,null,null,null,"gewonnen",null,null,null,null,null,null,null,null,"gewonnen"]
["Schütze:",null,null,null,null,"verloren",null,null,null,"Schütze:",null,null,null,null,"verloren",null,null,null,"Schütze:",null,null,null,null,"verloren"]
[]
["Gegner:",null,"Name:",null,null,null,null,null,null,"Gegner:",null,"Name:",null,null,null,null,null,null,"Gegner:",null,"Name:"]
[null,null,"Unterschrift:",null,null,null,null,null,null,null,null,"Unterschrift:",null,null,null,null,null,null,null,null,"Unterschrift:"]

{"sheet":"Schusszettel_C","index":4,"n_rows":510,"n_cols":22,"rows_kept":510,"cut":false,"hidden":false,"merged":[[10,0,10,6],[2,0,2,6],[3,0,3,1],[4,0,4,6],[0,8,0,11],[0,12,0,14],[0,16,0,19],[0,21,0,22],[1,13,1,14],[1,21,1,22],[16,0,16,3],[16,5,16,6],[16,8,16,11],[16,13,16,14],[6,0,6,6],[8,0,8,6],[16,16,16,19],[16,21,16,22],[17,5,17,6],[17,13,17,14],[17,21,17,22],[42,0,42,6],[34,0,34,6],[35,0,35,1],[36,0,36,6],[32,8,32,11],[32,12,32,14],[32,16,32,19],[32,21,32,22],[33,13,33,14],[33,21,33,22],[48,0,48,3],[48,5,48,6],[48,8,48,11],[48,13,48,14],[38,0,38,6],[40,0,40,6],[48,16,48,19],[48,21,48,22],[49,5,49,6],[49,13,49,14],[49,21,49,22],[74,0,74,6],[66,0,66,6],[67,0,67,1],[68,0,68,6],[64,8,64,11],[64,12,64,14],[64,16,64,19],[64,21,64,22],[65,13,65,14],[65,21,65,22],[80,0,80,3],[80,5,80,6],[80,8,80,11],[80,13,80,14],[70,0,70,6],[72,0,72,6],[80,16,80,19],[80,21,80,22],[81,5,81,6],[81,13,81,14],[81,21,81,22],[106,0,106,6],[98,0,98,6],[99,0,99,1],[100,0,100,6],[96,8,96,11],[96,12,96,14],[96,16,96,19],[96,21,96,22],[97,13,97,14],[97,21,97,22],[112,0,112,3],[112,5,112,6],[112,8,112,11],[112,13,112,14],[102,0,102,6],[104,0,104,6],[112,16,112,19],[112,21,112,22],[113,5,113,6],[113,13,113,14],[113,21,113,22],[138,0,138,6],[130,0,130,6],[131,0,131,1],[132,0,132,6],[128,8,128,11],[128,12,128,14],[128,16,128,19],[128,21,128,22],[129,13,129,14],[129,21,129,22],[144,0,144,3],[144,5,144,6],[144,8,144,11],[144,13,144,14],[134,0,134,6],[136,0,136,6],[144,16,144,19],[144,21,144,22],[145,5,145,6],[145,13,145,14],[145,21,145,22],[170,0,170,6],[162,0,162,6],[163,0,163,1],[164,0,164,6],[160,8,160,11],[160,12,160,14],[160,16,160,19],[160,21,160,22],[161,13,161,14],[161,21,161,22],[176,0,176,3],[176,5,176,6],[176,8,176,11],[176,13,176,14],[166,0,166,6],[168,0,168,6],[176,16,176,19],[176,21,176,22],[177,5,177,6],[177,13,177,14],[177,21,177,22],[202,0,202,6],[194,0,194,6],[195,0,195,1],[196,0,196,6],[192,8,192,11],[192,12,192,14],[192,16,192,19],[192,21,192,22],[193,13,193,14],[193,21,193,22],[208,0,208,3],[208,5,208,6],[208,8,208,11],[208,13,208,14],[198,0,198,6],[200,0,200,6],[208,16,208,19],[208,21,208,22],[209,5,209,6],[209,13,209,14],[209,21,209,22],[234,0,234,6],[226,0,226,6],[227,0,227,1],[228,0,228,6],[224,8,224,11],[224,12,224,14],[224,16,224,19],[224,21,224,22],[225,13,225,14],[225,21,225,22],[240,0,240,3],[240,5,240,6],[240,8,240,11],[240,13,240,14],[230,0,230,6],[232,0,232,6],[240,16,240,19],[240,21,240,22],[241,5,241,6],[241,13,241,14],[241,21,241,22],[266,0,266,6],[258,0,258,6],[259,0,259,1],[260,0,260,6],[256,8,256,11],[256,12,256,14],[256,16,256,19],[256,21,256,22],[257,13,257,14],[257,21,257,22],[272,0,272,3],[272,5,272,6],[272,8,272,11],[272,13,272,14],[262,0,262,6],[264,0,264,6],[272,16,272,19],[272,21,272,22],[273,5,273,6],[273,13,273,14],[273,21,273,22],[298,0,298,6],[290,0,290,6],[291,0,291,1],[292,0,292,6],[288,8,288,11],[288,12,288,14],[288,16,288,19],[288,21,288,22],[289,13,289,14],[289,21,289,22],[304,0,304,3],[304,5,304,6],[304,8,304,11],[304,13,304,14],[294,0,294,6],[296,0,296,6],[304,16,304,19],[304,21,304,22],[305,5,305,6],[305,13,305,14],[305,21,305,22],[330,0,330,6],[322,0,322,6],[323,0,323,1],[324,0,324,6],[320,8,320,11],[320,12,320,14],[320,16,320,19],[320,21,320,22],[321,13,321,14],[321,21,321,22],[336,0,336,3],[336,5,336,6],[336,8,336,11],[336,13,336,14],[326,0,326,6],[328,0,328,6],[336,16,336,19],[336,21,336,22],[337,5,337,6],[337,13,337,14],[337,21,337,22],[362,0,362,6],[354,0,354,6],[355,0,355,1],[356,0,356,6],[352,8,352,11],[352,12,352,14],[352,16,352,19],[352,21,352,22],[353,13,353,14],[353,21,353,22],[368,0,368,3],[368,5,368,6],[368,8,368,11],[368,13,368,14],[358,0,358,6],[360,0,360,6],[368,16,368,19],[368,21,368,22],[369,5,369,6],[369,13,369,14],[369,21,369,22],[394,0,394,6],[386,0,386,6],[387,0,387,1],[388,0,388,6],[384,8,384,11],[384,12,384,14],[384,16,384,19],[384,21,384,22],[385,13,385,14],[385,21,385,22],[400,0,400,3],[400,5,400,6],[400,8,400,11],[400,13,400,14],[390,0,390,6],[392,0,392,6],[400,16,400,19],[400,21,400,22],[401,5,401,6],[401,13,401,14],[401,21,401,22],[426,0,426,6],[418,0,418,6],[419,0,419,1],[420,0,420,6],[416,8,416,11],[416,12,416,14],[416,16,416,19],[416,21,416,22],[417,13,417,14],[417,21,417,22],[432,0,432,3],[432,5,432,6],[432,8,432,11],[432,13,432,14],[422,0,422,6],[424,0,424,6],[432,16,432,19],[432,21,432,22],[433,5,433,6],[433,13,433,14],[433,21,433,22],[458,0,458,6],[450,0,450,6],[451,0,451,1],[452,0,452,6],[448,8,448,11],[448,12,448,14],[448,16,448,19],[448,21,448,22],[449,13,449,14],[449,21,449,22],[464,0,464,3],[464,5,464,6],[464,8,464,11],[464,13,464,14],[454,0,454,6],[456,0,456,6],[464,16,464,19],[464,21,464,22],[465,5,465,6],[465,13,465,14],[465,21,465,22],[490,0,490,6],[482,0,482,6],[483,0,483,1],[484,0,484,6],[480,8,480,11],[480,12,480,14],[480,16,480,19],[480,21,480,22],[481,13,481,14],[481,21,481,22],[496,0,496,3],[496,5,496,6],[496,8,496,11],[496,13,496,14],[486,0,486,6],[488,0,488,6],[496,16,496,19],[496,21,496,22],[497,5,497,6],[497,13,497,14],[497,21,497,22]]}
[null,null,null,null,null,null,null,null,null,null,null,null,null,null,null,null,"1/8 Elimination",null,null,null,"Scheibe:",{"$f":"Finale16alle!B2","v":"1A"}]
[null,null,null,null,null,null,null,null,null,null,null,null,null,null,null,null,null,1,2,3,"Summe","Gesamt"]
[{"$f":"Quali!$A$1","v":"Trainingsturnier"},null,null,null,null,null,null,null,null,null,null,null,null,null,null,null,"End 1"]
["Veranstaltung",null,null,null,null,null,null,null,null,null,null,null,null,null,null,null,"End 2"]
[{"$f":"Quali!$A$3","v":"15. Mai 2022"},null,null,null,null,null,null,null,null,null,null,null,null,null,null,null,"End 3"]
["Datum",null,null,null,null,null,null,null,null,null,null,null,null,null,null,null,"End 4"]
[{"$f":"Finale16alle!C2","v":"S_1"},null,null,null,null,null,null,null,null,null,null,null,null,null,null,null,"End 5"]
["Name",null,null,null,null,null,null,null,null,null,null,null,null,null,null,null,"wenn erforderlich"]
[{"$f":"IFERROR(VLOOKUP(A7,Quali!$C$12:$H$27,2,FALSE),\" \")","v":"V_1"},null,null,null,null,null,null,null,null,null,null,null,null,null,null,null,"Stechen"]
["Verein",null,null,null,null,null,null,null,null,null,null,null,null,null,null,null,null,null,null,null,null,"gewonnen"]
[{"$f":"Quali!$A$6","v":"Compound"},null,null,null,null,null,null,null,null,null,null,null,null,null,null,null,"Schütze:",null,null,null,null,"verloren"]
["Bogenklasse"]
[null,null,null,null,null,null,null,null,null,null,null,null,null,null,null,null,"Gegner:",null,"Name:",{"$f":"Finale16alle!C3","v":"S_16"}]
[null,null,null,null,null,null,null,null,null,null,null,null,null,null,null,null,null,null,"Unterschrift:"]
[]
[]
["1/4 Finale",null,null,null,"Scheibe:",null,null,null,"1/2 Finale",null,null,null,"Scheibe:",null,null,null,"1./2. od. 3./4. Platz",null,null,null,"Scheibe:"]
[null,1,2,3,"Summe","Gesamt",null,null,null,1,2,3,"Summe","Gesamt",null,null,null,1,2,3,"Summe","Gesamt"]
["End 1",null,null,null,null,null,null,null,"End 1",null,null,null,null,null,null,null,"End 1"]
["End 2",null,null,null,null,null,null,null,"End 2",null,null,null,null,null,null,null,"End 2"]
["End 3",null,null,null,null,null,null,null,"End 3",null,null,null,null,null,null,null,"End 3"]
["End 4",null,null,null,null,null,null,null,"End 4",null,null,null,null,null,null,null,"End 4"]
["End 5",null,null,null,null,null,null,null,"End 5",null,null,null,null,null,null,null,"End 5"]
["wenn erforderlich",null,null,null,null,null,null,null,"wenn erforderlich",null,null,null,null,null,null,null,"wenn erforderlich"]
["Stechen",null,null,null,null,null,null,null,"Stechen",null,null,null,null,null,null,null,"Stechen"]
[null,null,null,null,null,"gewonnen",null,null,null,null,null,null,null,"gewonnen",null,null,null,null,null,null,null,"gewonnen"]
["Schütze:",null,null,null,null,"verloren",null,null,"Schütze:",null,null,null,null,"verloren",null,null,"Schütze:",null,null,null,null,"verloren"]
[]
["Gegner:",null,"Name:",null,null,null,null,null,"Gegner:",null,"Name:",null,null,null,null,null,"Gegner:",null,"Name:"]
[null,null,"Unterschrift:",null,null,null,null,null,null,null,"Unterschrift:",null,null,null,null,null,null,null,"Unterschrift:"]
[]
[]
[null,null,null,null,null,null,null,null,null,null,null,null,null,null,null,null,"1/8 Elimination",null,null,null,"Scheibe:",{"$f":"Finale16alle!B3","v":"1B"}]
[null,null,null,null,null,null,null,null,null,null,null,null,null,null,null,null,null,1,2,3,"Summe","Gesamt"]
[{"$f":"Quali!$A$1","v":"Trainingsturnier"},null,null,null,null,null,null,null,null,null,null,null,null,null,null,null,"End 1"]
["Veranstaltung",null,null,null,null,null,null,null,null,null,null,null,null,null,null,null,"End 2"]
[{"$f":"Quali!$A$3","v":"15. Mai 2022"},null,null,null,null,null,null,null,null,null,null,null,null,null,null,null,"End 3"]
["Datum",null,null,null,null,null,null,null,null,null,null,null,null,null,null,null,"End 4"]
[{"$f":"Finale16alle!C3","v":"S_16"},null,null,null,null,null,null,null,null,null,null,null,null,null,null,null,"End 5"]
["Name",null,null,null,null,null,null,null,null,null,null,null,null,null,null,null,"wenn erforderlich"]
[{"$f":"IFERROR(VLOOKUP(A39,Quali!$C$12:$H$27,2,FALSE),\" \")","v":"V_16"},null,null,null,null,null,null,null,null,null,null,null,null,null,null,null,"Stechen"]
["Verein",null,null,null,null,null,null,null,null,null,null,null,null,null,null,null,null,null,null,null,null,"gewonnen"]
[{"$f":"Quali!$A$6","v":"Compound"},null,null,null,null,null,null,null,null,null,null,null,null,null,null,null,"Schütze:",null,null,null,null,"verloren"]
["Bogenklasse"]
[null,null,null,null,null,null,null,null,null,null,null,null,null,null,null,null,"Gegner:",null,"Name:",{"$f":"Finale16alle!C2","v":"S_1"}]
[null,null,null,null,null,null,null,null,null,null,null,null,null,null,null,null,null,null,"Unterschrift:"]
[]
[]
["1/4 Finale",null,null,null,"Scheibe:",null,null,null,"1/2 Finale",null,null,null,"Scheibe:",null,null,null,"1./2. od. 3./4. Platz",null,null,null,"Scheibe:"]
[null,1,2,3,"Summe","Gesamt",null,null,null,1,2,3,"Summe","Gesamt",null,null,null,1,2,3,"Summe","Gesamt"]
["End 1",null,null,null,null,null,null,null,"End 1",null,null,null,null,null,null,null,"End 1"]
["End 2",null,null,null,null,null,null,null,"End 2",null,null,null,null,null,null,null,"End 2"]
["End 3",null,null,null,null,null,null,null,"End 3",null,null,null,null,null,null,null,"End 3"]
["End 4",null,null,null,null,null,null,null,"End 4",null,null,null,null,null,null,null,"End 4"]
["End 5",null,null,null,null,null,null,null,"End 5",null,null,null,null,null,null,null,"End 5"]
["wenn erforderlich",null,null,null,null,null,null,null,"wenn erforderlich",null,null,null,null,null,null,null,"wenn erforderlich"]
["Stechen",null,null,null,null,null,null,null,"Stechen",null,null,null,null,null,null,null,"Stechen"]
[null,null,null,null,null,"gewonnen",null,null,null,null,null,null,null,"gewonnen",null,null,null,null,null,null,null,"gewonnen"]
["Schütze:",null,null,null,null,"verloren",null,null,"Schütze:",null,null,null,null,"verloren",null,null,"Schütze:",null,null,null,null,"verloren"]
[]
["Gegner:",null,"Name:",null,null,null,null,null,"Gegner:",null,"Name:",null,null,null,null,null,"Gegner:",null,"Name:"]
[null,null,"Unterschrift:",null,null,null,null,null,null,null,"Unterschrift:",null,null,null,null,null,null,null,"Unterschrift:"]
[]
[]
[null,null,null,null,null,null,null,null,null,null,null,null,null,null,null,null,"1/8 Elimination",null,null,null,"Scheibe:",{"$f":"Finale16alle!B6","v":"2A"}]
[null,null,null,null,null,null,null,null,null,null,null,null,null,null,null,null,null,1,2,3,"Summe","Gesamt"]
[{"$f":"Quali!$A$1","v":"Trainingsturnier"},null,null,null,null,null,null,null,null,null,null,null,null,null,null,null,"End 1"]
["Veranstaltung",null,null,null,null,null,null,null,null,null,null,null,null,null,null,null,"End 2"]
[{"$f":"Quali!$A$3","v":"15. Mai 2022"},null,null,null,null,null,null,null,null,null,null,null,null,null,null,null,"End 3"]
["Datum",null,null,null,null,null,null,null,null,null,null,null,null,null,null,null,"End 4"]
[{"$f":"Finale16alle!C6","v":"S_9"},null,null,null,null,null,null,null,null,null,null,null,null,null,null,null,"End 5"]
["Name",null,null,null,null,null,null,null,null,null,null,null,null,null,null,null,"wenn erforderlich"]
[{"$f":"IFERROR(VLOOKUP(A71,Quali!$C$12:$H$27,2,FALSE),\" \")","v":"V_9"},null,null,null,null,null,null,null,null,null,null,null,null,null,null,null,"Stechen"]
["Verein",null,null,null,null,null,null,null,null,null,null,null,null,null,null,null,null,null,null,null,null,"gewonnen"]
[{"$f":"Quali!$A$6","v":"Compound"},null,null,null,null,null,null,null,null,null,null,null,null,null,null,null,"Schütze:",null,null,null,null,"verloren"]
["Bogenklasse"]
[null,null,null,null,null,null,null,null,null,null,null,null,null,null,null,null,"Gegner:",null,"Name:",{"$f":"Finale16alle!C7","v":"S_8"}]
[null,null,null,null,null,null,null,null,null,null,null,null,null,null,null,null,null,null,"Unterschrift:"]
[]
[]
["1/4 Finale",null,null,null,"Scheibe:",null,null,null,"1/2 Finale",null,null,null,"Scheibe:",null,null,null,"1./2. od. 3./4. Platz",null,null,null,"Scheibe:"]
[null,1,2,3,"Summe","Gesamt",null,null,null,1,2,3,"Summe","Gesamt",null,null,null,1,2,3,"Summe","Gesamt"]
["End 1",null,null,null,null,null,null,null,"End 1",null,null,null,null,null,null,null,"End 1"]
["End 2",null,null,null,null,null,null,null,"End 2",null,null,null,null,null,null,null,"End 2"]
["End 3",null,null,null,null,null,null,null,"End 3",null,null,null,null,null,null,null,"End 3"]
["End 4",null,null,null,null,null,null,null,"End 4",null,null,null,null,null,null,null,"End 4"]
["End 5",null,null,null,null,null,null,null,"End 5",null,null,null,null,null,null,null,"End 5"]
["wenn erforderlich",null,null,null,null,null,null,null,"wenn erforderlich",null,null,null,null,null,null,null,"wenn erforderlich"]
["Stechen",null,null,null,null,null,null,null,"Stechen",null,null,null,null,null,null,null,"Stechen"]
[null,null,null,null,null,"gewonnen",null,null,null,null,null,null,null,"gewonnen",null,null,null,null,null,null,null,"gewonnen"]
["Schütze:",null,null,null,null,"verloren",null,null,"Schütze:",null,null,null,null,"verloren",null,null,"Schütze:",null,null,null,null,"verloren"]
[]
["Gegner:",null,"Name:",null,null,null,null,null,"Gegner:",null,"Name:",null,null,null,null,null,"Gegner:",null,"Name:"]
[null,null,"Unterschrift:",null,null,null,null,null,null,null,"Unterschrift:",null,null,null,null,null,null,null,"Unterschrift:"]
[]
[]
[null,null,null,null,null,null,null,null,null,null,null,null,null,null,null,null,"1/8 Elimination",null,null,null,"Scheibe:",{"$f":"Finale16alle!B7","v":"2B"}]
[null,null,null,null,null,null,null,null,null,null,null,null,null,null,null,null,null,1,2,3,"Summe","Gesamt"]
[{"$f":"Quali!$A$1","v":"Trainingsturnier"},null,null,null,null,null,null,null,null,null,null,null,null,null,null,null,"End 1"]
["Veranstaltung",null,null,null,null,null,null,null,null,null,null,null,null,null,null,null,"End 2"]
[{"$f":"Quali!$A$3","v":"15. Mai 2022"},null,null,null,null,null,null,null,null,null,null,null,null,null,null,null,"End 3"]
["Datum",null,null,null,null,null,null,null,null,null,null,null,null,null,null,null,"End 4"]
[{"$f":"Finale16alle!C7","v":"S_8"},null,null,null,null,null,null,null,null,null,null,null,null,null,null,null,"End 5"]
["Name",null,null,null,null,null,null,null,null,null,null,null,null,null,null,null,"wenn erforderlich"]
[{"$f":"IFERROR(VLOOKUP(A103,Quali!$C$12:$H$27,2,FALSE),\" \")","v":"V_8"},null,null,null,null,null,null,null,null,null,null,null,null,null,null,null,"Stechen"]
["Verein",null,null,null,null,null,null,null,null,null,null,null,null,null,null,null,null,null,null,null,null,"gewonnen"]
[{"$f":"Quali!$A$6","v":"Compound"},null,null,null,null,null,null,null,null,null,null,null,null,null,null,null,"Schütze:",null,null,null,null,"verloren"]
["Bogenklasse"]
[null,null,null,null,null,null,null,null,null,null,null,null,null,null,null,null,"Gegner:",null,"Name:",{"$f":"Finale16alle!C6","v":"S_9"}]
[null,null,null,null,null,null,null,null,null,null,null,null,null,null,null,null,null,null,"Unterschrift:"]
[]
[]
["1/4 Finale",null,null,null,"Scheibe:",null,null,null,"1/2 Finale",null,null,null,"Scheibe:",null,null,null,"1./2. od. 3./4. Platz",null,null,null,"Scheibe:"]
[null,1,2,3,"Summe","Gesamt",null,null,null,1,2,3,"Summe","Gesamt",null,null,null,1,2,3,"Summe","Gesamt"]
["End 1",null,null,null,null,null,null,null,"End 1",null,null,null,null,null,null,null,"End 1"]
["End 2",null,null,null,null,null,null,null,"End 2",null,null,null,null,null,null,null,"End 2"]
["End 3",null,null,null,null,null,null,null,"End 3",null,null,null,null,null,null,null,"End 3"]
["End 4",null,null,null,null,null,null,null,"End 4",null,null,null,null,null,null,null,"End 4"]
["End 5",null,null,null,null,null,null,null,"End 5",null,null,null,null,null,null,null,"End 5"]
["wenn erforderlich",null,null,null,null,null,null,null,"wenn erforderlich",null,null,null,null,null,null,null,"wenn erforderlich"]
["Stechen",null,null,null,null,null,null,null,"Stechen",null,null,null,null,null,null,null,"Stechen"]
[null,null,null,null,null,"gewonnen",null,null,null,null,null,null,null,"gewonnen",null,null,null,null,null,null,null,"gewonnen"]
["Schütze:",null,null,null,null,"verloren",null,null,"Schütze:",null,null,null,null,"verloren",null,null,"Schütze:",null,null,null,null,"verloren"]
[]
["Gegner:",null,"Name:",null,null,null,null,null,"Gegner:",null,"Name:",null,null,null,null,null,"Gegner:",null,"Name:"]
[null,null,"Unterschrift:",null,null,null,null,null,null,null,"Unterschrift:",null,null,null,null,null,null,null,"Unterschrift:"]
[]
[]
[null,null,null,null,null,null,null,null,null,null,null,null,null,null,null,null,"1/8 Elimination",null,null,null,"Scheibe:",{"$f":"Finale16alle!B10","v":"3A"}]
[null,null,null,null,null,null,null,null,null,null,null,null,null,null,null,null,null,1,2,3,"Summe","Gesamt"]
[{"$f":"Quali!$A$1","v":"Trainingsturnier"},null,null,null,null,null,null,null,null,null,null,null,null,null,null,null,"End 1"]
["Veranstaltung",null,null,null,null,null,null,null,null,null,null,null,null,null,null,null,"End 2"]
[{"$f":"Quali!$A$3","v":"15. Mai 2022"},null,null,null,null,null,null,null,null,null,null,null,null,null,null,null,"End 3"]
["Datum",null,null,null,null,null,null,null,null,null,null,null,null,null,null,null,"End 4"]
[{"$f":"Finale16alle!C10","v":"S_5"},null,null,null,null,null,null,null,null,null,null,null,null,null,null,null,"End 5"]
["Name",null,null,null,null,null,null,null,null,null,null,null,null,null,null,null,"wenn erforderlich"]
[{"$f":"IFERROR(VLOOKUP(A135,Quali!$C$12:$H$27,2,FALSE),\" \")","v":"V_5"},null,null,null,null,null,null,null,null,null,null,null,null,null,null,null,"Stechen"]
["Verein",null,null,null,null,null,null,null,null,null,null,null,null,null,null,null,null,null,null,null,null,"gewonnen"]
[{"$f":"Quali!$A$6","v":"Compound"},null,null,null,null,null,null,null,null,null,null,null,null,null,null,null,"Schütze:",null,null,null,null,"verloren"]
["Bogenklasse"]
[null,null,null,null,null,null,null,null,null,null,null,null,null,null,null,null,"Gegner:",null,"Name:",{"$f":"Finale16alle!C11","v":"S_12"}]
[null,null,null,null,null,null,null,null,null,null,null,null,null,null,null,null,null,null,"Unterschrift:"]
[]
[]
["1/4 Finale",null,null,null,"Scheibe:",null,null,null,"1/2 Finale",null,null,null,"Scheibe:",null,null,null,"1./2. od. 3./4. Platz",null,null,null,"Scheibe:"]
[null,1,2,3,"Summe","Gesamt",null,null,null,1,2,3,"Summe","Gesamt",null,null,null,1,2,3,"Summe","Gesamt"]
["End 1",null,null,null,null,null,null,null,"End 1",null,null,null,null,null,null,null,"End 1"]
["End 2",null,null,null,null,null,null,null,"End 2",null,null,null,null,null,null,null,"End 2"]
["End 3",null,null,null,null,null,null,null,"End 3",null,null,null,null,null,null,null,"End 3"]
["End 4",null,null,null,null,null,null,null,"End 4",null,null,null,null,null,null,null,"End 4"]
["End 5",null,null,null,null,null,null,null,"End 5",null,null,null,null,null,null,null,"End 5"]
["wenn erforderlich",null,null,null,null,null,null,null,"wenn erforderlich",null,null,null,null,null,null,null,"wenn erforderlich"]
["Stechen",null,null,null,null,null,null,null,"Stechen",null,null,null,null,null,null,null,"Stechen"]
[null,null,null,null,null,"gewonnen",null,null,null,null,null,null,null,"gewonnen",null,null,null,null,null,null,null,"gewonnen"]
["Schütze:",null,null,null,null,"verloren",null,null,"Schütze:",null,null,null,null,"verloren",null,null,"Schütze:",null,null,null,null,"verloren"]
[]
["Gegner:",null,"Name:",null,null,null,null,null,"Gegner:",null,"Name:",null,null,null,null,null,"Gegner:",null,"Name:"]
[null,null,"Unterschrift:",null,null,null,null,null,null,null,"Unterschrift:",null,null,null,null,null,null,null,"Unterschrift:"]
[]
[]
[null,null,null,null,null,null,null,null,null,null,null,null,null,null,null,null,"1/8 Elimination",null,null,null,"Scheibe:",{"$f":"Finale16alle!B11","v":"3B"}]
[null,null,null,null,null,null,null,null,null,null,null,null,null,null,null,null,null,1,2,3,"Summe","Gesamt"]
[{"$f":"Quali!$A$1","v":"Trainingsturnier"},null,null,null,null,null,null,null,null,null,null,null,null,null,null,null,"End 1"]
["Veranstaltung",null,null,null,null,null,null,null,null,null,null,null,null,null,null,null,"End 2"]
[{"$f":"Quali!$A$3","v":"15. Mai 2022"},null,null,null,null,null,null,null,null,null,null,null,null,null,null,null,"End 3"]
["Datum",null,null,null,null,null,null,null,null,null,null,null,null,null,null,null,"End 4"]
[{"$f":"Finale16alle!C11","v":"S_12"},null,null,null,null,null,null,null,null,null,null,null,null,null,null,null,"End 5"]
["Name",null,null,null,null,null,null,null,null,null,null,null,null,null,null,null,"wenn erforderlich"]
[{"$f":"IFERROR(VLOOKUP(A167,Quali!$C$12:$H$27,2,FALSE),\" \")","v":"V_12"},null,null,null,null,null,null,null,null,null,null,null,null,null,null,null,"Stechen"]
["Verein",null,null,null,null,null,null,null,null,null,null,null,null,null,null,null,null,null,null,null,null,"gewonnen"]
[{"$f":"Quali!$A$6","v":"Compound"},null,null,null,null,null,null,null,null,null,null,null,null,null,null,null,"Schütze:",null,null,null,null,"verloren"]
["Bogenklasse"]
[null,null,null,null,null,null,null,null,null,null,null,null,null,null,null,null,"Gegner:",null,"Name:",{"$f":"Finale16alle!C10","v":"S_5"}]
[null,null,null,null,null,null,null,null,null,null,null,null,null,null,null,null,null,null,"Unterschrift:"]
[]
[]
["1/4 Finale",null,null,null,"Scheibe:",null,null,null,"1/2 Finale",null,null,null,"Scheibe:",null,null,null,"1./2. od. 3./4. Platz",null,null,null,"Scheibe:"]
[null,1,2,3,"Summe","Gesamt",null,null,null,1,2,3,"Summe","Gesamt",null,null,null,1,2,3,"Summe","Gesamt"]
["End 1",null,null,null,null,null,null,null,"End 1",null,null,null,null,null,null,null,"End 1"]
["End 2",null,null,null,null,null,null,null,"End 2",null,null,null,null,null,null,null,"End 2"]
["End 3",null,null,null,null,null,null,null,"End 3",null,null,null,null,null,null,null,"End 3"]
["End 4",null,null,null,null,null,null,null,"End 4",null,null,null,null,null,null,null,"End 4"]
["End 5",null,null,null,null,null,null,null,"End 5",null,null,null,null,null,null,null,"End 5"]
["wenn erforderlich",null,null,null,null,null,null,null,"wenn erforderlich",null,null,null,null,null,null,null,"wenn erforderlich"]
["Stechen",null,null,null,null,null,null,null,"Stechen",null,null,null,null,null,null,null,"Stechen"]
[null,null,null,null,null,"gewonnen",null,null,null,null,null,null,null,"gewonnen",null,null,null,null,null,null,null,"gewonnen"]
["Schütze:",null,null,null,null,"verloren",null,null,"Schütze:",null,null,null,null,"verloren",null,null,"Schütze:",null,null,null,null,"verloren"]
[]
["Gegner:",null,"Name:",null,null,null,null,null,"Gegner:",null,"Name:",null,null,null,null,null,"Gegner:",null,"Name:"]
[null,null,"Unterschrift:",null,null,null,null,null,null,null,"Unterschrift:",null,null,null,null,null,null,null,"Unterschrift:"]
[]
[]
[null,null,null,null,null,null,null,null,null,null,null,null,null,null,null,null,"1/8 Elimination",null,null,null,"Scheibe:",{"$f":"Finale16alle!B14","v":"4A"}]
[null,null,null,null,null,null,null,null,null,null,null,null,null,null,null,null,null,1,2,3,"Summe","Gesamt"]
[{"$f":"Quali!$A$1","v":"Trainingsturnier"},null,null,null,null,null,null,null,null,null,null,null,null,null,null,null,"End 1"]
["Veranstaltung",null,null,null,null,null,null,null,null,null,null,null,null,null,null,null,"End 2"]
[{"$f":"Quali!$A$3","v":"15. Mai 2022"},null,null,null,null,null,null,null,null,null,null,null,null,null,null,null,"End 3"]
["Datum",null,null,null,null,null,null,null,null,null,null,null,null,null,null,null,"End 4"]
[{"$f":"Finale16alle!C14","v":"S_13"},null,null,null,null,null,null,null,null,null,null,null,null,null,null,null,"End 5"]
["Name",null,null,null,null,null,null,null,null,null,null,null,null,null,null,null,"wenn erforderlich"]
[{"$f":"IFERROR(VLOOKUP(A199,Quali!$C$12:$H$27,2,FALSE),\" \")","v":"V_13"},null,null,null,null,null,null,null,null,null,null,null,null,null,null,null,"Stechen"]
["Verein",null,null,null,null,null,null,null,null,null,null,null,null,null,null,null,null,null,null,null,null,"gewonnen"]
[{"$f":"Quali!$A$6","v":"Compound"},null,null,null,null,null,null,null,null,null,null,null,null,null,null,null,"Schütze:",null,null,null,null,"verloren"]
["Bogenklasse"]
[null,null,null,null,null,null,null,null,null,null,null,null,null,null,null,null,"Gegner:",null,"Name:",{"$f":"Finale16alle!C15","v":"S_4"}]
[null,null,null,null,null,null,null,null,null,null,null,null,null,null,null,null,null,null,"Unterschrift:"]
[]
[]
["1/4 Finale",null,null,null,"Scheibe:",null,null,null,"1/2 Finale",null,null,null,"Scheibe:",null,null,null,"1./2. od. 3./4. Platz",null,null,null,"Scheibe:"]
[null,1,2,3,"Summe","Gesamt",null,null,null,1,2,3,"Summe","Gesamt",null,null,null,1,2,3,"Summe","Gesamt"]
["End 1",null,null,null,null,null,null,null,"End 1",null,null,null,null,null,null,null,"End 1"]
["End 2",null,null,null,null,null,null,null,"End 2",null,null,null,null,null,null,null,"End 2"]
["End 3",null,null,null,null,null,null,null,"End 3",null,null,null,null,null,null,null,"End 3"]
["End 4",null,null,null,null,null,null,null,"End 4",null,null,null,null,null,null,null,"End 4"]
["End 5",null,null,null,null,null,null,null,"End 5",null,null,null,null,null,null,null,"End 5"]
["wenn erforderlich",null,null,null,null,null,null,null,"wenn erforderlich",null,null,null,null,null,null,null,"wenn erforderlich"]
["Stechen",null,null,null,null,null,null,null,"Stechen",null,null,null,null,null,null,null,"Stechen"]
[null,null,null,null,null,"gewonnen",null,null,null,null,null,null,null,"gewonnen",null,null,null,null,null,null,null,"gewonnen"]
["Schütze:",null,null,null,null,"verloren",null,null,"Schütze:",null,null,null,null,"verloren",null,null,"Schütze:",null,null,null,null,"verloren"]
[]
["Gegner:",null,"Name:",null,null,null,null,null,"Gegner:",null,"Name:",null,null,null,null,null,"Gegner:",null,"Name:"]
[null,null,"Unterschrift:",null,null,null,null,null,null,null,"Unterschrift:",null,null,null,null,null,null,null,"Unterschrift:"]
[]
[]
[null,null,null,null,null,null,null,null,null,null,null,null,null,null,null,null,"1/8 Elimination",null,null,null,"Scheibe:",{"$f":"Finale16alle!B15","v":"4B"}]
[null,null,null,null,null,null,null,null,null,null,null,null,null,null,null,null,null,1,2,3,"Summe","Gesamt"]
[{"$f":"Quali!$A$1","v":"Trainingsturnier"},null,null,null,null,null,null,null,null,null,null,null,null,null,null,null,"End 1"]
["Veranstaltung",null,null,null,null,null,null,null,null,null,null,null,null,null,null,null,"End 2"]
[{"$f":"Quali!$A$3","v":"15. Mai 2022"},null,null,null,null,null,null,null,null,null,null,null,null,null,null,null,"End 3"]
["Datum",null,null,null,null,null,null,null,null,null,null,null,null,null,null,null,"End 4"]
[{"$f":"Finale16alle!C15","v":"S_4"},null,null,null,null,null,null,null,null,null,null,null,null,null,null,null,"End 5"]
["Name",null,null,null,null,null,null,null,null,null,null,null,null,null,null,null,"wenn erforderlich"]
[{"$f":"IFERROR(VLOOKUP(A231,Quali!$C$12:$H$27,2,FALSE),\" \")","v":"V_4"},null,null,null,null,null,null,null,null,null,null,null,null,null,null,null,"Stechen"]
["Verein",null,null,null,null,null,null,null,null,null,null,null,null,null,null,null,null,null,null,null,null,"gewonnen"]
[{"$f":"Quali!$A$6","v":"Compound"},null,null,null,null,null,null,null,null,null,null,null,null,null,null,null,"Schütze:",null,null,null,null,"verloren"]
["Bogenklasse"]
[null,null,null,null,null,null,null,null,null,null,null,null,null,null,null,null,"Gegner:",null,"Name:",{"$f":"Finale16alle!C14","v":"S_13"}]
[null,null,null,null,null,null,null,null,null,null,null,null,null,null,null,null,null,null,"Unterschrift:"]
[]
[]
["1/4 Finale",null,null,null,"Scheibe:",null,null,null,"1/2 Finale",null,null,null,"Scheibe:",null,null,null,"1./2. od. 3./4. Platz",null,null,null,"Scheibe:"]
[null,1,2,3,"Summe","Gesamt",null,null,null,1,2,3,"Summe","Gesamt",null,null,null,1,2,3,"Summe","Gesamt"]
["End 1",null,null,null,null,null,null,null,"End 1",null,null,null,null,null,null,null,"End 1"]
["End 2",null,null,null,null,null,null,null,"End 2",null,null,null,null,null,null,null,"End 2"]
["End 3",null,null,null,null,null,null,null,"End 3",null,null,null,null,null,null,null,"End 3"]
["End 4",null,null,null,null,null,null,null,"End 4",null,null,null,null,null,null,null,"End 4"]
["End 5",null,null,null,null,null,null,null,"End 5",null,null,null,null,null,null,null,"End 5"]
["wenn erforderlich",null,null,null,null,null,null,null,"wenn erforderlich",null,null,null,null,null,null,null,"wenn erforderlich"]
["Stechen",null,null,null,null,null,null,null,"Stechen",null,null,null,null,null,null,null,"Stechen"]
[null,null,null,null,null,"gewonnen",null,null,null,null,null,null,null,"gewonnen",null,null,null,null,null,null,null,"gewonnen"]
["Schütze:",null,null,null,null,"verloren",null,null,"Schütze:",null,null,null,null,"verloren",null,null,"Schütze:",null,null,null,null,"verloren"]
[]
["Gegner:",null,"Name:",null,null,null,null,null,"Gegner:",null,"Name:",null,null,null,null,null,"Gegner:",null,"Name:"]
[null,null,"Unterschrift:",null,null,null,null,null,null,null,"Unterschrift:",null,null,null,null,null,null,null,"Unterschrift:"]
[]
[]
[null,null,null,null,null,null,null,null,null,null,null,null,null,null,null,null,"1/8 Elimination",null,null,null,"Scheibe:",{"$f":"Finale16alle!B18","v":"5A"}]
[null,null,null,null,null,null,null,null,null,null,null,null,null,null,null,null,null,1,2,3,"Summe","Gesamt"]
[{"$f":"Quali!$A$1","v":"Trainingsturnier"},null,null,null,null,null,null,null,null,null,null,null,null,null,null,null,"End 1"]
["Veranstaltung",null,null,null,null,null,null,null,null,null,null,null,null,null,null,null,"End 2"]
[{"$f":"Quali!$A$3","v":"15. Mai 2022"},null,null,null,null,null,null,null,null,null,null,null,null,null,null,null,"End 3"]
["Datum",null,null,null,null,null,null,null,null,null,null,null,null,null,null,null,"End 4"]
[{"$f":"Finale16alle!C18","v":"S_3"},null,null,null,null,null,null,null,null,null,null,null,null,null,null,null,"End 5"]
["Name",null,null,null,null,null,null,null,null,null,null,null,null,null,null,null,"wenn erforderlich"]
[{"$f":"IFERROR(VLOOKUP(A263,Quali!$C$12:$H$27,2,FALSE),\" \")","v":"V_3"},null,null,null,null,null,null,null,null,null,null,null,null,null,null,null,"Stechen"]
["Verein",null,null,null,null,null,null,null,null,null,null,null,null,null,null,null,null,null,null,null,null,"gewonnen"]
[{"$f":"Quali!$A$6","v":"Compound"},null,null,null,null,null,null,null,null,null,null,null,null,null,null,null,"Schütze:",null,null,null,null,"verloren"]
["Bogenklasse"]
[null,null,null,null,null,null,null,null,null,null,null,null,null,null,null,null,"Gegner:",null,"Name:",{"$f":"Finale16alle!C19","v":"S_14"}]
[null,null,null,null,null,null,null,null,null,null,null,null,null,null,null,null,null,null,"Unterschrift:"]
[]
[]
["1/4 Finale",null,null,null,"Scheibe:",null,null,null,"1/2 Finale",null,null,null,"Scheibe:",null,null,null,"1./2. od. 3./4. Platz",null,null,null,"Scheibe:"]
[null,1,2,3,"Summe","Gesamt",null,null,null,1,2,3,"Summe","Gesamt",null,null,null,1,2,3,"Summe","Gesamt"]
["End 1",null,null,null,null,null,null,null,"End 1",null,null,null,null,null,null,null,"End 1"]
["End 2",null,null,null,null,null,null,null,"End 2",null,null,null,null,null,null,null,"End 2"]
["End 3",null,null,null,null,null,null,null,"End 3",null,null,null,null,null,null,null,"End 3"]
["End 4",null,null,null,null,null,null,null,"End 4",null,null,null,null,null,null,null,"End 4"]
["End 5",null,null,null,null,null,null,null,"End 5",null,null,null,null,null,null,null,"End 5"]
["wenn erforderlich",null,null,null,null,null,null,null,"wenn erforderlich",null,null,null,null,null,null,null,"wenn erforderlich"]
["Stechen",null,null,null,null,null,null,null,"Stechen",null,null,null,null,null,null,null,"Stechen"]
[null,null,null,null,null,"gewonnen",null,null,null,null,null,null,null,"gewonnen",null,null,null,null,null,null,null,"gewonnen"]
["Schütze:",null,null,null,null,"verloren",null,null,"Schütze:",null,null,null,null,"verloren",null,null,"Schütze:",null,null,null,null,"verloren"]
[]
["Gegner:",null,"Name:",null,null,null,null,null,"Gegner:",null,"Name:",null,null,null,null,null,"Gegner:",null,"Name:"]
[null,null,"Unterschrift:",null,null,null,null,null,null,null,"Unterschrift:",null,null,null,null,null,null,null,"Unterschrift:"]
[]
[]
[null,null,null,null,null,null,null,null,null,null,null,null,null,null,null,null,"1/8 Elimination",null,null,null,"Scheibe:",{"$f":"Finale16alle!B19","v":"5B"}]
[null,null,null,null,null,null,null,null,null,null,null,null,null,null,null,null,null,1,2,3,"Summe","Gesamt"]
[{"$f":"Quali!$A$1","v":"Trainingsturnier"},null,null,null,null,null,null,null,null,null,null,null,null,null,null,null,"End 1"]
["Veranstaltung",null,null,null,null,null,null,null,null,null,null,null,null,null,null,null,"End 2"]
[{"$f":"Quali!$A$3","v":"15. Mai 2022"},null,null,null,null,null,null,null,null,null,null,null,null,null,null,null,"End 3"]
["Datum",null,null,null,null,null,null,null,null,null,null,null,null,null,null,null,"End 4"]
[{"$f":"Finale16alle!C19","v":"S_14"},null,null,null,null,null,null,null,null,null,null,null,null,null,null,null,"End 5"]
["Name",null,null,null,null,null,null,null,null,null,null,null,null,null,null,null,"wenn erforderlich"]
[{"$f":"IFERROR(VLOOKUP(A295,Quali!$C$12:$H$27,2,FALSE),\" \")","v":"V_14"},null,null,null,null,null,null,null,null,null,null,null,null,null,null,null,"Stechen"]
["Verein",null,null,null,null,null,null,null,null,null,null,null,null,null,null,null,null,null,null,null,null,"gewonnen"]
[{"$f":"Quali!$A$6","v":"Compound"},null,null,null,null,null,null,null,null,null,null,null,null,null,null,null,"Schütze:",null,null,null,null,"verloren"]
["Bogenklasse"]
[null,null,null,null,null,null,null,null,null,null,null,null,null,null,null,null,"Gegner:",null,"Name:",{"$f":"Finale16alle!C18","v":"S_3"}]
[null,null,null,null,null,null,null,null,null,null,null,null,null,null,null,null,null,null,"Unterschrift:"]
[]
[]
["1/4 Finale",null,null,null,"Scheibe:",null,null,null,"1/2 Finale",null,null,null,"Scheibe:",null,null,null,"1./2. od. 3./4. Platz",null,null,null,"Scheibe:"]
[null,1,2,3,"Summe","Gesamt",null,null,null,1,2,3,"Summe","Gesamt",null,null,null,1,2,3,"Summe","Gesamt"]
["End 1",null,null,null,null,null,null,null,"End 1",null,null,null,null,null,null,null,"End 1"]
["End 2",null,null,null,null,null,null,null,"End 2",null,null,null,null,null,null,null,"End 2"]
["End 3",null,null,null,null,null,null,null,"End 3",null,null,null,null,null,null,null,"End 3"]
["End 4",null,null,null,null,null,null,null,"End 4",null,null,null,null,null,null,null,"End 4"]
["End 5",null,null,null,null,null,null,null,"End 5",null,null,null,null,null,null,null,"End 5"]
["wenn erforderlich",null,null,null,null,null,null,null,"wenn erforderlich",null,null,null,null,null,null,null,"wenn erforderlich"]
["Stechen",null,null,null,null,null,null,null,"Stechen",null,null,null,null,null,null,null,"Stechen"]
[null,null,null,null,null,"gewonnen",null,null,null,null,null,null,null,"gewonnen",null,null,null,null,null,null,null,"gewonnen"]
["Schütze:",null,null,null,null,"verloren",null,null,"Schütze:",null,null,null,null,"verloren",null,null,"Schütze:",null,null,null,null,"verloren"]
[]
["Gegner:",null,"Name:",null,null,null,null,null,"Gegner:",null,"Name:",null,null,null,null,null,"Gegner:",null,"Name:"]
[null,null,"Unterschrift:",null,null,null,null,null,null,null,"Unterschrift:",null,null,null,null,null,null,null,"Unterschrift:"]
[]
[]
[null,null,null,null,null,null,null,null,null,null,null,null,null,null,null,null,"1/8 Elimination",null,null,null,"Scheibe:",{"$f":"Finale16alle!B22","v":"6A"}]
[null,null,null,null,null,null,null,null,null,null,null,null,null,null,null,null,null,1,2,3,"Summe","Gesamt"]
[{"$f":"Quali!$A$1","v":"Trainingsturnier"},null,null,null,null,null,null,null,null,null,null,null,null,null,null,null,"End 1"]
["Veranstaltung",null,null,null,null,null,null,null,null,null,null,null,null,null,null,null,"End 2"]
[{"$f":"Quali!$A$3","v":"15. Mai 2022"},null,null,null,null,null,null,null,null,null,null,null,null,null,null,null,"End 3"]
["Datum",null,null,null,null,null,null,null,null,null,null,null,null,null,null,null,"End 4"]
[{"$f":"Finale16alle!C22","v":"S_11"},null,null,null,null,null,null,null,null,null,null,null,null,null,null,null,"End 5"]
["Name",null,null,null,null,null,null,null,null,null,null,null,null,null,null,null,"wenn erforderlich"]
[{"$f":"IFERROR(VLOOKUP(A327,Quali!$C$12:$H$27,2,FALSE),\" \")","v":"V_11"},null,null,null,null,null,null,null,null,null,null,null,null,null,null,null,"Stechen"]
["Verein",null,null,null,null,null,null,null,null,null,null,null,null,null,null,null,null,null,null,null,null,"gewonnen"]
[{"$f":"Quali!$A$6","v":"Compound"},null,null,null,null,null,null,null,null,null,null,null,null,null,null,null,"Schütze:",null,null,null,null,"verloren"]
["Bogenklasse"]
[null,null,null,null,null,null,null,null,null,null,null,null,null,null,null,null,"Gegner:",null,"Name:",{"$f":"Finale16alle!C23","v":"S_6"}]
[null,null,null,null,null,null,null,null,null,null,null,null,null,null,null,null,null,null,"Unterschrift:"]
[]
[]
["1/4 Finale",null,null,null,"Scheibe:",null,null,null,"1/2 Finale",null,null,null,"Scheibe:",null,null,null,"1./2. od. 3./4. Platz",null,null,null,"Scheibe:"]
[null,1,2,3,"Summe","Gesamt",null,null,null,1,2,3,"Summe","Gesamt",null,null,null,1,2,3,"Summe","Gesamt"]
["End 1",null,null,null,null,null,null,null,"End 1",null,null,null,null,null,null,null,"End 1"]
["End 2",null,null,null,null,null,null,null,"End 2",null,null,null,null,null,null,null,"End 2"]
["End 3",null,null,null,null,null,null,null,"End 3",null,null,null,null,null,null,null,"End 3"]
["End 4",null,null,null,null,null,null,null,"End 4",null,null,null,null,null,null,null,"End 4"]
["End 5",null,null,null,null,null,null,null,"End 5",null,null,null,null,null,null,null,"End 5"]
["wenn erforderlich",null,null,null,null,null,null,null,"wenn erforderlich",null,null,null,null,null,null,null,"wenn erforderlich"]
["Stechen",null,null,null,null,null,null,null,"Stechen",null,null,null,null,null,null,null,"Stechen"]
[null,null,null,null,null,"gewonnen",null,null,null,null,null,null,null,"gewonnen",null,null,null,null,null,null,null,"gewonnen"]
["Schütze:",null,null,null,null,"verloren",null,null,"Schütze:",null,null,null,null,"verloren",null,null,"Schütze:",null,null,null,null,"verloren"]
[]
["Gegner:",null,"Name:",null,null,null,null,null,"Gegner:",null,"Name:",null,null,null,null,null,"Gegner:",null,"Name:"]
[null,null,"Unterschrift:",null,null,null,null,null,null,null,"Unterschrift:",null,null,null,null,null,null,null,"Unterschrift:"]
[]
[]
[null,null,null,null,null,null,null,null,null,null,null,null,null,null,null,null,"1/8 Elimination",null,null,null,"Scheibe:",{"$f":"Finale16alle!B23","v":"6B"}]
[null,null,null,null,null,null,null,null,null,null,null,null,null,null,null,null,null,1,2,3,"Summe","Gesamt"]
[{"$f":"Quali!$A$1","v":"Trainingsturnier"},null,null,null,null,null,null,null,null,null,null,null,null,null,null,null,"End 1"]
["Veranstaltung",null,null,null,null,null,null,null,null,null,null,null,null,null,null,null,"End 2"]
[{"$f":"Quali!$A$3","v":"15. Mai 2022"},null,null,null,null,null,null,null,null,null,null,null,null,null,null,null,"End 3"]
["Datum",null,null,null,null,null,null,null,null,null,null,null,null,null,null,null,"End 4"]
[{"$f":"Finale16alle!C23","v":"S_6"},null,null,null,null,null,null,null,null,null,null,null,null,null,null,null,"End 5"]
["Name",null,null,null,null,null,null,null,null,null,null,null,null,null,null,null,"wenn erforderlich"]
[{"$f":"IFERROR(VLOOKUP(A359,Quali!$C$12:$H$27,2,FALSE),\" \")","v":"V_6"},null,null,null,null,null,null,null,null,null,null,null,null,null,null,null,"Stechen"]
["Verein",null,null,null,null,null,null,null,null,null,null,null,null,null,null,null,null,null,null,null,null,"gewonnen"]
[{"$f":"Quali!$A$6","v":"Compound"},null,null,null,null,null,null,null,null,null,null,null,null,null,null,null,"Schütze:",null,null,null,null,"verloren"]
["Bogenklasse"]
[null,null,null,null,null,null,null,null,null,null,null,null,null,null,null,null,"Gegner:",null,"Name:",{"$f":"Finale16alle!C22","v":"S_11"}]
[null,null,null,null,null,null,null,null,null,null,null,null,null,null,null,null,null,null,"Unterschrift:"]
[]
[]
["1/4 Finale",null,null,null,"Scheibe:",null,null,null,"1/2 Finale",null,null,null,"Scheibe:",null,null,null,"1./2. od. 3./4. Platz",null,null,null,"Scheibe:"]
[null,1,2,3,"Summe","Gesamt",null,null,null,1,2,3,"Summe","Gesamt",null,null,null,1,2,3,"Summe","Gesamt"]
["End 1",null,null,null,null,null,null,null,"End 1",null,null,null,null,null,null,null,"End 1"]
["End 2",null,null,null,null,null,null,null,"End 2",null,null,null,null,null,null,null,"End 2"]
["End 3",null,null,null,null,null,null,null,"End 3",null,null,null,null,null,null,null,"End 3"]
["End 4",null,null,null,null,null,null,null,"End 4",null,null,null,null,null,null,null,"End 4"]
["End 5",null,null,null,null,null,null,null,"End 5",null,null,null,null,null,null,null,"End 5"]
["wenn erforderlich",null,null,null,null,null,null,null,"wenn erforderlich",null,null,null,null,null,null,null,"wenn erforderlich"]
["Stechen",null,null,null,null,null,null,null,"Stechen",null,null,null,null,null,null,null,"Stechen"]
[null,null,null,null,null,"gewonnen",null,null,null,null,null,null,null,"gewonnen",null,null,null,null,null,null,null,"gewonnen"]
["Schütze:",null,null,null,null,"verloren",null,null,"Schütze:",null,null,null,null,"verloren",null,null,"Schütze:",null,null,null,null,"verloren"]
[]
["Gegner:",null,"Name:",null,null,null,null,null,"Gegner:",null,"Name:",null,null,null,null,null,"Gegner:",null,"Name:"]
[null,null,"Unterschrift:",null,null,null,null,null,null,null,"Unterschrift:",null,null,null,null,null,null,null,"Unterschrift:"]
[]
[]
[null,null,null,null,null,null,null,null,null,null,null,null,null,null,null,null,"1/8 Elimination",null,null,null,"Scheibe:",{"$f":"Finale16alle!B26","v":"7A"}]
[null,null,null,null,null,null,null,null,null,null,null,null,null,null,null,null,null,1,2,3,"Summe","Gesamt"]
[{"$f":"Quali!$A$1","v":"Trainingsturnier"},null,null,null,null,null,null,null,null,null,null,null,null,null,null,null,"End 1"]
["Veranstaltung",null,null,null,null,null,null,null,null,null,null,null,null,null,null,null,"End 2"]
[{"$f":"Quali!$A$3","v":"15. Mai 2022"},null,null,null,null,null,null,null,null,null,null,null,null,null,null,null,"End 3"]
["Datum",null,null,null,null,null,null,null,null,null,null,null,null,null,null,null,"End 4"]
[{"$f":"Finale16alle!C26","v":"S_7"},null,null,null,null,null,null,null,null,null,null,null,null,null,null,null,"End 5"]
["Name",null,null,null,null,null,null,null,null,null,null,null,null,null,null,null,"wenn erforderlich"]
[{"$f":"IFERROR(VLOOKUP(A391,Quali!$C$12:$H$27,2,FALSE),\" \")","v":"V_7"},null,null,null,null,null,null,null,null,null,null,null,null,null,null,null,"Stechen"]
["Verein",null,null,null,null,null,null,null,null,null,null,null,null,null,null,null,null,null,null,null,null,"gewonnen"]
[{"$f":"Quali!$A$6","v":"Compound"},null,null,null,null,null,null,null,null,null,null,null,null,null,null,null,"Schütze:",null,null,null,null,"verloren"]
["Bogenklasse"]
[null,null,null,null,null,null,null,null,null,null,null,null,null,null,null,null,"Gegner:",null,"Name:",{"$f":"Finale16alle!C27","v":"S_10"}]
[null,null,null,null,null,null,null,null,null,null,null,null,null,null,null,null,null,null,"Unterschrift:"]
[]
[]
["1/4 Finale",null,null,null,"Scheibe:",null,null,null,"1/2 Finale",null,null,null,"Scheibe:",null,null,null,"1./2. od. 3./4. Platz",null,null,null,"Scheibe:"]
[null,1,2,3,"Summe","Gesamt",null,null,null,1,2,3,"Summe","Gesamt",null,null,null,1,2,3,"Summe","Gesamt"]
["End 1",null,null,null,null,null,null,null,"End 1",null,null,null,null,null,null,null,"End 1"]
["End 2",null,null,null,null,null,null,null,"End 2",null,null,null,null,null,null,null,"End 2"]
["End 3",null,null,null,null,null,null,null,"End 3",null,null,null,null,null,null,null,"End 3"]
["End 4",null,null,null,null,null,null,null,"End 4",null,null,null,null,null,null,null,"End 4"]
["End 5",null,null,null,null,null,null,null,"End 5",null,null,null,null,null,null,null,"End 5"]
["wenn erforderlich",null,null,null,null,null,null,null,"wenn erforderlich",null,null,null,null,null,null,null,"wenn erforderlich"]
["Stechen",null,null,null,null,null,null,null,"Stechen",null,null,null,null,null,null,null,"Stechen"]
[null,null,null,null,null,"gewonnen",null,null,null,null,null,null,null,"gewonnen",null,null,null,null,null,null,null,"gewonnen"]
["Schütze:",null,null,null,null,"verloren",null,null,"Schütze:",null,null,null,null,"verloren",null,null,"Schütze:",null,null,null,null,"verloren"]
[]
["Gegner:",null,"Name:",null,null,null,null,null,"Gegner:",null,"Name:",null,null,null,null,null,"Gegner:",null,"Name:"]
[null,null,"Unterschrift:",null,null,null,null,null,null,null,"Unterschrift:",null,null,null,null,null,null,null,"Unterschrift:"]
[]
[]
[null,null,null,null,null,null,null,null,null,null,null,null,null,null,null,null,"1/8 Elimination",null,null,null,"Scheibe:",{"$f":"Finale16alle!B27","v":"7B"}]
[null,null,null,null,null,null,null,null,null,null,null,null,null,null,null,null,null,1,2,3,"Summe","Gesamt"]
[{"$f":"Quali!$A$1","v":"Trainingsturnier"},null,null,null,null,null,null,null,null,null,null,null,null,null,null,null,"End 1"]
["Veranstaltung",null,null,null,null,null,null,null,null,null,null,null,null,null,null,null,"End 2"]
[{"$f":"Quali!$A$3","v":"15. Mai 2022"},null,null,null,null,null,null,null,null,null,null,null,null,null,null,null,"End 3"]
["Datum",null,null,null,null,null,null,null,null,null,null,null,null,null,null,null,"End 4"]
[{"$f":"Finale16alle!C27","v":"S_10"},null,null,null,null,null,null,null,null,null,null,null,null,null,null,null,"End 5"]
["Name",null,null,null,null,null,null,null,null,null,null,null,null,null,null,null,"wenn erforderlich"]
[{"$f":"IFERROR(VLOOKUP(A423,Quali!$C$12:$H$27,2,FALSE),\" \")","v":"V_10"},null,null,null,null,null,null,null,null,null,null,null,null,null,null,null,"Stechen"]
["Verein",null,null,null,null,null,null,null,null,null,null,null,null,null,null,null,null,null,null,null,null,"gewonnen"]
[{"$f":"Quali!$A$6","v":"Compound"},null,null,null,null,null,null,null,null,null,null,null,null,null,null,null,"Schütze:",null,null,null,null,"verloren"]
["Bogenklasse"]
[null,null,null,null,null,null,null,null,null,null,null,null,null,null,null,null,"Gegner:",null,"Name:",{"$f":"Finale16alle!C26","v":"S_7"}]
[null,null,null,null,null,null,null,null,null,null,null,null,null,null,null,null,null,null,"Unterschrift:"]
[]
[]
["1/4 Finale",null,null,null,"Scheibe:",null,null,null,"1/2 Finale",null,null,null,"Scheibe:",null,null,null,"1./2. od. 3./4. Platz",null,null,null,"Scheibe:"]
[null,1,2,3,"Summe","Gesamt",null,null,null,1,2,3,"Summe","Gesamt",null,null,null,1,2,3,"Summe","Gesamt"]
["End 1",null,null,null,null,null,null,null,"End 1",null,null,null,null,null,null,null,"End 1"]
["End 2",null,null,null,null,null,null,null,"End 2",null,null,null,null,null,null,null,"End 2"]
["End 3",null,null,null,null,null,null,null,"End 3",null,null,null,null,null,null,null,"End 3"]
["End 4",null,null,null,null,null,null,null,"End 4",null,null,null,null,null,null,null,"End 4"]
["End 5",null,null,null,null,null,null,null,"End 5",null,null,null,null,null,null,null,"End 5"]
["wenn erforderlich",null,null,null,null,null,null,null,"wenn erforderlich",null,null,null,null,null,null,null,"wenn erforderlich"]
["Stechen",null,null,null,null,null,null,null,"Stechen",null,null,null,null,null,null,null,"Stechen"]
[null,null,null,null,null,"gewonnen",null,null,null,null,null,null,null,"gewonnen",null,null,null,null,null,null,null,"gewonnen"]
["Schütze:",null,null,null,null,"verloren",null,null,"Schütze:",null,null,null,null,"verloren",null,null,"Schütze:",null,null,null,null,"verloren"]
[]
["Gegner:",null,"Name:",null,null,null,null,null,"Gegner:",null,"Name:",null,null,null,null,null,"Gegner:",null,"Name:"]
[null,null,"Unterschrift:",null,null,null,null,null,null,null,"Unterschrift:",null,null,null,null,null,null,null,"Unterschrift:"]
[]
[]
[null,null,null,null,null,null,null,null,null,null,null,null,null,null,null,null,"1/8 Elimination",null,null,null,"Scheibe:",{"$f":"Finale16alle!B30","v":"8A"}]
[null,null,null,null,null,null,null,null,null,null,null,null,null,null,null,null,null,1,2,3,"Summe","Gesamt"]
[{"$f":"Quali!$A$1","v":"Trainingsturnier"},null,null,null,null,null,null,null,null,null,null,null,null,null,null,null,"End 1"]
["Veranstaltung",null,null,null,null,null,null,null,null,null,null,null,null,null,null,null,"End 2"]
[{"$f":"Quali!$A$3","v":"15. Mai 2022"},null,null,null,null,null,null,null,null,null,null,null,null,null,null,null,"End 3"]
["Datum",null,null,null,null,null,null,null,null,null,null,null,null,null,null,null,"End 4"]
[{"$f":"Finale16alle!C30","v":"S_15"},null,null,null,null,null,null,null,null,null,null,null,null,null,null,null,"End 5"]
["Name",null,null,null,null,null,null,null,null,null,null,null,null,null,null,null,"wenn erforderlich"]
[{"$f":"IFERROR(VLOOKUP(A455,Quali!$C$12:$H$27,2,FALSE),\" \")","v":"V_15"},null,null,null,null,null,null,null,null,null,null,null,null,null,null,null,"Stechen"]
["Verein",null,null,null,null,null,null,null,null,null,null,null,null,null,null,null,null,null,null,null,null,"gewonnen"]
[{"$f":"Quali!$A$6","v":"Compound"},null,null,null,null,null,null,null,null,null,null,null,null,null,null,null,"Schütze:",null,null,null,null,"verloren"]
["Bogenklasse"]
[null,null,null,null,null,null,null,null,null,null,null,null,null,null,null,null,"Gegner:",null,"Name:",{"$f":"Finale16alle!C31","v":"S_2"}]
[null,null,null,null,null,null,null,null,null,null,null,null,null,null,null,null,null,null,"Unterschrift:"]
[]
[]
["1/4 Finale",null,null,null,"Scheibe:",null,null,null,"1/2 Finale",null,null,null,"Scheibe:",null,null,null,"1./2. od. 3./4. Platz",null,null,null,"Scheibe:"]
[null,1,2,3,"Summe","Gesamt",null,null,null,1,2,3,"Summe","Gesamt",null,null,null,1,2,3,"Summe","Gesamt"]
["End 1",null,null,null,null,null,null,null,"End 1",null,null,null,null,null,null,null,"End 1"]
["End 2",null,null,null,null,null,null,null,"End 2",null,null,null,null,null,null,null,"End 2"]
["End 3",null,null,null,null,null,null,null,"End 3",null,null,null,null,null,null,null,"End 3"]
["End 4",null,null,null,null,null,null,null,"End 4",null,null,null,null,null,null,null,"End 4"]
["End 5",null,null,null,null,null,null,null,"End 5",null,null,null,null,null,null,null,"End 5"]
["wenn erforderlich",null,null,null,null,null,null,null,"wenn erforderlich",null,null,null,null,null,null,null,"wenn erforderlich"]
["Stechen",null,null,null,null,null,null,null,"Stechen",null,null,null,null,null,null,null,"Stechen"]
[null,null,null,null,null,"gewonnen",null,null,null,null,null,null,null,"gewonnen",null,null,null,null,null,null,null,"gewonnen"]
["Schütze:",null,null,null,null,"verloren",null,null,"Schütze:",null,null,null,null,"verloren",null,null,"Schütze:",null,null,null,null,"verloren"]
[]
["Gegner:",null,"Name:",null,null,null,null,null,"Gegner:",null,"Name:",null,null,null,null,null,"Gegner:",null,"Name:"]
[null,null,"Unterschrift:",null,null,null,null,null,null,null,"Unterschrift:",null,null,null,null,null,null,null,"Unterschrift:"]
[]
[]
[null,null,null,null,null,null,null,null,null,null,null,null,null,null,null,null,"1/8 Elimination",null,null,null,"Scheibe:",{"$f":"Finale16alle!B31","v":"8B"}]
[null,null,null,null,null,null,null,null,null,null,null,null,null,null,null,null,null,1,2,3,"Summe","Gesamt"]
[{"$f":"Quali!$A$1","v":"Trainingsturnier"},null,null,null,null,null,null,null,null,null,null,null,null,null,null,null,"End 1"]
["Veranstaltung",null,null,null,null,null,null,null,null,null,null,null,null,null,null,null,"End 2"]
[{"$f":"Quali!$A$3","v":"15. Mai 2022"},null,null,null,null,null,null,null,null,null,null,null,null,null,null,null,"End 3"]
["Datum",null,null,null,null,null,null,null,null,null,null,null,null,null,null,null,"End 4"]
[{"$f":"Finale16alle!C31","v":"S_2"},null,null,null,null,null,null,null,null,null,null,null,null,null,null,null,"End 5"]
["Name",null,null,null,null,null,null,null,null,null,null,null,null,null,null,null,"wenn erforderlich"]
[{"$f":"IFERROR(VLOOKUP(A487,Quali!$C$12:$H$27,2,FALSE),\" \")","v":"V_2"},null,null,null,null,null,null,null,null,null,null,null,null,null,null,null,"Stechen"]
["Verein",null,null,null,null,null,null,null,null,null,null,null,null,null,null,null,null,null,null,null,null,"gewonnen"]
[{"$f":"Quali!$A$6","v":"Compound"},null,null,null,null,null,null,null,null,null,null,null,null,null,null,null,"Schütze:",null,null,null,null,"verloren"]
["Bogenklasse"]
[null,null,null,null,null,null,null,null,null,null,null,null,null,null,null,null,"Gegner:",null,"Name:",{"$f":"Finale16alle!C30","v":"S_15"}]
[null,null,null,null,null,null,null,null,null,null,null,null,null,null,null,null,null,null,"Unterschrift:"]
[]
[]
["1/4 Finale",null,null,null,"Scheibe:",null,null,null,"1/2 Finale",null,null,null,"Scheibe:",null,null,null,"1./2. od. 3./4. Platz",null,null,null,"Scheibe:"]
[null,1,2,3,"Summe","Gesamt",null,null,null,1,2,3,"Summe","Gesamt",null,null,null,1,2,3,"Summe","Gesamt"]
["End 1",null,null,null,null,null,null,null,"End 1",null,null,null,null,null,null,null,"End 1"]
["End 2",null,null,null,null,null,null,null,"End 2",null,null,null,null,null,null,null,"End 2"]
["End 3",null,null,null,null,null,null,null,"End 3",null,null,null,null,null,null,null,"End 3"]
["End 4",null,null,null,null,null,null,null,"End 4",null,null,null,null,null,null,null,"End 4"]
["End 5",null,null,null,null,null,null,null,"End 5",null,null,null,null,null,null,null,"End 5"]
["wenn erforderlich",null,null,null,null,null,null,null,"wenn erforderlich",null,null,null,null,null,null,null,"wenn erforderlich"]
["Stechen",null,null,null,null,null,null,null,"Stechen",null,null,null,null,null,null,null,"Stechen"]
[null,null,null,null,null,"gewonnen",null,null,null,null,null,null,null,"gewonnen",null,null,null,null,null,null,null,"gewonnen"]
["Schütze:",null,null,null,null,"verloren",null,null,"Schütze:",null,null,null,null,"verloren",null,null,"Schütze:",null,null,null,null,"verloren"]
[]
["Gegner:",null,"Name:",null,null,null,null,null,"Gegner:",null,"Name:",null,null,null,null,null,"Gegner:",null,"Name:"]
[null,null,"Unterschrift:",null,null,null,null,null,null,null,"Unterschrift:",null,null,null,null,null,null,null,"Unterschrift:"]